Workbook

Sheet PN SAP 080416 (hidden)
A1: Salgsorganisasjon | B1: Salgskontor | C1: Fabrikk | D1: Postnummer | E1: Postnummer | F1: Salgskontor
A2: 100 | B2: 100 | C2: 110 | D2: 0001 | E2: 0001 | F2: =B2*1 -> 100
A3: 100 | B3: 100 | C3: 110 | D3: 0010 | E3: 0010 | F3: =B3*1 -> 100
A4: 100 | B4: 100 | C4: 110 | D4: 0014 | E4: 0014 | F4: 100
A5: 100 | B5: 100 | C5: 110 | D5: 0015 | E5: 0015 | F5: 100
A6: 100 | B6: 100 | C6: 110 | D6: 0016 | E6: 0016 | F6: 100
A7: 100 | B7: 100 | C7: 110 | D7: 0017 | E7: 0017 | F7: 100
A8: 100 | B8: 100 | C8: 110 | D8: 0019 | E8: 0019 | F8: 100
A9: 100 | B9: 100 | C9: 110 | D9: 0020 | E9: 0020 | F9: 100
A10: 100 | B10: 100 | C10: 110 | D10: 0021 | E10: 0021 | F10: 100
A11: 100 | B11: 100 | C11: 110 | D11: 0022 | E11: 0022 | F11: 100
A12: 100 | B12: 100 | C12: 110 | D12: 0023 | E12: 0023 | F12: 100
A13: 100 | B13: 100 | C13: 110 | D13: 0024 | E13: 0024 | F13: 100
A14: 100 | B14: 100 | C14: 110 | D14: 0025 | E14: 0025 | F14: 100
A15: 100 | B15: 100 | C15: 110 | D15: 0026 | E15: 0026 | F15: 100
A16: 100 | B16: 100 | C16: 110 | D16: 0027 | E16: 0027 | F16: 100
A17: 100 | B17: 100 | C17: 110 | D17: 0028 | E17: 0028 | F17: 100
A18: 100 | B18: 100 | C18: 110 | D18: 0030 | E18: 0030 | F18: 100
A19: 100 | B19: 100 | C19: 110 | D19: 0031 | E19: 0031 | F19: 100
A20: 100 | B20: 100 | C20: 110 | D20: 0032 | E20: 0032 | F20: 100
A21: 100 | B21: 100 | C21: 110 | D21: 0033 | E21: 0033 | F21: 100
A22: 100 | B22: 100 | C22: 110 | D22: 0034 | E22: 0034 | F22: 100
A23: 100 | B23: 100 | C23: 110 | D23: 0037 | E23: 0037 | F23: 100
A24: 100 | B24: 100 | C24: 110 | D24: 0040 | E24: 0040 | F24: 100
A25: 100 | B25: 100 | C25: 110 | D25: 0041 | E25: 0041 | F25: 100
A26: 100 | B26: 100 | C26: 110 | D26: 0042 | E26: 0042 | F26: 100
A27: 100 | B27: 100 | C27: 110 | D27: 0043 | E27: 0043 | F27: 100
A28: 100 | B28: 100 | C28: 110 | D28: 0045 | E28: 0045 | F28: 100
A29: 100 | B29: 100 | C29: 110 | D29: 0046 | E29: 0046 | F29: 100
A30: 100 | B30: 100 | C30: 110 | D30: 0047 | E30: 0047 | F30: 100
A31: 100 | B31: 100 | C31: 110 | D31: 0048 | E31: 0048 | F31: 100
A32: 100 | B32: 100 | C32: 110 | D32: 0050 | E32: 0050 | F32: 100
A33: 100 | B33: 100 | C33: 110 | D33: 0051 | E33: 0051 | F33: 100
A34: 100 | B34: 100 | C34: 110 | D34: 0055 | E34: 0055 | F34: 100
A35: 100 | B35: 100 | C35: 110 | D35: 0080 | E35: 0080 | F35: 100
A36: 100 | B36: 100 | C36: 110 | D36: 0081 | E36: 0081 | F36: 100
A37: 100 | B37: 100 | C37: 110 | D37: 0101 | E37: 0101 | F37: 100
A38: 100 | B38: 100 | C38: 110 | D38: 0102 | E38: 0102 | F38: 100
A39: 100 | B39: 100 | C39: 110 | D39: 0103 | E39: 0103 | F39: 100
A40: 100 | B40: 100 | C40: 110 | D40: 0104 | E40: 0104 | F40: 100
A41: 100 | B41: 100 | C41: 110 | D41: 0105 | E41: 0105 | F41: 100
A42: 100 | B42: 100 | C42: 110 | D42: 0106 | E42: 0106 | F42: 100
A43: 100 | B43: 100 | C43: 110 | D43: 0107 | E43: 0107 | F43: 100
A44: 100 | B44: 100 | C44: 110 | D44: 0110 | E44: 0110 | F44: 100
A45: 100 | B45: 100 | C45: 110 | D45: 0111 | E45: 0111 | F45: 100
A46: 100 | B46: 100 | C46: 110 | D46: 0112 | E46: 0112 | F46: 100
A47: 100 | B47: 100 | C47: 110 | D47: 0113 | E47: 0113 | F47: 100
A48: 100 | B48: 100 | C48: 110 | D48: 0114 | E48: 0114 | F48: 100
A49: 100 | B49: 100 | C49: 110 | D49: 0115 | E49: 0115 | F49: 100
A50: 100 | B50: 100 | C50: 110 | D50: 0116 | E50: 0116 | F50: 100
A51: 100 | B51: 100 | C51: 110 | D51: 0117 | E51: 0117 | F51: 100
A52: 100 | B52: 100 | C52: 110 | D52: 0118 | E52: 0118 | F52: 100
A53: 100 | B53: 100 | C53: 110 | D53: 0119 | E53: 0119 | F53: 100
A54: 100 | B54: 100 | C54: 110 | D54: 0120 | E54: 0120 | F54: 100
A55: 100 | B55: 100 | C55: 110 | D55: 0121 | E55: 0121 | F55: 100
A56: 100 | B56: 100 | C56: 110 | D56: 0122 | E56: 0122 | F56: 100
A57: 100 | B57: 100 | C57: 110 | D57: 0123 | E57: 0123 | F57: 100
A58: 100 | B58: 100 | C58: 110 | D58: 0124 | E58: 0124 | F58: 100
A59: 100 | B59: 100 | C59: 110 | D59: 0125 | E59: 0125 | F59: 100
A60: 100 | B60: 100 | C60: 110 | D60: 0128 | E60: 0128 | F60: 100
A61: 100 | B61: 100 | C61: 110 | D61: 0129 | E61: 0129 | F61: 100
A62: 100 | B62: 100 | C62: 110 | D62: 0130 | E62: 0130 | F62: 100
A63: 100 | B63: 100 | C63: 110 | D63: 0131 | E63: 0131 | F63: 100
A64: 100 | B64: 100 | C64: 110 | D64: 0133 | E64: 0133 | F64: 100
A65: 100 | B65: 100 | C65: 110 | D65: 0134 | E65: 0134 | F65: 100
A66: 100 | B66: 100 | C66: 110 | D66: 0135 | E66: 0135 | F66: 100
A67: 100 | B67: 100 | C67: 110 | D67: 0136 | E67: 0136 | F67: =B67*1 -> 100
A68: 100 | B68: 100 | C68: 110 | D68: 0137 | E68: 0137 | F68: 100
A69: 100 | B69: 100 | C69: 110 | D69: 0138 | E69: 0138 | F69: 100
A70: 100 | B70: 100 | C70: 110 | D70: 0139 | E70: 0139 | F70: 100
A71: 100 | B71: 100 | C71: 110 | D71: 0150 | E71: 0150 | F71: 100
A72: 100 | B72: 100 | C72: 110 | D72: 0151 | E72: 0151 | F72: 100
A73: 100 | B73: 100 | C73: 110 | D73: 0152 | E73: 0152 | F73: 100
A74: 100 | B74: 100 | C74: 110 | D74: 0153 | E74: 0153 | F74: 100
A75: 100 | B75: 100 | C75: 110 | D75: 0154 | E75: 0154 | F75: 100
A76: 100 | B76: 100 | C76: 110 | D76: 0155 | E76: 0155 | F76: 100
A77: 100 | B77: 100 | C77: 110 | D77: 0157 | E77: 0157 | F77: 100
A78: 100 | B78: 100 | C78: 110 | D78: 0158 | E78: 0158 | F78: 100
A79: 100 | B79: 100 | C79: 110 | D79: 0159 | E79: 0159 | F79: 100
A80: 100 | B80: 100 | C80: 110 | D80: 0160 | E80: 0160 | F80: 100
A81: 100 | B81: 100 | C81: 110 | D81: 0161 | E81: 0161 | F81: 100
A82: 100 | B82: 100 | C82: 110 | D82: 0162 | E82: 0162 | F82: 100
A83: 100 | B83: 100 | C83: 110 | D83: 0164 | E83: 0164 | F83: 100
A84: 100 | B84: 100 | C84: 110 | D84: 0165 | E84: 0165 | F84: 100
A85: 100 | B85: 100 | C85: 110 | D85: 0166 | E85: 0166 | F85: 100
A86: 100 | B86: 100 | C86: 110 | D86: 0167 | E86: 0167 | F86: 100
A87: 100 | B87: 100 | C87: 110 | D87: 0168 | E87: 0168 | F87: 100
A88: 100 | B88: 100 | C88: 110 | D88: 0169 | E88: 0169 | F88: 100
A89: 100 | B89: 100 | C89: 110 | D89: 0170 | E89: 0170 | F89: 100
A90: 100 | B90: 100 | C90: 110 | D90: 0171 | E90: 0171 | F90: 100
A91: 100 | B91: 100 | C91: 110 | D91: 0172 | E91: 0172 | F91: 100
A92: 100 | B92: 100 | C92: 110 | D92: 0173 | E92: 0173 | F92: 100
A93: 100 | B93: 100 | C93: 110 | D93: 0174 | E93: 0174 | F93: 100
A94: 100 | B94: 100 | C94: 110 | D94: 0175 | E94: 0175 | F94: 100
A95: 100 | B95: 100 | C95: 110 | D95: 0176 | E95: 0176 | F95: 100
A96: 100 | B96: 100 | C96: 110 | D96: 0177 | E96: 0177 | F96: 100
A97: 100 | B97: 100 | C97: 110 | D97: 0178 | E97: 0178 | F97: 100
A98: 100 | B98: 100 | C98: 110 | D98: 0179 | E98: 0179 | F98: 100
A99: 100 | B99: 100 | C99: 110 | D99: 0180 | E99: 0180 | F99: 100
A100: 100 | B100: 100 | C100: 110 | D100: 0181 | E100: 0181 | F100: 100
A101: 100 | B101: 100 | C101: 110 | D101: 0182 | E101: 0182 | F101: 100
A102: 100 | B102: 100 | C102: 110 | D102: 0183 | E102: 0183 | F102: 100
A103: 100 | B103: 100 | C103: 110 | D103: 0184 | E103: 0184 | F103: 100
A104: 100 | B104: 100 | C104: 110 | D104: 0185 | E104: 0185 | F104: 100
A105: 100 | B105: 100 | C105: 110 | D105: 0186 | E105: 0186 | F105: 100
A106: 100 | B106: 100 | C106: 110 | D106: 0187 | E106: 0187 | F106: 100
A107: 100 | B107: 100 | C107: 110 | D107: 0188 | E107: 0188 | F107: 100
A108: 100 | B108: 100 | C108: 110 | D108: 0190 | E108: 0190 | F108: 100
A109: 100 | B109: 100 | C109: 110 | D109: 0191 | E109: 0191 | F109: 100
A110: 100 | B110: 100 | C110: 110 | D110: 0192 | E110: 0192 | F110: 100
A111: 100 | B111: 100 | C111: 110 | D111: 0193 | E111: 0193 | F111: 100
A112: 100 | B112: 100 | C112: 110 | D112: 0194 | E112: 0194 | F112: 100
A113: 100 | B113: 100 | C113: 110 | D113: 0195 | E113: 0195 | F113: 100
A114: 100 | B114: 100 | C114: 110 | D114: 0196 | E114: 0196 | F114: 100
A115: 100 | B115: 100 | C115: 110 | D115: 0198 | E115: 0198 | F115: 100
A116: 100 | B116: 100 | C116: 110 | D116: 0201 | E116: 0201 | F116: 100
A117: 100 | B117: 100 | C117: 110 | D117: 0202 | E117: 0202 | F117: 100
A118: 100 | B118: 100 | C118: 110 | D118: 0203 | E118: 0203 | F118: 100
A119: 100 | B119: 100 | C119: 110 | D119: 0204 | E119: 0204 | F119: 100
A120: 100 | B120: 100 | C120: 110 | D120: 0207 | E120: 0207 | F120: 100
A121: 100 | B121: 100 | C121: 110 | D121: 0208 | E121: 0208 | F121: 100
A122: 100 | B122: 100 | C122: 110 | D122: 0211 | E122: 0211 | F122: 100
A123: 100 | B123: 100 | C123: 110 | D123: 0212 | E123: 0212 | F123: 100
A124: 100 | B124: 100 | C124: 110 | D124: 0213 | E124: 0213 | F124: 100
A125: 100 | B125: 100 | C125: 110 | D125: 0214 | E125: 0214 | F125: 100
A126: 100 | B126: 100 | C126: 110 | D126: 0215 | E126: 0215 | F126: 100
A127: 100 | B127: 100 | C127: 110 | D127: 0216 | E127: 0216 | F127: 100
A128: 100 | B128: 100 | C128: 110 | D128: 0218 | E128: 0218 | F128: 100
A129: 100 | B129: 100 | C129: 110 | D129: 0230 | E129: 0230 | F129: 100
A130: 100 | B130: 100 | C130: 110 | D130: 0240 | E130: 0240 | F130: 100
A131: 100 | B131: 100 | C131: 110 | D131: 0242 | E131: 0242 | F131: =B131*1 -> 100
A132: 100 | B132: 100 | C132: 110 | D132: 0244 | E132: 0244 | F132: 100
A133: 100 | B133: 100 | C133: 110 | D133: 0245 | E133: 0245 | F133: 100
A134: 100 | B134: 100 | C134: 110 | D134: 0246 | E134: 0246 | F134: 100
A135: 100 | B135: 100 | C135: 110 | D135: 0247 | E135: 0247 | F135: 100
A136: 100 | B136: 100 | C136: 110 | D136: 0250 | E136: 0250 | F136: 100
A137: 100 | B137: 100 | C137: 110 | D137: 0251 | E137: 0251 | F137: 100
A138: 100 | B138: 100 | C138: 110 | D138: 0252 | E138: 0252 | F138: 100
A139: 100 | B139: 100 | C139: 110 | D139: 0253 | E139: 0253 | F139: 100
A140: 100 | B140: 100 | C140: 110 | D140: 0254 | E140: 0254 | F140: 100
A141: 100 | B141: 100 | C141: 110 | D141: 0255 | E141: 0255 | F141: 100
A142: 100 | B142: 100 | C142: 110 | D142: 0256 | E142: 0256 | F142: 100
A143: 100 | B143: 100 | C143: 110 | D143: 0257 | E143: 0257 | F143: 100
A144: 100 | B144: 100 | C144: 110 | D144: 0258 | E144: 0258 | F144: 100
A145: 100 | B145: 100 | C145: 110 | D145: 0259 | E145: 0259 | F145: 100
A146: 100 | B146: 100 | C146: 110 | D146: 0260 | E146: 0260 | F146: 100
A147: 100 | B147: 100 | C147: 110 | D147: 0262 | E147: 0262 | F147: 100
A148: 100 | B148: 100 | C148: 110 | D148: 0263 | E148: 0263 | F148: 100
A149: 100 | B149: 100 | C149: 110 | D149: 0264 | E149: 0264 | F149: 100
A150: 100 | B150: 100 | C150: 110 | D150: 0265 | E150: 0265 | F150: 100
A151: 100 | B151: 100 | C151: 110 | D151: 0266 | E151: 0266 | F151: 100
A152: 100 | B152: 100 | C152: 110 | D152: 0267 | E152: 0267 | F152: 100
A153: 100 | B153: 100 | C153: 110 | D153: 0268 | E153: 0268 | F153: 100
A154: 100 | B154: 100 | C154: 110 | D154: 0270 | E154: 0270 | F154: 100
A155: 100 | B155: 100 | C155: 110 | D155: 0271 | E155: 0271 | F155: 100
A156: 100 | B156: 100 | C156: 110 | D156: 0272 | E156: 0272 | F156: 100
A157: 100 | B157: 100 | C157: 110 | D157: 0273 | E157: 0273 | F157: 100
A158: 100 | B158: 100 | C158: 110 | D158: 0274 | E158: 0274 | F158: 100
A159: 100 | B159: 100 | C159: 110 | D159: 0275 | E159: 0275 | F159: 100
A160: 100 | B160: 100 | C160: 110 | D160: 0276 | E160: 0276 | F160: 100
A161: 100 | B161: 100 | C161: 110 | D161: 0277 | E161: 0277 | F161: 100
A162: 100 | B162: 100 | C162: 110 | D162: 0278 | E162: 0278 | F162: 100
A163: 100 | B163: 100 | C163: 110 | D163: 0279 | E163: 0279 | F163: 100
A164: 100 | B164: 100 | C164: 110 | D164: 0280 | E164: 0280 | F164: 100
A165: 100 | B165: 100 | C165: 110 | D165: 0281 | E165: 0281 | F165: 100
A166: 100 | B166: 100 | C166: 110 | D166: 0282 | E166: 0282 | F166: 100
A167: 100 | B167: 100 | C167: 110 | D167: 0283 | E167: 0283 | F167: 100
A168: 100 | B168: 100 | C168: 110 | D168: 0284 | E168: 0284 | F168: 100
A169: 100 | B169: 100 | C169: 110 | D169: 0286 | E169: 0286 | F169: 100
A170: 100 | B170: 100 | C170: 110 | D170: 0287 | E170: 0287 | F170: 100
A171: 100 | B171: 100 | C171: 110 | D171: 0301 | E171: 0301 | F171: 100
A172: 100 | B172: 100 | C172: 110 | D172: 0302 | E172: 0302 | F172: 100
A173: 100 | B173: 100 | C173: 110 | D173: 0303 | E173: 0303 | F173: 100
A174: 100 | B174: 100 | C174: 110 | D174: 0304 | E174: 0304 | F174: 100
A175: 100 | B175: 100 | C175: 110 | D175: 0305 | E175: 0305 | F175: 100
A176: 100 | B176: 100 | C176: 110 | D176: 0306 | E176: 0306 | F176: 100
A177: 100 | B177: 100 | C177: 110 | D177: 0307 | E177: 0307 | F177: 100
A178: 100 | B178: 100 | C178: 110 | D178: 0308 | E178: 0308 | F178: 100
A179: 100 | B179: 100 | C179: 110 | D179: 0309 | E179: 0309 | F179: 100
A180: 100 | B180: 100 | C180: 110 | D180: 0310 | E180: 0310 | F180: 100
A181: 100 | B181: 100 | C181: 110 | D181: 0311 | E181: 0311 | F181: 100
A182: 100 | B182: 100 | C182: 110 | D182: 0313 | E182: 0313 | F182: 100
A183: 100 | B183: 100 | C183: 110 | D183: 0314 | E183: 0314 | F183: 100
A184: 100 | B184: 100 | C184: 110 | D184: 0315 | E184: 0315 | F184: 100
A185: 100 | B185: 100 | C185: 110 | D185: 0316 | E185: 0316 | F185: 100
A186: 100 | B186: 100 | C186: 110 | D186: 0317 | E186: 0317 | F186: 100
A187: 100 | B187: 100 | C187: 110 | D187: 0318 | E187: 0318 | F187: 100
A188: 100 | B188: 100 | C188: 110 | D188: 0319 | E188: 0319 | F188: 100
A189: 100 | B189: 100 | C189: 110 | D189: 0320 | E189: 0320 | F189: 100
A190: 100 | B190: 100 | C190: 110 | D190: 0323 | E190: 0323 | F190: 100
A191: 100 | B191: 100 | C191: 110 | D191: 0330 | E191: 0330 | F191: 100
A192: 100 | B192: 100 | C192: 110 | D192: 0340 | E192: 0340 | F192: 100
A193: 100 | B193: 100 | C193: 110 | D193: 0341 | E193: 0341 | F193: 100
A194: 100 | B194: 100 | C194: 110 | D194: 0342 | E194: 0342 | F194: 100
A195: 100 | B195: 100 | C195: 110 | D195: 0349 | E195: 0349 | F195: =B195*1 -> 100
A196: 100 | B196: 100 | C196: 110 | D196: 0350 | E196: 0350 | F196: 100
A197: 100 | B197: 100 | C197: 110 | D197: 0351 | E197: 0351 | F197: 100
A198: 100 | B198: 100 | C198: 110 | D198: 0352 | E198: 0352 | F198: 100
A199: 100 | B199: 100 | C199: 110 | D199: 0353 | E199: 0353 | F199: 100
A200: 100 | B200: 100 | C200: 110 | D200: 0354 | E200: 0354 | F200: 100
... 13521 more rows

Sheet PostNr (hidden)
A1: Postnummer | B1: Poststed | C1: FylkeKode | D1: Fylke | E1: KommuneKode | F1: Kommune | G1: Postnnr TALL | H1: SK treff SAP | I1: SK input | J1: Navn SK | K1: Poststed2 | L1: TILLATELSE output! | M1: Fylke2 | N1: PostnummerKategoriKode | O1: PostnummerKategori | P1: Latitude | Q1: Longitude | R1: Postnnr TALL
A2: 0001 | B2: OSLO | C2: 03 | D2: OSLO | E2: 0301 | F2: OSLO | G2: =DimPostnummer[[#This Row],[Postnummer]]*1 -> 1 | H2: 100 | I2: 100 | J2: - Stor-Oslo | K2: =DimPostnummer[[#This Row],[Poststed]] -> OSLO | L2: =VLOOKUP(DimPostnummer[[#This Row],[SK input]],'Styr treff'!$A:$J,7,FALSE) -> 141 | M2: =DimPostnummer[[#This Row],[Fylke]] -> OSLO | N2: P | O2: Postbokser | P2: 59.9116000 | Q2: 10.7545000 | R2: =DimPostnummer[[#This Row],[Postnummer]]*1 -> 1
A3: 0010 | B3: OSLO | C3: 03 | D3: OSLO | E3: 0301 | F3: OSLO | G3: =DimPostnummer[[#This Row],[Postnummer]]*1 -> 10 | H3: 100 | I3: 100 | J3: - Stor-Oslo | K3: =DimPostnummer[[#This Row],[Poststed]] -> OSLO | L3: =VLOOKUP(DimPostnummer[[#This Row],[SK input]],'Styr treff'!$A:$J,7,FALSE) -> 141 | M3: =DimPostnummer[[#This Row],[Fylke]] -> OSLO | N3: B | O3: Både gateadresser og postbokser | P3: 59.9171400 | Q3: 10.7273700 | R3: =DimPostnummer[[#This Row],[Postnummer]]*1 -> 10
A4: 0015 | B4: OSLO | C4: 03 | D4: OSLO | E4: 0301 | F4: OSLO | G4: =DimPostnummer[[#This Row],[Postnummer]]*1 -> 15 | H4: 100 | I4: 100 | J4: - Stor-Oslo | K4: =DimPostnummer[[#This Row],[Poststed]] -> OSLO | L4: =VLOOKUP(DimPostnummer[[#This Row],[SK input]],'Styr treff'!$A:$J,7,FALSE) -> 141 | M4: =DimPostnummer[[#This Row],[Fylke]] -> OSLO | N4: B | O4: Både gateadresser og postbokser | P4: 59.9093000 | Q4: 10.7387000 | R4: =DimPostnummer[[#This Row],[Postnummer]]*1 -> 15
A5: 0018 | B5: OSLO | C5: 03 | D5: OSLO | E5: 0301 | F5: OSLO | G5: =DimPostnummer[[#This Row],[Postnummer]]*1 -> 18 | H5: Mangler | I5: 100 | J5: - Stor-Oslo | K5: =DimPostnummer[[#This Row],[Poststed]] -> OSLO | L5: =VLOOKUP(DimPostnummer[[#This Row],[SK input]],'Styr treff'!$A:$J,7,FALSE) -> 141 | M5: =DimPostnummer[[#This Row],[Fylke]] -> OSLO | N5: G | O5: Gateadresser og stedsadresser | P5: 59.9173000 | Q5: 10.5050000 | R5: =DimPostnummer[[#This Row],[Postnummer]]*1 -> 18
A6: 0021 | B6: OSLO | C6: 03 | D6: OSLO | E6: 0301 | F6: OSLO | G6: =DimPostnummer[[#This Row],[Postnummer]]*1 -> 21 | H6: 100 | I6: 100 | J6: - Stor-Oslo | K6: =DimPostnummer[[#This Row],[Poststed]] -> OSLO | L6: =VLOOKUP(DimPostnummer[[#This Row],[SK input]],'Styr treff'!$A:$J,7,FALSE) -> 141 | M6: =DimPostnummer[[#This Row],[Fylke]] -> OSLO | N6: P | O6: Postbokser | P6: 59.9096580 | Q6: 10.7253920 | R6: =DimPostnummer[[#This Row],[Postnummer]]*1 -> 21
A7: 0024 | B7: OSLO | C7: 03 | D7: OSLO | E7: 0301 | F7: OSLO | G7: =DimPostnummer[[#This Row],[Postnummer]]*1 -> 24 | H7: 100 | I7: 100 | J7: - Stor-Oslo | K7: =DimPostnummer[[#This Row],[Poststed]] -> OSLO | L7: =VLOOKUP(DimPostnummer[[#This Row],[SK input]],'Styr treff'!$A:$J,7,FALSE) -> 141 | M7: =DimPostnummer[[#This Row],[Fylke]] -> OSLO | N7: P | O7: Postbokser | P7: 59.9116000 | Q7: 10.7545000 | R7: =DimPostnummer[[#This Row],[Postnummer]]*1 -> 24
A8: 0025 | B8: OSLO | C8: 03 | D8: OSLO | E8: 0301 | F8: OSLO | G8: =DimPostnummer[[#This Row],[Postnummer]]*1 -> 25 | H8: 100 | I8: 100 | J8: - Stor-Oslo | K8: =DimPostnummer[[#This Row],[Poststed]] -> OSLO | L8: =VLOOKUP(DimPostnummer[[#This Row],[SK input]],'Styr treff'!$A:$J,7,FALSE) -> 141 | M8: =DimPostnummer[[#This Row],[Fylke]] -> OSLO | N8: P | O8: Postbokser | P8: 59.9131500 | Q8: 10.7541700 | R8: =DimPostnummer[[#This Row],[Postnummer]]*1 -> 25
A9: 0026 | B9: OSLO | C9: 03 | D9: OSLO | E9: 0301 | F9: OSLO | G9: =DimPostnummer[[#This Row],[Postnummer]]*1 -> 26 | H9: 100 | I9: 100 | J9: - Stor-Oslo | K9: =DimPostnummer[[#This Row],[Poststed]] -> OSLO | L9: =VLOOKUP(DimPostnummer[[#This Row],[SK input]],'Styr treff'!$A:$J,7,FALSE) -> 141 | M9: =DimPostnummer[[#This Row],[Fylke]] -> OSLO | N9: G | O9: Gateadresser og stedsadresser | P9: 59.9132100 | Q9: 10.7403400 | R9: =DimPostnummer[[#This Row],[Postnummer]]*1 -> 26
A10: 0028 | B10: OSLO | C10: 03 | D10: OSLO | E10: 0301 | F10: OSLO | G10: =DimPostnummer[[#This Row],[Postnummer]]*1 -> 28 | H10: 100 | I10: 100 | J10: - Stor-Oslo | K10: =DimPostnummer[[#This Row],[Poststed]] -> OSLO | L10: =VLOOKUP(DimPostnummer[[#This Row],[SK input]],'Styr treff'!$A:$J,7,FALSE) -> 141 | M10: =DimPostnummer[[#This Row],[Fylke]] -> OSLO | N10: P | O10: Postbokser | P10: 59.9143200 | Q10: 10.7492700 | R10: =DimPostnummer[[#This Row],[Postnummer]]*1 -> 28
A11: 0030 | B11: OSLO | C11: 03 | D11: OSLO | E11: 0301 | F11: OSLO | G11: =DimPostnummer[[#This Row],[Postnummer]]*1 -> 30 | H11: 100 | I11: 100 | J11: - Stor-Oslo | K11: =DimPostnummer[[#This Row],[Poststed]] -> OSLO | L11: =VLOOKUP(DimPostnummer[[#This Row],[SK input]],'Styr treff'!$A:$J,7,FALSE) -> 141 | M11: =DimPostnummer[[#This Row],[Fylke]] -> OSLO | N11: P | O11: Postbokser | P11: 59.9153700 | Q11: 10.7457800 | R11: =DimPostnummer[[#This Row],[Postnummer]]*1 -> 30
A12: 0031 | B12: OSLO | C12: 03 | D12: OSLO | E12: 0301 | F12: OSLO | G12: =DimPostnummer[[#This Row],[Postnummer]]*1 -> 31 | H12: 100 | I12: 100 | J12: - Stor-Oslo | K12: =DimPostnummer[[#This Row],[Poststed]] -> OSLO | L12: =VLOOKUP(DimPostnummer[[#This Row],[SK input]],'Styr treff'!$A:$J,7,FALSE) -> 141 | M12: =DimPostnummer[[#This Row],[Fylke]] -> OSLO | N12: P | O12: Postbokser | P12: 59.9153700 | Q12: 10.7457800 | R12: =DimPostnummer[[#This Row],[Postnummer]]*1 -> 31
A13: 0032 | B13: OSLO | C13: 03 | D13: OSLO | E13: 0301 | F13: OSLO | G13: =DimPostnummer[[#This Row],[Postnummer]]*1 -> 32 | H13: 100 | I13: 100 | J13: - Stor-Oslo | K13: =DimPostnummer[[#This Row],[Poststed]] -> OSLO | L13: =VLOOKUP(DimPostnummer[[#This Row],[SK input]],'Styr treff'!$A:$J,7,FALSE) -> 141 | M13: =DimPostnummer[[#This Row],[Fylke]] -> OSLO | N13: P | O13: Postbokser | P13: 59.9153700 | Q13: 10.7457800 | R13: =DimPostnummer[[#This Row],[Postnummer]]*1 -> 32
A14: 0033 | B14: OSLO | C14: 03 | D14: OSLO | E14: 0301 | F14: OSLO | G14: =DimPostnummer[[#This Row],[Postnummer]]*1 -> 33 | H14: 100 | I14: 100 | J14: - Stor-Oslo | K14: =DimPostnummer[[#This Row],[Poststed]] -> OSLO | L14: =VLOOKUP(DimPostnummer[[#This Row],[SK input]],'Styr treff'!$A:$J,7,FALSE) -> 141 | M14: =DimPostnummer[[#This Row],[Fylke]] -> OSLO | N14: P | O14: Postbokser | P14: 59.9153700 | Q14: 10.7457800 | R14: =DimPostnummer[[#This Row],[Postnummer]]*1 -> 33
A15: 0034 | B15: OSLO | C15: 03 | D15: OSLO | E15: 0301 | F15: OSLO | G15: =DimPostnummer[[#This Row],[Postnummer]]*1 -> 34 | H15: 100 | I15: 100 | J15: - Stor-Oslo | K15: =DimPostnummer[[#This Row],[Poststed]] -> OSLO | L15: =VLOOKUP(DimPostnummer[[#This Row],[SK input]],'Styr treff'!$A:$J,7,FALSE) -> 141 | M15: =DimPostnummer[[#This Row],[Fylke]] -> OSLO | N15: P | O15: Postbokser | P15: 59.9153700 | Q15: 10.7457800 | R15: =DimPostnummer[[#This Row],[Postnummer]]*1 -> 34
A16: 0037 | B16: OSLO | C16: 03 | D16: OSLO | E16: 0301 | F16: OSLO | G16: =DimPostnummer[[#This Row],[Postnummer]]*1 -> 37 | H16: 100 | I16: 100 | J16: - Stor-Oslo | K16: =DimPostnummer[[#This Row],[Poststed]] -> OSLO | L16: =VLOOKUP(DimPostnummer[[#This Row],[SK input]],'Styr treff'!$A:$J,7,FALSE) -> 141 | M16: =DimPostnummer[[#This Row],[Fylke]] -> OSLO | N16: F | O16: Flere bruksområder | P16: 59.9124600 | Q16: 10.7340800 | R16: =DimPostnummer[[#This Row],[Postnummer]]*1 -> 37
A17: 0040 | B17: OSLO | C17: 03 | D17: OSLO | E17: 0301 | F17: OSLO | G17: =DimPostnummer[[#This Row],[Postnummer]]*1 -> 40 | H17: 100 | I17: 100 | J17: - Stor-Oslo | K17: =DimPostnummer[[#This Row],[Poststed]] -> OSLO | L17: =VLOOKUP(DimPostnummer[[#This Row],[SK input]],'Styr treff'!$A:$J,7,FALSE) -> 141 | M17: =DimPostnummer[[#This Row],[Fylke]] -> OSLO | N17: S | O17: Servicepostnummer | P17: 59.9424900 | Q17: 10.7604100 | R17: =DimPostnummer[[#This Row],[Postnummer]]*1 -> 40
A18: 0045 | B18: OSLO | C18: 03 | D18: OSLO | E18: 0301 | F18: OSLO | G18: =DimPostnummer[[#This Row],[Postnummer]]*1 -> 45 | H18: 100 | I18: 100 | J18: - Stor-Oslo | K18: =DimPostnummer[[#This Row],[Poststed]] -> OSLO | L18: =VLOOKUP(DimPostnummer[[#This Row],[SK input]],'Styr treff'!$A:$J,7,FALSE) -> 141 | M18: =DimPostnummer[[#This Row],[Fylke]] -> OSLO | N18: F | O18: Flere bruksområder | P18: 59.9635700 | Q18: 10.9129000 | R18: =DimPostnummer[[#This Row],[Postnummer]]*1 -> 45
A19: 0046 | B19: OSLO | C19: 03 | D19: OSLO | E19: 0301 | F19: OSLO | G19: =DimPostnummer[[#This Row],[Postnummer]]*1 -> 46 | H19: 100 | I19: 100 | J19: - Stor-Oslo | K19: =DimPostnummer[[#This Row],[Poststed]] -> OSLO | L19: =VLOOKUP(DimPostnummer[[#This Row],[SK input]],'Styr treff'!$A:$J,7,FALSE) -> 141 | M19: =DimPostnummer[[#This Row],[Fylke]] -> OSLO | N19: K | O19: Kunde med eget postnummer | P19: 59.9635700 | Q19: 10.9129000 | R19: =DimPostnummer[[#This Row],[Postnummer]]*1 -> 46
A20: 0047 | B20: OSLO | C20: 03 | D20: OSLO | E20: 0301 | F20: OSLO | G20: =DimPostnummer[[#This Row],[Postnummer]]*1 -> 47 | H20: 100 | I20: 100 | J20: - Stor-Oslo | K20: =DimPostnummer[[#This Row],[Poststed]] -> OSLO | L20: =VLOOKUP(DimPostnummer[[#This Row],[SK input]],'Styr treff'!$A:$J,7,FALSE) -> 141 | M20: =DimPostnummer[[#This Row],[Fylke]] -> OSLO | N20: K | O20: Kunde med eget postnummer | P20: 59.9635700 | Q20: 10.9129000 | R20: =DimPostnummer[[#This Row],[Postnummer]]*1 -> 47
A21: 0048 | B21: OSLO | C21: 03 | D21: OSLO | E21: 0301 | F21: OSLO | G21: =DimPostnummer[[#This Row],[Postnummer]]*1 -> 48 | H21: 100 | I21: 100 | J21: - Stor-Oslo | K21: =DimPostnummer[[#This Row],[Poststed]] -> OSLO | L21: =VLOOKUP(DimPostnummer[[#This Row],[SK input]],'Styr treff'!$A:$J,7,FALSE) -> 141 | M21: =DimPostnummer[[#This Row],[Fylke]] -> OSLO | N21: K | O21: Kunde med eget postnummer | P21: 59.9109100 | Q21: 10.7506400 | R21: =DimPostnummer[[#This Row],[Postnummer]]*1 -> 48
A22: 0050 | B22: OSLO | C22: 03 | D22: OSLO | E22: 0301 | F22: OSLO | G22: =DimPostnummer[[#This Row],[Postnummer]]*1 -> 50 | H22: 100 | I22: 100 | J22: - Stor-Oslo | K22: =DimPostnummer[[#This Row],[Poststed]] -> OSLO | L22: =VLOOKUP(DimPostnummer[[#This Row],[SK input]],'Styr treff'!$A:$J,7,FALSE) -> 141 | M22: =DimPostnummer[[#This Row],[Fylke]] -> OSLO | N22: G | O22: Gateadresser og stedsadresser | P22: 59.9126700 | Q22: 10.7522400 | R22: =DimPostnummer[[#This Row],[Postnummer]]*1 -> 50
A23: 0051 | B23: OSLO | C23: 03 | D23: OSLO | E23: 0301 | F23: OSLO | G23: =DimPostnummer[[#This Row],[Postnummer]]*1 -> 51 | H23: 100 | I23: 100 | J23: - Stor-Oslo | K23: =DimPostnummer[[#This Row],[Poststed]] -> OSLO | L23: =VLOOKUP(DimPostnummer[[#This Row],[SK input]],'Styr treff'!$A:$J,7,FALSE) -> 141 | M23: =DimPostnummer[[#This Row],[Fylke]] -> OSLO | N23: P | O23: Postbokser | P23: 59.9116000 | Q23: 10.7545000 | R23: =DimPostnummer[[#This Row],[Postnummer]]*1 -> 51
A24: 0055 | B24: OSLO | C24: 03 | D24: OSLO | E24: 0301 | F24: OSLO | G24: =DimPostnummer[[#This Row],[Postnummer]]*1 -> 55 | H24: 100 | I24: 100 | J24: - Stor-Oslo | K24: =DimPostnummer[[#This Row],[Poststed]] -> OSLO | L24: =VLOOKUP(DimPostnummer[[#This Row],[SK input]],'Styr treff'!$A:$J,7,FALSE) -> 141 | M24: =DimPostnummer[[#This Row],[Fylke]] -> OSLO | N24: F | O24: Flere bruksområder | P24: 59.9124900 | Q24: 10.7467900 | R24: =DimPostnummer[[#This Row],[Postnummer]]*1 -> 55
A25: 0060 | B25: OSLO | C25: 03 | D25: OSLO | E25: 0301 | F25: OSLO | G25: =DimPostnummer[[#This Row],[Postnummer]]*1 -> 60 | H25: Mangler | I25: 100 | J25: - Stor-Oslo | K25: =DimPostnummer[[#This Row],[Poststed]] -> OSLO | L25: =VLOOKUP(DimPostnummer[[#This Row],[SK input]],'Styr treff'!$A:$J,7,FALSE) -> 141 | M25: =DimPostnummer[[#This Row],[Fylke]] -> OSLO | N25: S | O25: Servicepostnummer | P25: (blank) | Q25: (blank) | R25: =DimPostnummer[[#This Row],[Postnummer]]*1 -> 60
A26: 0080 | B26: OSLO | C26: 03 | D26: OSLO | E26: 0301 | F26: OSLO | G26: =DimPostnummer[[#This Row],[Postnummer]]*1 -> 80 | H26: 100 | I26: 100 | J26: - Stor-Oslo | K26: =DimPostnummer[[#This Row],[Poststed]] -> OSLO | L26: =VLOOKUP(DimPostnummer[[#This Row],[SK input]],'Styr treff'!$A:$J,7,FALSE) -> 141 | M26: =DimPostnummer[[#This Row],[Fylke]] -> OSLO | N26: K | O26: Kunde med eget postnummer | P26: 59.9057000 | Q26: 10.6281000 | R26: =DimPostnummer[[#This Row],[Postnummer]]*1 -> 80
A27: 0101 | B27: OSLO | C27: 03 | D27: OSLO | E27: 0301 | F27: OSLO | G27: =DimPostnummer[[#This Row],[Postnummer]]*1 -> 101 | H27: 100 | I27: 100 | J27: - Stor-Oslo | K27: =DimPostnummer[[#This Row],[Poststed]] -> OSLO | L27: =VLOOKUP(DimPostnummer[[#This Row],[SK input]],'Styr treff'!$A:$J,7,FALSE) -> 141 | M27: =DimPostnummer[[#This Row],[Fylke]] -> OSLO | N27: P | O27: Postbokser | P27: 59.9138000 | Q27: 10.7387000 | R27: =DimPostnummer[[#This Row],[Postnummer]]*1 -> 101
A28: 0102 | B28: OSLO | C28: 03 | D28: OSLO | E28: 0301 | F28: OSLO | G28: =DimPostnummer[[#This Row],[Postnummer]]*1 -> 102 | H28: 100 | I28: 100 | J28: - Stor-Oslo | K28: =DimPostnummer[[#This Row],[Poststed]] -> OSLO | L28: =VLOOKUP(DimPostnummer[[#This Row],[SK input]],'Styr treff'!$A:$J,7,FALSE) -> 141 | M28: =DimPostnummer[[#This Row],[Fylke]] -> OSLO | N28: P | O28: Postbokser | P28: 59.9138000 | Q28: 10.7387000 | R28: =DimPostnummer[[#This Row],[Postnummer]]*1 -> 102
A29: 0103 | B29: OSLO | C29: 03 | D29: OSLO | E29: 0301 | F29: OSLO | G29: =DimPostnummer[[#This Row],[Postnummer]]*1 -> 103 | H29: 100 | I29: 100 | J29: - Stor-Oslo | K29: =DimPostnummer[[#This Row],[Poststed]] -> OSLO | L29: =VLOOKUP(DimPostnummer[[#This Row],[SK input]],'Styr treff'!$A:$J,7,FALSE) -> 141 | M29: =DimPostnummer[[#This Row],[Fylke]] -> OSLO | N29: P | O29: Postbokser | P29: 59.9138000 | Q29: 10.7387000 | R29: =DimPostnummer[[#This Row],[Postnummer]]*1 -> 103
A30: 0104 | B30: OSLO | C30: 03 | D30: OSLO | E30: 0301 | F30: OSLO | G30: =DimPostnummer[[#This Row],[Postnummer]]*1 -> 104 | H30: 100 | I30: 100 | J30: - Stor-Oslo | K30: =DimPostnummer[[#This Row],[Poststed]] -> OSLO | L30: =VLOOKUP(DimPostnummer[[#This Row],[SK input]],'Styr treff'!$A:$J,7,FALSE) -> 141 | M30: =DimPostnummer[[#This Row],[Fylke]] -> OSLO | N30: P | O30: Postbokser | P30: 59.9138000 | Q30: 10.7387000 | R30: =DimPostnummer[[#This Row],[Postnummer]]*1 -> 104
A31: 0105 | B31: OSLO | C31: 03 | D31: OSLO | E31: 0301 | F31: OSLO | G31: =DimPostnummer[[#This Row],[Postnummer]]*1 -> 105 | H31: 100 | I31: 100 | J31: - Stor-Oslo | K31: =DimPostnummer[[#This Row],[Poststed]] -> OSLO | L31: =VLOOKUP(DimPostnummer[[#This Row],[SK input]],'Styr treff'!$A:$J,7,FALSE) -> 141 | M31: =DimPostnummer[[#This Row],[Fylke]] -> OSLO | N31: P | O31: Postbokser | P31: 59.9138000 | Q31: 10.7387000 | R31: =DimPostnummer[[#This Row],[Postnummer]]*1 -> 105
A32: 0106 | B32: OSLO | C32: 03 | D32: OSLO | E32: 0301 | F32: OSLO | G32: =DimPostnummer[[#This Row],[Postnummer]]*1 -> 106 | H32: 100 | I32: 100 | J32: - Stor-Oslo | K32: =DimPostnummer[[#This Row],[Poststed]] -> OSLO | L32: =VLOOKUP(DimPostnummer[[#This Row],[SK input]],'Styr treff'!$A:$J,7,FALSE) -> 141 | M32: =DimPostnummer[[#This Row],[Fylke]] -> OSLO | N32: P | O32: Postbokser | P32: 59.9138000 | Q32: 10.7387000 | R32: =DimPostnummer[[#This Row],[Postnummer]]*1 -> 106
A33: 0107 | B33: OSLO | C33: 03 | D33: OSLO | E33: 0301 | F33: OSLO | G33: =DimPostnummer[[#This Row],[Postnummer]]*1 -> 107 | H33: 100 | I33: 100 | J33: - Stor-Oslo | K33: =DimPostnummer[[#This Row],[Poststed]] -> OSLO | L33: =VLOOKUP(DimPostnummer[[#This Row],[SK input]],'Styr treff'!$A:$J,7,FALSE) -> 141 | M33: =DimPostnummer[[#This Row],[Fylke]] -> OSLO | N33: P | O33: Postbokser | P33: 59.9138000 | Q33: 10.7387000 | R33: =DimPostnummer[[#This Row],[Postnummer]]*1 -> 107
A34: 0109 | B34: OSLO | C34: 03 | D34: OSLO | E34: 0301 | F34: OSLO | G34: =DimPostnummer[[#This Row],[Postnummer]]*1 -> 109 | H34: Mangler | I34: 100 | J34: - Stor-Oslo | K34: =DimPostnummer[[#This Row],[Poststed]] -> OSLO | L34: =VLOOKUP(DimPostnummer[[#This Row],[SK input]],'Styr treff'!$A:$J,7,FALSE) -> 141 | M34: =DimPostnummer[[#This Row],[Fylke]] -> OSLO | N34: P | O34: Postbokser | P34: 59.9104000 | Q34: 10.7443000 | R34: =DimPostnummer[[#This Row],[Postnummer]]*1 -> 109
A35: 0110 | B35: OSLO | C35: 03 | D35: OSLO | E35: 0301 | F35: OSLO | G35: =DimPostnummer[[#This Row],[Postnummer]]*1 -> 110 | H35: 100 | I35: 100 | J35: - Stor-Oslo | K35: =DimPostnummer[[#This Row],[Poststed]] -> OSLO | L35: =VLOOKUP(DimPostnummer[[#This Row],[SK input]],'Styr treff'!$A:$J,7,FALSE) -> 141 | M35: =DimPostnummer[[#This Row],[Fylke]] -> OSLO | N35: P | O35: Postbokser | P35: 59.9134000 | Q35: 10.7313000 | R35: =DimPostnummer[[#This Row],[Postnummer]]*1 -> 110
A36: 0111 | B36: OSLO | C36: 03 | D36: OSLO | E36: 0301 | F36: OSLO | G36: =DimPostnummer[[#This Row],[Postnummer]]*1 -> 111 | H36: 100 | I36: 100 | J36: - Stor-Oslo | K36: =DimPostnummer[[#This Row],[Poststed]] -> OSLO | L36: =VLOOKUP(DimPostnummer[[#This Row],[SK input]],'Styr treff'!$A:$J,7,FALSE) -> 141 | M36: =DimPostnummer[[#This Row],[Fylke]] -> OSLO | N36: P | O36: Postbokser | P36: 59.9134000 | Q36: 10.7313000 | R36: =DimPostnummer[[#This Row],[Postnummer]]*1 -> 111
A37: 0112 | B37: OSLO | C37: 03 | D37: OSLO | E37: 0301 | F37: OSLO | G37: =DimPostnummer[[#This Row],[Postnummer]]*1 -> 112 | H37: 100 | I37: 100 | J37: - Stor-Oslo | K37: =DimPostnummer[[#This Row],[Poststed]] -> OSLO | L37: =VLOOKUP(DimPostnummer[[#This Row],[SK input]],'Styr treff'!$A:$J,7,FALSE) -> 141 | M37: =DimPostnummer[[#This Row],[Fylke]] -> OSLO | N37: P | O37: Postbokser | P37: 59.9134000 | Q37: 10.7313000 | R37: =DimPostnummer[[#This Row],[Postnummer]]*1 -> 112
A38: 0113 | B38: OSLO | C38: 03 | D38: OSLO | E38: 0301 | F38: OSLO | G38: =DimPostnummer[[#This Row],[Postnummer]]*1 -> 113 | H38: 100 | I38: 100 | J38: - Stor-Oslo | K38: =DimPostnummer[[#This Row],[Poststed]] -> OSLO | L38: =VLOOKUP(DimPostnummer[[#This Row],[SK input]],'Styr treff'!$A:$J,7,FALSE) -> 141 | M38: =DimPostnummer[[#This Row],[Fylke]] -> OSLO | N38: P | O38: Postbokser | P38: 59.9134000 | Q38: 10.7313000 | R38: =DimPostnummer[[#This Row],[Postnummer]]*1 -> 113
A39: 0114 | B39: OSLO | C39: 03 | D39: OSLO | E39: 0301 | F39: OSLO | G39: =DimPostnummer[[#This Row],[Postnummer]]*1 -> 114 | H39: 100 | I39: 100 | J39: - Stor-Oslo | K39: =DimPostnummer[[#This Row],[Poststed]] -> OSLO | L39: =VLOOKUP(DimPostnummer[[#This Row],[SK input]],'Styr treff'!$A:$J,7,FALSE) -> 141 | M39: =DimPostnummer[[#This Row],[Fylke]] -> OSLO | N39: P | O39: Postbokser | P39: 59.9134000 | Q39: 10.7313000 | R39: =DimPostnummer[[#This Row],[Postnummer]]*1 -> 114
A40: 0115 | B40: OSLO | C40: 03 | D40: OSLO | E40: 0301 | F40: OSLO | G40: =DimPostnummer[[#This Row],[Postnummer]]*1 -> 115 | H40: 100 | I40: 100 | J40: - Stor-Oslo | K40: =DimPostnummer[[#This Row],[Poststed]] -> OSLO | L40: =VLOOKUP(DimPostnummer[[#This Row],[SK input]],'Styr treff'!$A:$J,7,FALSE) -> 141 | M40: =DimPostnummer[[#This Row],[Fylke]] -> OSLO | N40: P | O40: Postbokser | P40: 59.9134000 | Q40: 10.7313000 | R40: =DimPostnummer[[#This Row],[Postnummer]]*1 -> 115
A41: 0116 | B41: OSLO | C41: 03 | D41: OSLO | E41: 0301 | F41: OSLO | G41: =DimPostnummer[[#This Row],[Postnummer]]*1 -> 116 | H41: 100 | I41: 100 | J41: - Stor-Oslo | K41: =DimPostnummer[[#This Row],[Poststed]] -> OSLO | L41: =VLOOKUP(DimPostnummer[[#This Row],[SK input]],'Styr treff'!$A:$J,7,FALSE) -> 141 | M41: =DimPostnummer[[#This Row],[Fylke]] -> OSLO | N41: P | O41: Postbokser | P41: 59.9134000 | Q41: 10.7313000 | R41: =DimPostnummer[[#This Row],[Postnummer]]*1 -> 116
A42: 0117 | B42: OSLO | C42: 03 | D42: OSLO | E42: 0301 | F42: OSLO | G42: =DimPostnummer[[#This Row],[Postnummer]]*1 -> 117 | H42: 100 | I42: 100 | J42: - Stor-Oslo | K42: =DimPostnummer[[#This Row],[Poststed]] -> OSLO | L42: =VLOOKUP(DimPostnummer[[#This Row],[SK input]],'Styr treff'!$A:$J,7,FALSE) -> 141 | M42: =DimPostnummer[[#This Row],[Fylke]] -> OSLO | N42: P | O42: Postbokser | P42: 59.9134000 | Q42: 10.7313000 | R42: =DimPostnummer[[#This Row],[Postnummer]]*1 -> 117
A43: 0118 | B43: OSLO | C43: 03 | D43: OSLO | E43: 0301 | F43: OSLO | G43: =DimPostnummer[[#This Row],[Postnummer]]*1 -> 118 | H43: 100 | I43: 100 | J43: - Stor-Oslo | K43: =DimPostnummer[[#This Row],[Poststed]] -> OSLO | L43: =VLOOKUP(DimPostnummer[[#This Row],[SK input]],'Styr treff'!$A:$J,7,FALSE) -> 141 | M43: =DimPostnummer[[#This Row],[Fylke]] -> OSLO | N43: P | O43: Postbokser | P43: 59.9134000 | Q43: 10.7313000 | R43: =DimPostnummer[[#This Row],[Postnummer]]*1 -> 118
A44: 0119 | B44: OSLO | C44: 03 | D44: OSLO | E44: 0301 | F44: OSLO | G44: =DimPostnummer[[#This Row],[Postnummer]]*1 -> 119 | H44: 100 | I44: 100 | J44: - Stor-Oslo | K44: =DimPostnummer[[#This Row],[Poststed]] -> OSLO | L44: =VLOOKUP(DimPostnummer[[#This Row],[SK input]],'Styr treff'!$A:$J,7,FALSE) -> 141 | M44: =DimPostnummer[[#This Row],[Fylke]] -> OSLO | N44: P | O44: Postbokser | P44: 59.9134000 | Q44: 10.7313000 | R44: =DimPostnummer[[#This Row],[Postnummer]]*1 -> 119
A45: 0120 | B45: OSLO | C45: 03 | D45: OSLO | E45: 0301 | F45: OSLO | G45: =DimPostnummer[[#This Row],[Postnummer]]*1 -> 120 | H45: 100 | I45: 100 | J45: - Stor-Oslo | K45: =DimPostnummer[[#This Row],[Poststed]] -> OSLO | L45: =VLOOKUP(DimPostnummer[[#This Row],[SK input]],'Styr treff'!$A:$J,7,FALSE) -> 141 | M45: =DimPostnummer[[#This Row],[Fylke]] -> OSLO | N45: P | O45: Postbokser | P45: 59.9138000 | Q45: 10.7387000 | R45: =DimPostnummer[[#This Row],[Postnummer]]*1 -> 120
A46: 0121 | B46: OSLO | C46: 03 | D46: OSLO | E46: 0301 | F46: OSLO | G46: =DimPostnummer[[#This Row],[Postnummer]]*1 -> 121 | H46: 100 | I46: 100 | J46: - Stor-Oslo | K46: =DimPostnummer[[#This Row],[Poststed]] -> OSLO | L46: =VLOOKUP(DimPostnummer[[#This Row],[SK input]],'Styr treff'!$A:$J,7,FALSE) -> 141 | M46: =DimPostnummer[[#This Row],[Fylke]] -> OSLO | N46: P | O46: Postbokser | P46: 59.9134000 | Q46: 10.7313000 | R46: =DimPostnummer[[#This Row],[Postnummer]]*1 -> 121
A47: 0122 | B47: OSLO | C47: 03 | D47: OSLO | E47: 0301 | F47: OSLO | G47: =DimPostnummer[[#This Row],[Postnummer]]*1 -> 122 | H47: 100 | I47: 100 | J47: - Stor-Oslo | K47: =DimPostnummer[[#This Row],[Poststed]] -> OSLO | L47: =VLOOKUP(DimPostnummer[[#This Row],[SK input]],'Styr treff'!$A:$J,7,FALSE) -> 141 | M47: =DimPostnummer[[#This Row],[Fylke]] -> OSLO | N47: P | O47: Postbokser | P47: 59.9130000 | Q47: 10.7239000 | R47: =DimPostnummer[[#This Row],[Postnummer]]*1 -> 122
A48: 0123 | B48: OSLO | C48: 03 | D48: OSLO | E48: 0301 | F48: OSLO | G48: =DimPostnummer[[#This Row],[Postnummer]]*1 -> 123 | H48: 100 | I48: 100 | J48: - Stor-Oslo | K48: =DimPostnummer[[#This Row],[Poststed]] -> OSLO | L48: =VLOOKUP(DimPostnummer[[#This Row],[SK input]],'Styr treff'!$A:$J,7,FALSE) -> 141 | M48: =DimPostnummer[[#This Row],[Fylke]] -> OSLO | N48: P | O48: Postbokser | P48: 59.9126000 | Q48: 10.7165000 | R48: =DimPostnummer[[#This Row],[Postnummer]]*1 -> 123
A49: 0124 | B49: OSLO | C49: 03 | D49: OSLO | E49: 0301 | F49: OSLO | G49: =DimPostnummer[[#This Row],[Postnummer]]*1 -> 124 | H49: 100 | I49: 100 | J49: - Stor-Oslo | K49: =DimPostnummer[[#This Row],[Poststed]] -> OSLO | L49: =VLOOKUP(DimPostnummer[[#This Row],[SK input]],'Styr treff'!$A:$J,7,FALSE) -> 141 | M49: =DimPostnummer[[#This Row],[Fylke]] -> OSLO | N49: P | O49: Postbokser | P49: 59.9122000 | Q49: 10.7091000 | R49: =DimPostnummer[[#This Row],[Postnummer]]*1 -> 124
A50: 0125 | B50: OSLO | C50: 03 | D50: OSLO | E50: 0301 | F50: OSLO | G50: =DimPostnummer[[#This Row],[Postnummer]]*1 -> 125 | H50: 100 | I50: 100 | J50: - Stor-Oslo | K50: =DimPostnummer[[#This Row],[Poststed]] -> OSLO | L50: =VLOOKUP(DimPostnummer[[#This Row],[SK input]],'Styr treff'!$A:$J,7,FALSE) -> 141 | M50: =DimPostnummer[[#This Row],[Fylke]] -> OSLO | N50: P | O50: Postbokser | P50: 59.9118000 | Q50: 10.7017000 | R50: =DimPostnummer[[#This Row],[Postnummer]]*1 -> 125
A51: 0128 | B51: OSLO | C51: 03 | D51: OSLO | E51: 0301 | F51: OSLO | G51: =DimPostnummer[[#This Row],[Postnummer]]*1 -> 128 | H51: 100 | I51: 100 | J51: - Stor-Oslo | K51: =DimPostnummer[[#This Row],[Poststed]] -> OSLO | L51: =VLOOKUP(DimPostnummer[[#This Row],[SK input]],'Styr treff'!$A:$J,7,FALSE) -> 141 | M51: =DimPostnummer[[#This Row],[Fylke]] -> OSLO | N51: P | O51: Postbokser | P51: 59.9152300 | Q51: 10.7433000 | R51: =DimPostnummer[[#This Row],[Postnummer]]*1 -> 128
A52: 0129 | B52: OSLO | C52: 03 | D52: OSLO | E52: 0301 | F52: OSLO | G52: =DimPostnummer[[#This Row],[Postnummer]]*1 -> 129 | H52: 100 | I52: 100 | J52: - Stor-Oslo | K52: =DimPostnummer[[#This Row],[Poststed]] -> OSLO | L52: =VLOOKUP(DimPostnummer[[#This Row],[SK input]],'Styr treff'!$A:$J,7,FALSE) -> 141 | M52: =DimPostnummer[[#This Row],[Fylke]] -> OSLO | N52: P | O52: Postbokser | P52: 59.9180000 | Q52: 10.7400000 | R52: =DimPostnummer[[#This Row],[Postnummer]]*1 -> 129
A53: 0130 | B53: OSLO | C53: 03 | D53: OSLO | E53: 0301 | F53: OSLO | G53: =DimPostnummer[[#This Row],[Postnummer]]*1 -> 130 | H53: 100 | I53: 100 | J53: - Stor-Oslo | K53: =DimPostnummer[[#This Row],[Poststed]] -> OSLO | L53: =VLOOKUP(DimPostnummer[[#This Row],[SK input]],'Styr treff'!$A:$J,7,FALSE) -> 141 | M53: =DimPostnummer[[#This Row],[Fylke]] -> OSLO | N53: P | O53: Postbokser | P53: 59.9180000 | Q53: 10.7400000 | R53: =DimPostnummer[[#This Row],[Postnummer]]*1 -> 130
A54: 0131 | B54: OSLO | C54: 03 | D54: OSLO | E54: 0301 | F54: OSLO | G54: =DimPostnummer[[#This Row],[Postnummer]]*1 -> 131 | H54: 100 | I54: 100 | J54: - Stor-Oslo | K54: =DimPostnummer[[#This Row],[Poststed]] -> OSLO | L54: =VLOOKUP(DimPostnummer[[#This Row],[SK input]],'Styr treff'!$A:$J,7,FALSE) -> 141 | M54: =DimPostnummer[[#This Row],[Fylke]] -> OSLO | N54: P | O54: Postbokser | P54: 59.9235900 | Q54: 10.7404700 | R54: =DimPostnummer[[#This Row],[Postnummer]]*1 -> 131
A55: 0133 | B55: OSLO | C55: 03 | D55: OSLO | E55: 0301 | F55: OSLO | G55: =DimPostnummer[[#This Row],[Postnummer]]*1 -> 133 | H55: 100 | I55: 100 | J55: - Stor-Oslo | K55: =DimPostnummer[[#This Row],[Poststed]] -> OSLO | L55: =VLOOKUP(DimPostnummer[[#This Row],[SK input]],'Styr treff'!$A:$J,7,FALSE) -> 141 | M55: =DimPostnummer[[#This Row],[Fylke]] -> OSLO | N55: P | O55: Postbokser | P55: 59.9128700 | Q55: 10.7590900 | R55: =DimPostnummer[[#This Row],[Postnummer]]*1 -> 133
A56: 0134 | B56: OSLO | C56: 03 | D56: OSLO | E56: 0301 | F56: OSLO | G56: =DimPostnummer[[#This Row],[Postnummer]]*1 -> 134 | H56: 100 | I56: 100 | J56: - Stor-Oslo | K56: =DimPostnummer[[#This Row],[Poststed]] -> OSLO | L56: =VLOOKUP(DimPostnummer[[#This Row],[SK input]],'Styr treff'!$A:$J,7,FALSE) -> 141 | M56: =DimPostnummer[[#This Row],[Fylke]] -> OSLO | N56: P | O56: Postbokser | P56: 59.9128700 | Q56: 10.7590900 | R56: =DimPostnummer[[#This Row],[Postnummer]]*1 -> 134
A57: 0135 | B57: OSLO | C57: 03 | D57: OSLO | E57: 0301 | F57: OSLO | G57: =DimPostnummer[[#This Row],[Postnummer]]*1 -> 135 | H57: 100 | I57: 100 | J57: - Stor-Oslo | K57: =DimPostnummer[[#This Row],[Poststed]] -> OSLO | L57: =VLOOKUP(DimPostnummer[[#This Row],[SK input]],'Styr treff'!$A:$J,7,FALSE) -> 141 | M57: =DimPostnummer[[#This Row],[Fylke]] -> OSLO | N57: P | O57: Postbokser | P57: 59.9128700 | Q57: 10.7590900 | R57: =DimPostnummer[[#This Row],[Postnummer]]*1 -> 135
A58: 0137 | B58: OSLO | C58: 03 | D58: OSLO | E58: 0301 | F58: OSLO | G58: =DimPostnummer[[#This Row],[Postnummer]]*1 -> 137 | H58: 100 | I58: 100 | J58: - Stor-Oslo | K58: =DimPostnummer[[#This Row],[Poststed]] -> OSLO | L58: =VLOOKUP(DimPostnummer[[#This Row],[SK input]],'Styr treff'!$A:$J,7,FALSE) -> 141 | M58: =DimPostnummer[[#This Row],[Fylke]] -> OSLO | N58: P | O58: Postbokser | P58: 59.8834000 | Q58: 10.7717000 | R58: =DimPostnummer[[#This Row],[Postnummer]]*1 -> 137
A59: 0138 | B59: OSLO | C59: 03 | D59: OSLO | E59: 0301 | F59: OSLO | G59: =DimPostnummer[[#This Row],[Postnummer]]*1 -> 138 | H59: 100 | I59: 100 | J59: - Stor-Oslo | K59: =DimPostnummer[[#This Row],[Poststed]] -> OSLO | L59: =VLOOKUP(DimPostnummer[[#This Row],[SK input]],'Styr treff'!$A:$J,7,FALSE) -> 141 | M59: =DimPostnummer[[#This Row],[Fylke]] -> OSLO | N59: P | O59: Postbokser | P59: 59.8702400 | Q59: 10.7726700 | R59: =DimPostnummer[[#This Row],[Postnummer]]*1 -> 138
A60: 0139 | B60: OSLO | C60: 03 | D60: OSLO | E60: 0301 | F60: OSLO | G60: =DimPostnummer[[#This Row],[Postnummer]]*1 -> 139 | H60: 100 | I60: 100 | J60: - Stor-Oslo | K60: =DimPostnummer[[#This Row],[Poststed]] -> OSLO | L60: =VLOOKUP(DimPostnummer[[#This Row],[SK input]],'Styr treff'!$A:$J,7,FALSE) -> 141 | M60: =DimPostnummer[[#This Row],[Fylke]] -> OSLO | N60: G | O60: Gateadresser og stedsadresser | P60: 59.8701500 | Q60: 10.7726600 | R60: =DimPostnummer[[#This Row],[Postnummer]]*1 -> 139
A61: 0150 | B61: OSLO | C61: 03 | D61: OSLO | E61: 0301 | F61: OSLO | G61: =DimPostnummer[[#This Row],[Postnummer]]*1 -> 150 | H61: 100 | I61: 100 | J61: - Stor-Oslo | K61: =DimPostnummer[[#This Row],[Poststed]] -> OSLO | L61: =VLOOKUP(DimPostnummer[[#This Row],[SK input]],'Styr treff'!$A:$J,7,FALSE) -> 141 | M61: =DimPostnummer[[#This Row],[Fylke]] -> OSLO | N61: G | O61: Gateadresser og stedsadresser | P61: 59.8955000 | Q61: 10.7304000 | R61: =DimPostnummer[[#This Row],[Postnummer]]*1 -> 150
A62: 0151 | B62: OSLO | C62: 03 | D62: OSLO | E62: 0301 | F62: OSLO | G62: =DimPostnummer[[#This Row],[Postnummer]]*1 -> 151 | H62: 100 | I62: 100 | J62: - Stor-Oslo | K62: =DimPostnummer[[#This Row],[Poststed]] -> OSLO | L62: =VLOOKUP(DimPostnummer[[#This Row],[SK input]],'Styr treff'!$A:$J,7,FALSE) -> 141 | M62: =DimPostnummer[[#This Row],[Fylke]] -> OSLO | N62: G | O62: Gateadresser og stedsadresser | P62: 59.9088600 | Q62: 10.7422400 | R62: =DimPostnummer[[#This Row],[Postnummer]]*1 -> 151
A63: 0152 | B63: OSLO | C63: 03 | D63: OSLO | E63: 0301 | F63: OSLO | G63: =DimPostnummer[[#This Row],[Postnummer]]*1 -> 152 | H63: 100 | I63: 100 | J63: - Stor-Oslo | K63: =DimPostnummer[[#This Row],[Poststed]] -> OSLO | L63: =VLOOKUP(DimPostnummer[[#This Row],[SK input]],'Styr treff'!$A:$J,7,FALSE) -> 141 | M63: =DimPostnummer[[#This Row],[Fylke]] -> OSLO | N63: G | O63: Gateadresser og stedsadresser | P63: 59.9097100 | Q63: 10.7461600 | R63: =DimPostnummer[[#This Row],[Postnummer]]*1 -> 152
A64: 0153 | B64: OSLO | C64: 03 | D64: OSLO | E64: 0301 | F64: OSLO | G64: =DimPostnummer[[#This Row],[Postnummer]]*1 -> 153 | H64: 100 | I64: 100 | J64: - Stor-Oslo | K64: =DimPostnummer[[#This Row],[Poststed]] -> OSLO | L64: =VLOOKUP(DimPostnummer[[#This Row],[SK input]],'Styr treff'!$A:$J,7,FALSE) -> 141 | M64: =DimPostnummer[[#This Row],[Fylke]] -> OSLO | N64: G | O64: Gateadresser og stedsadresser | P64: 59.9108150 | Q64: 10.7424400 | R64: =DimPostnummer[[#This Row],[Postnummer]]*1 -> 153
A65: 0154 | B65: OSLO | C65: 03 | D65: OSLO | E65: 0301 | F65: OSLO | G65: =DimPostnummer[[#This Row],[Postnummer]]*1 -> 154 | H65: 100 | I65: 100 | J65: - Stor-Oslo | K65: =DimPostnummer[[#This Row],[Poststed]] -> OSLO | L65: =VLOOKUP(DimPostnummer[[#This Row],[SK input]],'Styr treff'!$A:$J,7,FALSE) -> 141 | M65: =DimPostnummer[[#This Row],[Fylke]] -> OSLO | N65: G | O65: Gateadresser og stedsadresser | P65: 59.9113800 | Q65: 10.7481100 | R65: =DimPostnummer[[#This Row],[Postnummer]]*1 -> 154
A66: 0155 | B66: OSLO | C66: 03 | D66: OSLO | E66: 0301 | F66: OSLO | G66: =DimPostnummer[[#This Row],[Postnummer]]*1 -> 155 | H66: 100 | I66: 100 | J66: - Stor-Oslo | K66: =DimPostnummer[[#This Row],[Poststed]] -> OSLO | L66: =VLOOKUP(DimPostnummer[[#This Row],[SK input]],'Styr treff'!$A:$J,7,FALSE) -> 141 | M66: =DimPostnummer[[#This Row],[Fylke]] -> OSLO | N66: G | O66: Gateadresser og stedsadresser | P66: 59.9129000 | Q66: 10.7482500 | R66: =DimPostnummer[[#This Row],[Postnummer]]*1 -> 155
A67: 0157 | B67: OSLO | C67: 03 | D67: OSLO | E67: 0301 | F67: OSLO | G67: =DimPostnummer[[#This Row],[Postnummer]]*1 -> 157 | H67: 100 | I67: 100 | J67: - Stor-Oslo | K67: =DimPostnummer[[#This Row],[Poststed]] -> OSLO | L67: =VLOOKUP(DimPostnummer[[#This Row],[SK input]],'Styr treff'!$A:$J,7,FALSE) -> 141 | M67: =DimPostnummer[[#This Row],[Fylke]] -> OSLO | N67: G | O67: Gateadresser og stedsadresser | P67: 59.9102230 | Q67: 10.7396130 | R67: =DimPostnummer[[#This Row],[Postnummer]]*1 -> 157
A68: 0158 | B68: OSLO | C68: 03 | D68: OSLO | E68: 0301 | F68: OSLO | G68: =DimPostnummer[[#This Row],[Postnummer]]*1 -> 158 | H68: 100 | I68: 100 | J68: - Stor-Oslo | K68: =DimPostnummer[[#This Row],[Poststed]] -> OSLO | L68: =VLOOKUP(DimPostnummer[[#This Row],[SK input]],'Styr treff'!$A:$J,7,FALSE) -> 141 | M68: =DimPostnummer[[#This Row],[Fylke]] -> OSLO | N68: G | O68: Gateadresser og stedsadresser | P68: 59.9116900 | Q68: 10.7389200 | R68: =DimPostnummer[[#This Row],[Postnummer]]*1 -> 158
A69: 0159 | B69: OSLO | C69: 03 | D69: OSLO | E69: 0301 | F69: OSLO | G69: =DimPostnummer[[#This Row],[Postnummer]]*1 -> 159 | H69: 100 | I69: 100 | J69: - Stor-Oslo | K69: =DimPostnummer[[#This Row],[Poststed]] -> OSLO | L69: =VLOOKUP(DimPostnummer[[#This Row],[SK input]],'Styr treff'!$A:$J,7,FALSE) -> 141 | M69: =DimPostnummer[[#This Row],[Fylke]] -> OSLO | N69: G | O69: Gateadresser og stedsadresser | P69: 59.9129450 | Q69: 10.7417160 | R69: =DimPostnummer[[#This Row],[Postnummer]]*1 -> 159
A70: 0160 | B70: OSLO | C70: 03 | D70: OSLO | E70: 0301 | F70: OSLO | G70: =DimPostnummer[[#This Row],[Postnummer]]*1 -> 160 | H70: 100 | I70: 100 | J70: - Stor-Oslo | K70: =DimPostnummer[[#This Row],[Poststed]] -> OSLO | L70: =VLOOKUP(DimPostnummer[[#This Row],[SK input]],'Styr treff'!$A:$J,7,FALSE) -> 141 | M70: =DimPostnummer[[#This Row],[Fylke]] -> OSLO | N70: G | O70: Gateadresser og stedsadresser | P70: 59.9107640 | Q70: 10.7326220 | R70: =DimPostnummer[[#This Row],[Postnummer]]*1 -> 160
A71: 0161 | B71: OSLO | C71: 03 | D71: OSLO | E71: 0301 | F71: OSLO | G71: =DimPostnummer[[#This Row],[Postnummer]]*1 -> 161 | H71: 100 | I71: 100 | J71: - Stor-Oslo | K71: =DimPostnummer[[#This Row],[Poststed]] -> OSLO | L71: =VLOOKUP(DimPostnummer[[#This Row],[SK input]],'Styr treff'!$A:$J,7,FALSE) -> 141 | M71: =DimPostnummer[[#This Row],[Fylke]] -> OSLO | N71: G | O71: Gateadresser og stedsadresser | P71: 59.9136600 | Q71: 10.7334000 | R71: =DimPostnummer[[#This Row],[Postnummer]]*1 -> 161
A72: 0162 | B72: OSLO | C72: 03 | D72: OSLO | E72: 0301 | F72: OSLO | G72: =DimPostnummer[[#This Row],[Postnummer]]*1 -> 162 | H72: 100 | I72: 100 | J72: - Stor-Oslo | K72: =DimPostnummer[[#This Row],[Poststed]] -> OSLO | L72: =VLOOKUP(DimPostnummer[[#This Row],[SK input]],'Styr treff'!$A:$J,7,FALSE) -> 141 | M72: =DimPostnummer[[#This Row],[Fylke]] -> OSLO | N72: G | O72: Gateadresser og stedsadresser | P72: 59.9135790 | Q72: 10.7380350 | R72: =DimPostnummer[[#This Row],[Postnummer]]*1 -> 162
A73: 0164 | B73: OSLO | C73: 03 | D73: OSLO | E73: 0301 | F73: OSLO | G73: =DimPostnummer[[#This Row],[Postnummer]]*1 -> 164 | H73: 100 | I73: 100 | J73: - Stor-Oslo | K73: =DimPostnummer[[#This Row],[Poststed]] -> OSLO | L73: =VLOOKUP(DimPostnummer[[#This Row],[SK input]],'Styr treff'!$A:$J,7,FALSE) -> 141 | M73: =DimPostnummer[[#This Row],[Fylke]] -> OSLO | N73: G | O73: Gateadresser og stedsadresser | P73: 59.9165100 | Q73: 10.7383000 | R73: =DimPostnummer[[#This Row],[Postnummer]]*1 -> 164
A74: 0165 | B74: OSLO | C74: 03 | D74: OSLO | E74: 0301 | F74: OSLO | G74: =DimPostnummer[[#This Row],[Postnummer]]*1 -> 165 | H74: 100 | I74: 100 | J74: - Stor-Oslo | K74: =DimPostnummer[[#This Row],[Poststed]] -> OSLO | L74: =VLOOKUP(DimPostnummer[[#This Row],[SK input]],'Styr treff'!$A:$J,7,FALSE) -> 141 | M74: =DimPostnummer[[#This Row],[Fylke]] -> OSLO | N74: G | O74: Gateadresser og stedsadresser | P74: 59.9187400 | Q74: 10.7414200 | R74: =DimPostnummer[[#This Row],[Postnummer]]*1 -> 165
A75: 0166 | B75: OSLO | C75: 03 | D75: OSLO | E75: 0301 | F75: OSLO | G75: =DimPostnummer[[#This Row],[Postnummer]]*1 -> 166 | H75: 100 | I75: 100 | J75: - Stor-Oslo | K75: =DimPostnummer[[#This Row],[Poststed]] -> OSLO | L75: =VLOOKUP(DimPostnummer[[#This Row],[SK input]],'Styr treff'!$A:$J,7,FALSE) -> 141 | M75: =DimPostnummer[[#This Row],[Fylke]] -> OSLO | N75: G | O75: Gateadresser og stedsadresser | P75: 59.9191200 | Q75: 10.7344700 | R75: =DimPostnummer[[#This Row],[Postnummer]]*1 -> 166
A76: 0167 | B76: OSLO | C76: 03 | D76: OSLO | E76: 0301 | F76: OSLO | G76: =DimPostnummer[[#This Row],[Postnummer]]*1 -> 167 | H76: 100 | I76: 100 | J76: - Stor-Oslo | K76: =DimPostnummer[[#This Row],[Poststed]] -> OSLO | L76: =VLOOKUP(DimPostnummer[[#This Row],[SK input]],'Styr treff'!$A:$J,7,FALSE) -> 141 | M76: =DimPostnummer[[#This Row],[Fylke]] -> OSLO | N76: G | O76: Gateadresser og stedsadresser | P76: 59.9256460 | Q76: 10.7309660 | R76: =DimPostnummer[[#This Row],[Postnummer]]*1 -> 167
A77: 0168 | B77: OSLO | C77: 03 | D77: OSLO | E77: 0301 | F77: OSLO | G77: =DimPostnummer[[#This Row],[Postnummer]]*1 -> 168 | H77: 100 | I77: 100 | J77: - Stor-Oslo | K77: =DimPostnummer[[#This Row],[Poststed]] -> OSLO | L77: =VLOOKUP(DimPostnummer[[#This Row],[SK input]],'Styr treff'!$A:$J,7,FALSE) -> 141 | M77: =DimPostnummer[[#This Row],[Fylke]] -> OSLO | N77: G | O77: Gateadresser og stedsadresser | P77: 59.9272700 | Q77: 10.7340500 | R77: =DimPostnummer[[#This Row],[Postnummer]]*1 -> 168
A78: 0169 | B78: OSLO | C78: 03 | D78: OSLO | E78: 0301 | F78: OSLO | G78: =DimPostnummer[[#This Row],[Postnummer]]*1 -> 169 | H78: 100 | I78: 100 | J78: - Stor-Oslo | K78: =DimPostnummer[[#This Row],[Poststed]] -> OSLO | L78: =VLOOKUP(DimPostnummer[[#This Row],[SK input]],'Styr treff'!$A:$J,7,FALSE) -> 141 | M78: =DimPostnummer[[#This Row],[Fylke]] -> OSLO | N78: G | O78: Gateadresser og stedsadresser | P78: 59.9252300 | Q78: 10.7368400 | R78: =DimPostnummer[[#This Row],[Postnummer]]*1 -> 169
A79: 0170 | B79: OSLO | C79: 03 | D79: OSLO | E79: 0301 | F79: OSLO | G79: =DimPostnummer[[#This Row],[Postnummer]]*1 -> 170 | H79: 100 | I79: 100 | J79: - Stor-Oslo | K79: =DimPostnummer[[#This Row],[Poststed]] -> OSLO | L79: =VLOOKUP(DimPostnummer[[#This Row],[SK input]],'Styr treff'!$A:$J,7,FALSE) -> 141 | M79: =DimPostnummer[[#This Row],[Fylke]] -> OSLO | N79: G | O79: Gateadresser og stedsadresser | P79: 59.9225100 | Q79: 10.7370500 | R79: =DimPostnummer[[#This Row],[Postnummer]]*1 -> 170
A80: 0171 | B80: OSLO | C80: 03 | D80: OSLO | E80: 0301 | F80: OSLO | G80: =DimPostnummer[[#This Row],[Postnummer]]*1 -> 171 | H80: 100 | I80: 100 | J80: - Stor-Oslo | K80: =DimPostnummer[[#This Row],[Poststed]] -> OSLO | L80: =VLOOKUP(DimPostnummer[[#This Row],[SK input]],'Styr treff'!$A:$J,7,FALSE) -> 141 | M80: =DimPostnummer[[#This Row],[Fylke]] -> OSLO | N80: G | O80: Gateadresser og stedsadresser | P80: 59.9259800 | Q80: 10.7426900 | R80: =DimPostnummer[[#This Row],[Postnummer]]*1 -> 171
A81: 0172 | B81: OSLO | C81: 03 | D81: OSLO | E81: 0301 | F81: OSLO | G81: =DimPostnummer[[#This Row],[Postnummer]]*1 -> 172 | H81: 100 | I81: 100 | J81: - Stor-Oslo | K81: =DimPostnummer[[#This Row],[Poststed]] -> OSLO | L81: =VLOOKUP(DimPostnummer[[#This Row],[SK input]],'Styr treff'!$A:$J,7,FALSE) -> 141 | M81: =DimPostnummer[[#This Row],[Fylke]] -> OSLO | N81: G | O81: Gateadresser og stedsadresser | P81: 59.9239800 | Q81: 10.7451200 | R81: =DimPostnummer[[#This Row],[Postnummer]]*1 -> 172
A82: 0173 | B82: OSLO | C82: 03 | D82: OSLO | E82: 0301 | F82: OSLO | G82: =DimPostnummer[[#This Row],[Postnummer]]*1 -> 173 | H82: 100 | I82: 100 | J82: - Stor-Oslo | K82: =DimPostnummer[[#This Row],[Poststed]] -> OSLO | L82: =VLOOKUP(DimPostnummer[[#This Row],[SK input]],'Styr treff'!$A:$J,7,FALSE) -> 141 | M82: =DimPostnummer[[#This Row],[Fylke]] -> OSLO | N82: G | O82: Gateadresser og stedsadresser | P82: 59.9277700 | Q82: 10.7470800 | R82: =DimPostnummer[[#This Row],[Postnummer]]*1 -> 173
A83: 0174 | B83: OSLO | C83: 03 | D83: OSLO | E83: 0301 | F83: OSLO | G83: =DimPostnummer[[#This Row],[Postnummer]]*1 -> 174 | H83: 100 | I83: 100 | J83: - Stor-Oslo | K83: =DimPostnummer[[#This Row],[Poststed]] -> OSLO | L83: =VLOOKUP(DimPostnummer[[#This Row],[SK input]],'Styr treff'!$A:$J,7,FALSE) -> 141 | M83: =DimPostnummer[[#This Row],[Fylke]] -> OSLO | N83: G | O83: Gateadresser og stedsadresser | P83: 59.9263900 | Q83: 10.7481400 | R83: =DimPostnummer[[#This Row],[Postnummer]]*1 -> 174
A84: 0175 | B84: OSLO | C84: 03 | D84: OSLO | E84: 0301 | F84: OSLO | G84: =DimPostnummer[[#This Row],[Postnummer]]*1 -> 175 | H84: 100 | I84: 100 | J84: - Stor-Oslo | K84: =DimPostnummer[[#This Row],[Poststed]] -> OSLO | L84: =VLOOKUP(DimPostnummer[[#This Row],[SK input]],'Styr treff'!$A:$J,7,FALSE) -> 141 | M84: =DimPostnummer[[#This Row],[Fylke]] -> OSLO | N84: G | O84: Gateadresser og stedsadresser | P84: 59.9265200 | Q84: 10.7512700 | R84: =DimPostnummer[[#This Row],[Postnummer]]*1 -> 175
A85: 0176 | B85: OSLO | C85: 03 | D85: OSLO | E85: 0301 | F85: OSLO | G85: =DimPostnummer[[#This Row],[Postnummer]]*1 -> 176 | H85: 100 | I85: 100 | J85: - Stor-Oslo | K85: =DimPostnummer[[#This Row],[Poststed]] -> OSLO | L85: =VLOOKUP(DimPostnummer[[#This Row],[SK input]],'Styr treff'!$A:$J,7,FALSE) -> 141 | M85: =DimPostnummer[[#This Row],[Fylke]] -> OSLO | N85: G | O85: Gateadresser og stedsadresser | P85: 59.9201200 | Q85: 10.7393200 | R85: =DimPostnummer[[#This Row],[Postnummer]]*1 -> 176
A86: 0177 | B86: OSLO | C86: 03 | D86: OSLO | E86: 0301 | F86: OSLO | G86: =DimPostnummer[[#This Row],[Postnummer]]*1 -> 177 | H86: 100 | I86: 100 | J86: - Stor-Oslo | K86: =DimPostnummer[[#This Row],[Poststed]] -> OSLO | L86: =VLOOKUP(DimPostnummer[[#This Row],[SK input]],'Styr treff'!$A:$J,7,FALSE) -> 141 | M86: =DimPostnummer[[#This Row],[Fylke]] -> OSLO | N86: G | O86: Gateadresser og stedsadresser | P86: 59.9195000 | Q86: 10.7473900 | R86: =DimPostnummer[[#This Row],[Postnummer]]*1 -> 177
A87: 0178 | B87: OSLO | C87: 03 | D87: OSLO | E87: 0301 | F87: OSLO | G87: =DimPostnummer[[#This Row],[Postnummer]]*1 -> 178 | H87: 100 | I87: 100 | J87: - Stor-Oslo | K87: =DimPostnummer[[#This Row],[Poststed]] -> OSLO | L87: =VLOOKUP(DimPostnummer[[#This Row],[SK input]],'Styr treff'!$A:$J,7,FALSE) -> 141 | M87: =DimPostnummer[[#This Row],[Fylke]] -> OSLO | N87: G | O87: Gateadresser og stedsadresser | P87: 59.9195100 | Q87: 10.7501500 | R87: =DimPostnummer[[#This Row],[Postnummer]]*1 -> 178
A88: 0179 | B88: OSLO | C88: 03 | D88: OSLO | E88: 0301 | F88: OSLO | G88: =DimPostnummer[[#This Row],[Postnummer]]*1 -> 179 | H88: 100 | I88: 100 | J88: - Stor-Oslo | K88: =DimPostnummer[[#This Row],[Poststed]] -> OSLO | L88: =VLOOKUP(DimPostnummer[[#This Row],[SK input]],'Styr treff'!$A:$J,7,FALSE) -> 141 | M88: =DimPostnummer[[#This Row],[Fylke]] -> OSLO | N88: G | O88: Gateadresser og stedsadresser | P88: 59.9162900 | Q88: 10.7485700 | R88: =DimPostnummer[[#This Row],[Postnummer]]*1 -> 179
A89: 0180 | B89: OSLO | C89: 03 | D89: OSLO | E89: 0301 | F89: OSLO | G89: =DimPostnummer[[#This Row],[Postnummer]]*1 -> 180 | H89: 100 | I89: 100 | J89: - Stor-Oslo | K89: =DimPostnummer[[#This Row],[Poststed]] -> OSLO | L89: =VLOOKUP(DimPostnummer[[#This Row],[SK input]],'Styr treff'!$A:$J,7,FALSE) -> 141 | M89: =DimPostnummer[[#This Row],[Fylke]] -> OSLO | N89: G | O89: Gateadresser og stedsadresser | P89: 59.9156200 | Q89: 10.7433400 | R89: =DimPostnummer[[#This Row],[Postnummer]]*1 -> 180
A90: 0181 | B90: OSLO | C90: 03 | D90: OSLO | E90: 0301 | F90: OSLO | G90: =DimPostnummer[[#This Row],[Postnummer]]*1 -> 181 | H90: 100 | I90: 100 | J90: - Stor-Oslo | K90: =DimPostnummer[[#This Row],[Poststed]] -> OSLO | L90: =VLOOKUP(DimPostnummer[[#This Row],[SK input]],'Styr treff'!$A:$J,7,FALSE) -> 141 | M90: =DimPostnummer[[#This Row],[Fylke]] -> OSLO | N90: G | O90: Gateadresser og stedsadresser | P90: 59.9144900 | Q90: 10.7495200 | R90: =DimPostnummer[[#This Row],[Postnummer]]*1 -> 181
A91: 0182 | B91: OSLO | C91: 03 | D91: OSLO | E91: 0301 | F91: OSLO | G91: =DimPostnummer[[#This Row],[Postnummer]]*1 -> 182 | H91: 100 | I91: 100 | J91: - Stor-Oslo | K91: =DimPostnummer[[#This Row],[Poststed]] -> OSLO | L91: =VLOOKUP(DimPostnummer[[#This Row],[SK input]],'Styr treff'!$A:$J,7,FALSE) -> 141 | M91: =DimPostnummer[[#This Row],[Fylke]] -> OSLO | N91: G | O91: Gateadresser og stedsadresser | P91: 59.9177300 | Q91: 10.7559800 | R91: =DimPostnummer[[#This Row],[Postnummer]]*1 -> 182
A92: 0183 | B92: OSLO | C92: 03 | D92: OSLO | E92: 0301 | F92: OSLO | G92: =DimPostnummer[[#This Row],[Postnummer]]*1 -> 183 | H92: 100 | I92: 100 | J92: - Stor-Oslo | K92: =DimPostnummer[[#This Row],[Poststed]] -> OSLO | L92: =VLOOKUP(DimPostnummer[[#This Row],[SK input]],'Styr treff'!$A:$J,7,FALSE) -> 141 | M92: =DimPostnummer[[#This Row],[Fylke]] -> OSLO | N92: G | O92: Gateadresser og stedsadresser | P92: 59.9166300 | Q92: 10.7529300 | R92: =DimPostnummer[[#This Row],[Postnummer]]*1 -> 183
A93: 0184 | B93: OSLO | C93: 03 | D93: OSLO | E93: 0301 | F93: OSLO | G93: =DimPostnummer[[#This Row],[Postnummer]]*1 -> 184 | H93: 100 | I93: 100 | J93: - Stor-Oslo | K93: =DimPostnummer[[#This Row],[Poststed]] -> OSLO | L93: =VLOOKUP(DimPostnummer[[#This Row],[SK input]],'Styr treff'!$A:$J,7,FALSE) -> 141 | M93: =DimPostnummer[[#This Row],[Fylke]] -> OSLO | N93: G | O93: Gateadresser og stedsadresser | P93: 59.9137100 | Q93: 10.7523200 | R93: =DimPostnummer[[#This Row],[Postnummer]]*1 -> 184
A94: 0185 | B94: OSLO | C94: 03 | D94: OSLO | E94: 0301 | F94: OSLO | G94: =DimPostnummer[[#This Row],[Postnummer]]*1 -> 185 | H94: 100 | I94: 100 | J94: - Stor-Oslo | K94: =DimPostnummer[[#This Row],[Poststed]] -> OSLO | L94: =VLOOKUP(DimPostnummer[[#This Row],[SK input]],'Styr treff'!$A:$J,7,FALSE) -> 141 | M94: =DimPostnummer[[#This Row],[Fylke]] -> OSLO | N94: G | O94: Gateadresser og stedsadresser | P94: 59.9119300 | Q94: 10.7568500 | R94: =DimPostnummer[[#This Row],[Postnummer]]*1 -> 185
A95: 0186 | B95: OSLO | C95: 03 | D95: OSLO | E95: 0301 | F95: OSLO | G95: =DimPostnummer[[#This Row],[Postnummer]]*1 -> 186 | H95: 100 | I95: 100 | J95: - Stor-Oslo | K95: =DimPostnummer[[#This Row],[Poststed]] -> OSLO | L95: =VLOOKUP(DimPostnummer[[#This Row],[SK input]],'Styr treff'!$A:$J,7,FALSE) -> 141 | M95: =DimPostnummer[[#This Row],[Fylke]] -> OSLO | N95: G | O95: Gateadresser og stedsadresser | P95: 59.9154500 | Q95: 10.7585300 | R95: =DimPostnummer[[#This Row],[Postnummer]]*1 -> 186
A96: 0187 | B96: OSLO | C96: 03 | D96: OSLO | E96: 0301 | F96: OSLO | G96: =DimPostnummer[[#This Row],[Postnummer]]*1 -> 187 | H96: 100 | I96: 100 | J96: - Stor-Oslo | K96: =DimPostnummer[[#This Row],[Poststed]] -> OSLO | L96: =VLOOKUP(DimPostnummer[[#This Row],[SK input]],'Styr treff'!$A:$J,7,FALSE) -> 141 | M96: =DimPostnummer[[#This Row],[Fylke]] -> OSLO | N96: G | O96: Gateadresser og stedsadresser | P96: 59.9144500 | Q96: 10.7637600 | R96: =DimPostnummer[[#This Row],[Postnummer]]*1 -> 187
A97: 0188 | B97: OSLO | C97: 03 | D97: OSLO | E97: 0301 | F97: OSLO | G97: =DimPostnummer[[#This Row],[Postnummer]]*1 -> 188 | H97: 100 | I97: 100 | J97: - Stor-Oslo | K97: =DimPostnummer[[#This Row],[Poststed]] -> OSLO | L97: =VLOOKUP(DimPostnummer[[#This Row],[SK input]],'Styr treff'!$A:$J,7,FALSE) -> 141 | M97: =DimPostnummer[[#This Row],[Fylke]] -> OSLO | N97: G | O97: Gateadresser og stedsadresser | P97: 59.9126500 | Q97: 10.7608700 | R97: =DimPostnummer[[#This Row],[Postnummer]]*1 -> 188
A98: 0190 | B98: OSLO | C98: 03 | D98: OSLO | E98: 0301 | F98: OSLO | G98: =DimPostnummer[[#This Row],[Postnummer]]*1 -> 190 | H98: 100 | I98: 100 | J98: - Stor-Oslo | K98: =DimPostnummer[[#This Row],[Poststed]] -> OSLO | L98: =VLOOKUP(DimPostnummer[[#This Row],[SK input]],'Styr treff'!$A:$J,7,FALSE) -> 141 | M98: =DimPostnummer[[#This Row],[Fylke]] -> OSLO | N98: G | O98: Gateadresser og stedsadresser | P98: 59.9120400 | Q98: 10.7656600 | R98: =DimPostnummer[[#This Row],[Postnummer]]*1 -> 190
A99: 0191 | B99: OSLO | C99: 03 | D99: OSLO | E99: 0301 | F99: OSLO | G99: =DimPostnummer[[#This Row],[Postnummer]]*1 -> 191 | H99: 100 | I99: 100 | J99: - Stor-Oslo | K99: =DimPostnummer[[#This Row],[Poststed]] -> OSLO | L99: =VLOOKUP(DimPostnummer[[#This Row],[SK input]],'Styr treff'!$A:$J,7,FALSE) -> 141 | M99: =DimPostnummer[[#This Row],[Fylke]] -> OSLO | N99: G | O99: Gateadresser og stedsadresser | P99: 59.9085200 | Q99: 10.7645700 | R99: =DimPostnummer[[#This Row],[Postnummer]]*1 -> 191
A100: 0192 | B100: OSLO | C100: 03 | D100: OSLO | E100: 0301 | F100: OSLO | G100: =DimPostnummer[[#This Row],[Postnummer]]*1 -> 192 | H100: 100 | I100: 100 | J100: - Stor-Oslo | K100: =DimPostnummer[[#This Row],[Poststed]] -> OSLO | L100: =VLOOKUP(DimPostnummer[[#This Row],[SK input]],'Styr treff'!$A:$J,7,FALSE) -> 141 | M100: =DimPostnummer[[#This Row],[Fylke]] -> OSLO | N100: G | O100: Gateadresser og stedsadresser | P100: 59.9036000 | Q100: 10.7726100 | R100: =DimPostnummer[[#This Row],[Postnummer]]*1 -> 192
A101: 0193 | B101: OSLO | C101: 03 | D101: OSLO | E101: 0301 | F101: OSLO | G101: =DimPostnummer[[#This Row],[Postnummer]]*1 -> 193 | H101: 100 | I101: 100 | J101: - Stor-Oslo | K101: =DimPostnummer[[#This Row],[Poststed]] -> OSLO | L101: =VLOOKUP(DimPostnummer[[#This Row],[SK input]],'Styr treff'!$A:$J,7,FALSE) -> 141 | M101: =DimPostnummer[[#This Row],[Fylke]] -> OSLO | N101: G | O101: Gateadresser og stedsadresser | P101: 59.8882400 | Q101: 10.7549400 | R101: =DimPostnummer[[#This Row],[Postnummer]]*1 -> 193
A102: 0194 | B102: OSLO | C102: 03 | D102: OSLO | E102: 0301 | F102: OSLO | G102: =DimPostnummer[[#This Row],[Postnummer]]*1 -> 194 | H102: 100 | I102: 100 | J102: - Stor-Oslo | K102: =DimPostnummer[[#This Row],[Poststed]] -> OSLO | L102: =VLOOKUP(DimPostnummer[[#This Row],[SK input]],'Styr treff'!$A:$J,7,FALSE) -> 141 | M102: =DimPostnummer[[#This Row],[Fylke]] -> OSLO | N102: G | O102: Gateadresser og stedsadresser | P102: 59.9048000 | Q102: 10.7589000 | R102: =DimPostnummer[[#This Row],[Postnummer]]*1 -> 194
A103: 0195 | B103: OSLO | C103: 03 | D103: OSLO | E103: 0301 | F103: OSLO | G103: =DimPostnummer[[#This Row],[Postnummer]]*1 -> 195 | H103: 100 | I103: 100 | J103: - Stor-Oslo | K103: =DimPostnummer[[#This Row],[Poststed]] -> OSLO | L103: =VLOOKUP(DimPostnummer[[#This Row],[SK input]],'Styr treff'!$A:$J,7,FALSE) -> 141 | M103: =DimPostnummer[[#This Row],[Fylke]] -> OSLO | N103: G | O103: Gateadresser og stedsadresser | P103: 59.9040200 | Q103: 10.7880100 | R103: =DimPostnummer[[#This Row],[Postnummer]]*1 -> 195
A104: 0196 | B104: OSLO | C104: 03 | D104: OSLO | E104: 0301 | F104: OSLO | G104: =DimPostnummer[[#This Row],[Postnummer]]*1 -> 196 | H104: 100 | I104: 100 | J104: - Stor-Oslo | K104: =DimPostnummer[[#This Row],[Poststed]] -> OSLO | L104: =VLOOKUP(DimPostnummer[[#This Row],[SK input]],'Styr treff'!$A:$J,7,FALSE) -> 141 | M104: =DimPostnummer[[#This Row],[Fylke]] -> OSLO | N104: G | O104: Gateadresser og stedsadresser | P104: 59.9019700 | Q104: 10.7819500 | R104: =DimPostnummer[[#This Row],[Postnummer]]*1 -> 196
A105: 0198 | B105: OSLO | C105: 03 | D105: OSLO | E105: 0301 | F105: OSLO | G105: =DimPostnummer[[#This Row],[Postnummer]]*1 -> 198 | H105: 100 | I105: 100 | J105: - Stor-Oslo | K105: =DimPostnummer[[#This Row],[Poststed]] -> OSLO | L105: =VLOOKUP(DimPostnummer[[#This Row],[SK input]],'Styr treff'!$A:$J,7,FALSE) -> 141 | M105: =DimPostnummer[[#This Row],[Fylke]] -> OSLO | N105: G | O105: Gateadresser og stedsadresser | P105: 59.8773700 | Q105: 10.7607800 | R105: =DimPostnummer[[#This Row],[Postnummer]]*1 -> 198
A106: 0201 | B106: OSLO | C106: 03 | D106: OSLO | E106: 0301 | F106: OSLO | G106: =DimPostnummer[[#This Row],[Postnummer]]*1 -> 201 | H106: 100 | I106: 100 | J106: - Stor-Oslo | K106: =DimPostnummer[[#This Row],[Poststed]] -> OSLO | L106: =VLOOKUP(DimPostnummer[[#This Row],[SK input]],'Styr treff'!$A:$J,7,FALSE) -> 141 | M106: =DimPostnummer[[#This Row],[Fylke]] -> OSLO | N106: P | O106: Postbokser | P106: 59.9146200 | Q106: 10.7199200 | R106: =DimPostnummer[[#This Row],[Postnummer]]*1 -> 201
A107: 0202 | B107: OSLO | C107: 03 | D107: OSLO | E107: 0301 | F107: OSLO | G107: =DimPostnummer[[#This Row],[Postnummer]]*1 -> 202 | H107: 100 | I107: 100 | J107: - Stor-Oslo | K107: =DimPostnummer[[#This Row],[Poststed]] -> OSLO | L107: =VLOOKUP(DimPostnummer[[#This Row],[SK input]],'Styr treff'!$A:$J,7,FALSE) -> 141 | M107: =DimPostnummer[[#This Row],[Fylke]] -> OSLO | N107: P | O107: Postbokser | P107: 59.9146200 | Q107: 10.7199200 | R107: =DimPostnummer[[#This Row],[Postnummer]]*1 -> 202
A108: 0203 | B108: OSLO | C108: 03 | D108: OSLO | E108: 0301 | F108: OSLO | G108: =DimPostnummer[[#This Row],[Postnummer]]*1 -> 203 | H108: 100 | I108: 100 | J108: - Stor-Oslo | K108: =DimPostnummer[[#This Row],[Poststed]] -> OSLO | L108: =VLOOKUP(DimPostnummer[[#This Row],[SK input]],'Styr treff'!$A:$J,7,FALSE) -> 141 | M108: =DimPostnummer[[#This Row],[Fylke]] -> OSLO | N108: P | O108: Postbokser | P108: 59.9146200 | Q108: 10.7199200 | R108: =DimPostnummer[[#This Row],[Postnummer]]*1 -> 203
A109: 0204 | B109: OSLO | C109: 03 | D109: OSLO | E109: 0301 | F109: OSLO | G109: =DimPostnummer[[#This Row],[Postnummer]]*1 -> 204 | H109: 100 | I109: 100 | J109: - Stor-Oslo | K109: =DimPostnummer[[#This Row],[Poststed]] -> OSLO | L109: =VLOOKUP(DimPostnummer[[#This Row],[SK input]],'Styr treff'!$A:$J,7,FALSE) -> 141 | M109: =DimPostnummer[[#This Row],[Fylke]] -> OSLO | N109: P | O109: Postbokser | P109: 59.9146200 | Q109: 10.7199200 | R109: =DimPostnummer[[#This Row],[Postnummer]]*1 -> 204
A110: 0207 | B110: OSLO | C110: 03 | D110: OSLO | E110: 0301 | F110: OSLO | G110: =DimPostnummer[[#This Row],[Postnummer]]*1 -> 207 | H110: 100 | I110: 100 | J110: - Stor-Oslo | K110: =DimPostnummer[[#This Row],[Poststed]] -> OSLO | L110: =VLOOKUP(DimPostnummer[[#This Row],[SK input]],'Styr treff'!$A:$J,7,FALSE) -> 141 | M110: =DimPostnummer[[#This Row],[Fylke]] -> OSLO | N110: P | O110: Postbokser | P110: 59.9183600 | Q110: 10.7074800 | R110: =DimPostnummer[[#This Row],[Postnummer]]*1 -> 207
A111: 0208 | B111: OSLO | C111: 03 | D111: OSLO | E111: 0301 | F111: OSLO | G111: =DimPostnummer[[#This Row],[Postnummer]]*1 -> 208 | H111: 100 | I111: 100 | J111: - Stor-Oslo | K111: =DimPostnummer[[#This Row],[Poststed]] -> OSLO | L111: =VLOOKUP(DimPostnummer[[#This Row],[SK input]],'Styr treff'!$A:$J,7,FALSE) -> 141 | M111: =DimPostnummer[[#This Row],[Fylke]] -> OSLO | N111: P | O111: Postbokser | P111: 59.9183600 | Q111: 10.7074800 | R111: =DimPostnummer[[#This Row],[Postnummer]]*1 -> 208
A112: 0211 | B112: OSLO | C112: 03 | D112: OSLO | E112: 0301 | F112: OSLO | G112: =DimPostnummer[[#This Row],[Postnummer]]*1 -> 211 | H112: 100 | I112: 100 | J112: - Stor-Oslo | K112: =DimPostnummer[[#This Row],[Poststed]] -> OSLO | L112: =VLOOKUP(DimPostnummer[[#This Row],[SK input]],'Styr treff'!$A:$J,7,FALSE) -> 141 | M112: =DimPostnummer[[#This Row],[Fylke]] -> OSLO | N112: P | O112: Postbokser | P112: 59.9070000 | Q112: 10.6743000 | R112: =DimPostnummer[[#This Row],[Postnummer]]*1 -> 211
A113: 0212 | B113: OSLO | C113: 03 | D113: OSLO | E113: 0301 | F113: OSLO | G113: =DimPostnummer[[#This Row],[Postnummer]]*1 -> 212 | H113: 100 | I113: 100 | J113: - Stor-Oslo | K113: =DimPostnummer[[#This Row],[Poststed]] -> OSLO | L113: =VLOOKUP(DimPostnummer[[#This Row],[SK input]],'Styr treff'!$A:$J,7,FALSE) -> 141 | M113: =DimPostnummer[[#This Row],[Fylke]] -> OSLO | N113: P | O113: Postbokser | P113: 59.9228000 | Q113: 10.6793000 | R113: =DimPostnummer[[#This Row],[Postnummer]]*1 -> 212
A114: 0213 | B114: OSLO | C114: 03 | D114: OSLO | E114: 0301 | F114: OSLO | G114: =DimPostnummer[[#This Row],[Postnummer]]*1 -> 213 | H114: 100 | I114: 100 | J114: - Stor-Oslo | K114: =DimPostnummer[[#This Row],[Poststed]] -> OSLO | L114: =VLOOKUP(DimPostnummer[[#This Row],[SK input]],'Styr treff'!$A:$J,7,FALSE) -> 141 | M114: =DimPostnummer[[#This Row],[Fylke]] -> OSLO | N114: P | O114: Postbokser | P114: 59.9228000 | Q114: 10.6793000 | R114: =DimPostnummer[[#This Row],[Postnummer]]*1 -> 213
A115: 0214 | B115: OSLO | C115: 03 | D115: OSLO | E115: 0301 | F115: OSLO | G115: =DimPostnummer[[#This Row],[Postnummer]]*1 -> 214 | H115: 100 | I115: 100 | J115: - Stor-Oslo | K115: =DimPostnummer[[#This Row],[Poststed]] -> OSLO | L115: =VLOOKUP(DimPostnummer[[#This Row],[SK input]],'Styr treff'!$A:$J,7,FALSE) -> 141 | M115: =DimPostnummer[[#This Row],[Fylke]] -> OSLO | N115: P | O115: Postbokser | P115: 59.9228000 | Q115: 10.6793000 | R115: =DimPostnummer[[#This Row],[Postnummer]]*1 -> 214
A116: 0215 | B116: OSLO | C116: 03 | D116: OSLO | E116: 0301 | F116: OSLO | G116: =DimPostnummer[[#This Row],[Postnummer]]*1 -> 215 | H116: 100 | I116: 100 | J116: - Stor-Oslo | K116: =DimPostnummer[[#This Row],[Poststed]] -> OSLO | L116: =VLOOKUP(DimPostnummer[[#This Row],[SK input]],'Styr treff'!$A:$J,7,FALSE) -> 141 | M116: =DimPostnummer[[#This Row],[Fylke]] -> OSLO | N116: P | O116: Postbokser | P116: 59.9228000 | Q116: 10.6793000 | R116: =DimPostnummer[[#This Row],[Postnummer]]*1 -> 215
A117: 0216 | B117: OSLO | C117: 03 | D117: OSLO | E117: 0301 | F117: OSLO | G117: =DimPostnummer[[#This Row],[Postnummer]]*1 -> 216 | H117: 100 | I117: 100 | J117: - Stor-Oslo | K117: =DimPostnummer[[#This Row],[Poststed]] -> OSLO | L117: =VLOOKUP(DimPostnummer[[#This Row],[SK input]],'Styr treff'!$A:$J,7,FALSE) -> 141 | M117: =DimPostnummer[[#This Row],[Fylke]] -> OSLO | N117: P | O117: Postbokser | P117: 59.9176400 | Q117: 10.6363600 | R117: =DimPostnummer[[#This Row],[Postnummer]]*1 -> 216
A118: 0218 | B118: OSLO | C118: 03 | D118: OSLO | E118: 0301 | F118: OSLO | G118: =DimPostnummer[[#This Row],[Postnummer]]*1 -> 218 | H118: 100 | I118: 100 | J118: - Stor-Oslo | K118: =DimPostnummer[[#This Row],[Poststed]] -> OSLO | L118: =VLOOKUP(DimPostnummer[[#This Row],[SK input]],'Styr treff'!$A:$J,7,FALSE) -> 141 | M118: =DimPostnummer[[#This Row],[Fylke]] -> OSLO | N118: P | O118: Postbokser | P118: 59.9252200 | Q118: 10.6748100 | R118: =DimPostnummer[[#This Row],[Postnummer]]*1 -> 218
A119: 0230 | B119: OSLO | C119: 03 | D119: OSLO | E119: 0301 | F119: OSLO | G119: =DimPostnummer[[#This Row],[Postnummer]]*1 -> 230 | H119: 100 | I119: 100 | J119: - Stor-Oslo | K119: =DimPostnummer[[#This Row],[Poststed]] -> OSLO | L119: =VLOOKUP(DimPostnummer[[#This Row],[SK input]],'Styr treff'!$A:$J,7,FALSE) -> 141 | M119: =DimPostnummer[[#This Row],[Fylke]] -> OSLO | N119: P | O119: Postbokser | P119: 59.9146200 | Q119: 10.7199200 | R119: =DimPostnummer[[#This Row],[Postnummer]]*1 -> 230
A120: 0240 | B120: OSLO | C120: 03 | D120: OSLO | E120: 0301 | F120: OSLO | G120: =DimPostnummer[[#This Row],[Postnummer]]*1 -> 240 | H120: 100 | I120: 100 | J120: - Stor-Oslo | K120: =DimPostnummer[[#This Row],[Poststed]] -> OSLO | L120: =VLOOKUP(DimPostnummer[[#This Row],[SK input]],'Styr treff'!$A:$J,7,FALSE) -> 141 | M120: =DimPostnummer[[#This Row],[Fylke]] -> OSLO | N120: P | O120: Postbokser | P120: 59.9146200 | Q120: 10.7148700 | R120: =DimPostnummer[[#This Row],[Postnummer]]*1 -> 240
A121: 0244 | B121: OSLO | C121: 03 | D121: OSLO | E121: 0301 | F121: OSLO | G121: =DimPostnummer[[#This Row],[Postnummer]]*1 -> 244 | H121: 100 | I121: 100 | J121: - Stor-Oslo | K121: =DimPostnummer[[#This Row],[Poststed]] -> OSLO | L121: =VLOOKUP(DimPostnummer[[#This Row],[SK input]],'Styr treff'!$A:$J,7,FALSE) -> 141 | M121: =DimPostnummer[[#This Row],[Fylke]] -> OSLO | N121: F | O121: Flere bruksområder | P121: 59.9192000 | Q121: 10.6972000 | R121: =DimPostnummer[[#This Row],[Postnummer]]*1 -> 244
A122: 0247 | B122: OSLO | C122: 03 | D122: OSLO | E122: 0301 | F122: OSLO | G122: =DimPostnummer[[#This Row],[Postnummer]]*1 -> 247 | H122: 100 | I122: 100 | J122: - Stor-Oslo | K122: =DimPostnummer[[#This Row],[Poststed]] -> OSLO | L122: =VLOOKUP(DimPostnummer[[#This Row],[SK input]],'Styr treff'!$A:$J,7,FALSE) -> 141 | M122: =DimPostnummer[[#This Row],[Fylke]] -> OSLO | N122: P | O122: Postbokser | P122: 59.9219000 | Q122: 10.6839000 | R122: =DimPostnummer[[#This Row],[Postnummer]]*1 -> 247
A123: 0250 | B123: OSLO | C123: 03 | D123: OSLO | E123: 0301 | F123: OSLO | G123: =DimPostnummer[[#This Row],[Postnummer]]*1 -> 250 | H123: 100 | I123: 100 | J123: - Stor-Oslo | K123: =DimPostnummer[[#This Row],[Poststed]] -> OSLO | L123: =VLOOKUP(DimPostnummer[[#This Row],[SK input]],'Styr treff'!$A:$J,7,FALSE) -> 141 | M123: =DimPostnummer[[#This Row],[Fylke]] -> OSLO | N123: G | O123: Gateadresser og stedsadresser | P123: 59.9099300 | Q123: 10.7250700 | R123: =DimPostnummer[[#This Row],[Postnummer]]*1 -> 250
A124: 0251 | B124: OSLO | C124: 03 | D124: OSLO | E124: 0301 | F124: OSLO | G124: =DimPostnummer[[#This Row],[Postnummer]]*1 -> 251 | H124: 100 | I124: 100 | J124: - Stor-Oslo | K124: =DimPostnummer[[#This Row],[Poststed]] -> OSLO | L124: =VLOOKUP(DimPostnummer[[#This Row],[SK input]],'Styr treff'!$A:$J,7,FALSE) -> 141 | M124: =DimPostnummer[[#This Row],[Fylke]] -> OSLO | N124: G | O124: Gateadresser og stedsadresser | P124: 59.9127900 | Q124: 10.7258500 | R124: =DimPostnummer[[#This Row],[Postnummer]]*1 -> 251
A125: 0252 | B125: OSLO | C125: 03 | D125: OSLO | E125: 0301 | F125: OSLO | G125: =DimPostnummer[[#This Row],[Postnummer]]*1 -> 252 | H125: 100 | I125: 100 | J125: - Stor-Oslo | K125: =DimPostnummer[[#This Row],[Poststed]] -> OSLO | L125: =VLOOKUP(DimPostnummer[[#This Row],[SK input]],'Styr treff'!$A:$J,7,FALSE) -> 141 | M125: =DimPostnummer[[#This Row],[Fylke]] -> OSLO | N125: G | O125: Gateadresser og stedsadresser | P125: 59.9084400 | Q125: 10.7230100 | R125: =DimPostnummer[[#This Row],[Postnummer]]*1 -> 252
A126: 0253 | B126: OSLO | C126: 03 | D126: OSLO | E126: 0301 | F126: OSLO | G126: =DimPostnummer[[#This Row],[Postnummer]]*1 -> 253 | H126: 100 | I126: 100 | J126: - Stor-Oslo | K126: =DimPostnummer[[#This Row],[Poststed]] -> OSLO | L126: =VLOOKUP(DimPostnummer[[#This Row],[SK input]],'Styr treff'!$A:$J,7,FALSE) -> 141 | M126: =DimPostnummer[[#This Row],[Fylke]] -> OSLO | N126: G | O126: Gateadresser og stedsadresser | P126: 59.9140100 | Q126: 10.7246670 | R126: =DimPostnummer[[#This Row],[Postnummer]]*1 -> 253
A127: 0254 | B127: OSLO | C127: 03 | D127: OSLO | E127: 0301 | F127: OSLO | G127: =DimPostnummer[[#This Row],[Postnummer]]*1 -> 254 | H127: 100 | I127: 100 | J127: - Stor-Oslo | K127: =DimPostnummer[[#This Row],[Poststed]] -> OSLO | L127: =VLOOKUP(DimPostnummer[[#This Row],[SK input]],'Styr treff'!$A:$J,7,FALSE) -> 141 | M127: =DimPostnummer[[#This Row],[Fylke]] -> OSLO | N127: G | O127: Gateadresser og stedsadresser | P127: 59.9129800 | Q127: 10.7211300 | R127: =DimPostnummer[[#This Row],[Postnummer]]*1 -> 254
A128: 0255 | B128: OSLO | C128: 03 | D128: OSLO | E128: 0301 | F128: OSLO | G128: =DimPostnummer[[#This Row],[Postnummer]]*1 -> 255 | H128: 100 | I128: 100 | J128: - Stor-Oslo | K128: =DimPostnummer[[#This Row],[Poststed]] -> OSLO | L128: =VLOOKUP(DimPostnummer[[#This Row],[SK input]],'Styr treff'!$A:$J,7,FALSE) -> 141 | M128: =DimPostnummer[[#This Row],[Fylke]] -> OSLO | N128: G | O128: Gateadresser og stedsadresser | P128: 59.9149800 | Q128: 10.7217200 | R128: =DimPostnummer[[#This Row],[Postnummer]]*1 -> 255
A129: 0256 | B129: OSLO | C129: 03 | D129: OSLO | E129: 0301 | F129: OSLO | G129: =DimPostnummer[[#This Row],[Postnummer]]*1 -> 256 | H129: 100 | I129: 100 | J129: - Stor-Oslo | K129: =DimPostnummer[[#This Row],[Poststed]] -> OSLO | L129: =VLOOKUP(DimPostnummer[[#This Row],[SK input]],'Styr treff'!$A:$J,7,FALSE) -> 141 | M129: =DimPostnummer[[#This Row],[Fylke]] -> OSLO | N129: G | O129: Gateadresser og stedsadresser | P129: 59.9170400 | Q129: 10.7202200 | R129: =DimPostnummer[[#This Row],[Postnummer]]*1 -> 256
A130: 0257 | B130: OSLO | C130: 03 | D130: OSLO | E130: 0301 | F130: OSLO | G130: =DimPostnummer[[#This Row],[Postnummer]]*1 -> 257 | H130: 100 | I130: 100 | J130: - Stor-Oslo | K130: =DimPostnummer[[#This Row],[Poststed]] -> OSLO | L130: =VLOOKUP(DimPostnummer[[#This Row],[SK input]],'Styr treff'!$A:$J,7,FALSE) -> 141 | M130: =DimPostnummer[[#This Row],[Fylke]] -> OSLO | N130: G | O130: Gateadresser og stedsadresser | P130: 59.9164400 | Q130: 10.7162290 | R130: =DimPostnummer[[#This Row],[Postnummer]]*1 -> 257
A131: 0258 | B131: OSLO | C131: 03 | D131: OSLO | E131: 0301 | F131: OSLO | G131: =DimPostnummer[[#This Row],[Postnummer]]*1 -> 258 | H131: 100 | I131: 100 | J131: - Stor-Oslo | K131: =DimPostnummer[[#This Row],[Poststed]] -> OSLO | L131: =VLOOKUP(DimPostnummer[[#This Row],[SK input]],'Styr treff'!$A:$J,7,FALSE) -> 141 | M131: =DimPostnummer[[#This Row],[Fylke]] -> OSLO | N131: G | O131: Gateadresser og stedsadresser | P131: 59.9199400 | Q131: 10.7225700 | R131: =DimPostnummer[[#This Row],[Postnummer]]*1 -> 258
A132: 0259 | B132: OSLO | C132: 03 | D132: OSLO | E132: 0301 | F132: OSLO | G132: =DimPostnummer[[#This Row],[Postnummer]]*1 -> 259 | H132: 100 | I132: 100 | J132: - Stor-Oslo | K132: =DimPostnummer[[#This Row],[Poststed]] -> OSLO | L132: =VLOOKUP(DimPostnummer[[#This Row],[SK input]],'Styr treff'!$A:$J,7,FALSE) -> 141 | M132: =DimPostnummer[[#This Row],[Fylke]] -> OSLO | N132: G | O132: Gateadresser og stedsadresser | P132: 59.9211000 | Q132: 10.7170400 | R132: =DimPostnummer[[#This Row],[Postnummer]]*1 -> 259
A133: 0260 | B133: OSLO | C133: 03 | D133: OSLO | E133: 0301 | F133: OSLO | G133: =DimPostnummer[[#This Row],[Postnummer]]*1 -> 260 | H133: 100 | I133: 100 | J133: - Stor-Oslo | K133: =DimPostnummer[[#This Row],[Poststed]] -> OSLO | L133: =VLOOKUP(DimPostnummer[[#This Row],[SK input]],'Styr treff'!$A:$J,7,FALSE) -> 141 | M133: =DimPostnummer[[#This Row],[Fylke]] -> OSLO | N133: G | O133: Gateadresser og stedsadresser | P133: 59.9211620 | Q133: 10.7136040 | R133: =DimPostnummer[[#This Row],[Postnummer]]*1 -> 260
A134: 0262 | B134: OSLO | C134: 03 | D134: OSLO | E134: 0301 | F134: OSLO | G134: =DimPostnummer[[#This Row],[Postnummer]]*1 -> 262 | H134: 100 | I134: 100 | J134: - Stor-Oslo | K134: =DimPostnummer[[#This Row],[Poststed]] -> OSLO | L134: =VLOOKUP(DimPostnummer[[#This Row],[SK input]],'Styr treff'!$A:$J,7,FALSE) -> 141 | M134: =DimPostnummer[[#This Row],[Fylke]] -> OSLO | N134: G | O134: Gateadresser og stedsadresser | P134: 59.9171600 | Q134: 10.7115500 | R134: =DimPostnummer[[#This Row],[Postnummer]]*1 -> 262
A135: 0263 | B135: OSLO | C135: 03 | D135: OSLO | E135: 0301 | F135: OSLO | G135: =DimPostnummer[[#This Row],[Postnummer]]*1 -> 263 | H135: 100 | I135: 100 | J135: - Stor-Oslo | K135: =DimPostnummer[[#This Row],[Poststed]] -> OSLO | L135: =VLOOKUP(DimPostnummer[[#This Row],[SK input]],'Styr treff'!$A:$J,7,FALSE) -> 141 | M135: =DimPostnummer[[#This Row],[Fylke]] -> OSLO | N135: G | O135: Gateadresser og stedsadresser | P135: 59.9186400 | Q135: 10.7116100 | R135: =DimPostnummer[[#This Row],[Postnummer]]*1 -> 263
A136: 0264 | B136: OSLO | C136: 03 | D136: OSLO | E136: 0301 | F136: OSLO | G136: =DimPostnummer[[#This Row],[Postnummer]]*1 -> 264 | H136: 100 | I136: 100 | J136: - Stor-Oslo | K136: =DimPostnummer[[#This Row],[Poststed]] -> OSLO | L136: =VLOOKUP(DimPostnummer[[#This Row],[SK input]],'Styr treff'!$A:$J,7,FALSE) -> 141 | M136: =DimPostnummer[[#This Row],[Fylke]] -> OSLO | N136: G | O136: Gateadresser og stedsadresser | P136: 59.9166200 | Q136: 10.7059400 | R136: =DimPostnummer[[#This Row],[Postnummer]]*1 -> 264
A137: 0265 | B137: OSLO | C137: 03 | D137: OSLO | E137: 0301 | F137: OSLO | G137: =DimPostnummer[[#This Row],[Postnummer]]*1 -> 265 | H137: 100 | I137: 100 | J137: - Stor-Oslo | K137: =DimPostnummer[[#This Row],[Poststed]] -> OSLO | L137: =VLOOKUP(DimPostnummer[[#This Row],[SK input]],'Styr treff'!$A:$J,7,FALSE) -> 141 | M137: =DimPostnummer[[#This Row],[Fylke]] -> OSLO | N137: G | O137: Gateadresser og stedsadresser | P137: 59.9184300 | Q137: 10.7047300 | R137: =DimPostnummer[[#This Row],[Postnummer]]*1 -> 265
A138: 0266 | B138: OSLO | C138: 03 | D138: OSLO | E138: 0301 | F138: OSLO | G138: =DimPostnummer[[#This Row],[Postnummer]]*1 -> 266 | H138: 100 | I138: 100 | J138: - Stor-Oslo | K138: =DimPostnummer[[#This Row],[Poststed]] -> OSLO | L138: =VLOOKUP(DimPostnummer[[#This Row],[SK input]],'Styr treff'!$A:$J,7,FALSE) -> 141 | M138: =DimPostnummer[[#This Row],[Fylke]] -> OSLO | N138: G | O138: Gateadresser og stedsadresser | P138: 59.9205900 | Q138: 10.7065200 | R138: =DimPostnummer[[#This Row],[Postnummer]]*1 -> 266
A139: 0267 | B139: OSLO | C139: 03 | D139: OSLO | E139: 0301 | F139: OSLO | G139: =DimPostnummer[[#This Row],[Postnummer]]*1 -> 267 | H139: 100 | I139: 100 | J139: - Stor-Oslo | K139: =DimPostnummer[[#This Row],[Poststed]] -> OSLO | L139: =VLOOKUP(DimPostnummer[[#This Row],[SK input]],'Styr treff'!$A:$J,7,FALSE) -> 141 | M139: =DimPostnummer[[#This Row],[Fylke]] -> OSLO | N139: G | O139: Gateadresser og stedsadresser | P139: 59.9204700 | Q139: 10.7031000 | R139: =DimPostnummer[[#This Row],[Postnummer]]*1 -> 267
A140: 0268 | B140: OSLO | C140: 03 | D140: OSLO | E140: 0301 | F140: OSLO | G140: =DimPostnummer[[#This Row],[Postnummer]]*1 -> 268 | H140: 100 | I140: 100 | J140: - Stor-Oslo | K140: =DimPostnummer[[#This Row],[Poststed]] -> OSLO | L140: =VLOOKUP(DimPostnummer[[#This Row],[SK input]],'Styr treff'!$A:$J,7,FALSE) -> 141 | M140: =DimPostnummer[[#This Row],[Fylke]] -> OSLO | N140: G | O140: Gateadresser og stedsadresser | P140: 59.9208700 | Q140: 10.6969900 | R140: =DimPostnummer[[#This Row],[Postnummer]]*1 -> 268
A141: 0270 | B141: OSLO | C141: 03 | D141: OSLO | E141: 0301 | F141: OSLO | G141: =DimPostnummer[[#This Row],[Postnummer]]*1 -> 270 | H141: 100 | I141: 100 | J141: - Stor-Oslo | K141: =DimPostnummer[[#This Row],[Poststed]] -> OSLO | L141: =VLOOKUP(DimPostnummer[[#This Row],[SK input]],'Styr treff'!$A:$J,7,FALSE) -> 141 | M141: =DimPostnummer[[#This Row],[Fylke]] -> OSLO | N141: G | O141: Gateadresser og stedsadresser | P141: 59.9119600 | Q141: 10.7159500 | R141: =DimPostnummer[[#This Row],[Postnummer]]*1 -> 270
A142: 0271 | B142: OSLO | C142: 03 | D142: OSLO | E142: 0301 | F142: OSLO | G142: =DimPostnummer[[#This Row],[Postnummer]]*1 -> 271 | H142: 100 | I142: 100 | J142: - Stor-Oslo | K142: =DimPostnummer[[#This Row],[Poststed]] -> OSLO | L142: =VLOOKUP(DimPostnummer[[#This Row],[SK input]],'Styr treff'!$A:$J,7,FALSE) -> 141 | M142: =DimPostnummer[[#This Row],[Fylke]] -> OSLO | N142: G | O142: Gateadresser og stedsadresser | P142: 59.9133800 | Q142: 10.7071000 | R142: =DimPostnummer[[#This Row],[Postnummer]]*1 -> 271
A143: 0272 | B143: OSLO | C143: 03 | D143: OSLO | E143: 0301 | F143: OSLO | G143: =DimPostnummer[[#This Row],[Postnummer]]*1 -> 272 | H143: 100 | I143: 100 | J143: - Stor-Oslo | K143: =DimPostnummer[[#This Row],[Poststed]] -> OSLO | L143: =VLOOKUP(DimPostnummer[[#This Row],[SK input]],'Styr treff'!$A:$J,7,FALSE) -> 141 | M143: =DimPostnummer[[#This Row],[Fylke]] -> OSLO | N143: G | O143: Gateadresser og stedsadresser | P143: 59.9135400 | Q143: 10.7097300 | R143: =DimPostnummer[[#This Row],[Postnummer]]*1 -> 272
A144: 0273 | B144: OSLO | C144: 03 | D144: OSLO | E144: 0301 | F144: OSLO | G144: =DimPostnummer[[#This Row],[Postnummer]]*1 -> 273 | H144: 100 | I144: 100 | J144: - Stor-Oslo | K144: =DimPostnummer[[#This Row],[Poststed]] -> OSLO | L144: =VLOOKUP(DimPostnummer[[#This Row],[SK input]],'Styr treff'!$A:$J,7,FALSE) -> 141 | M144: =DimPostnummer[[#This Row],[Fylke]] -> OSLO | N144: G | O144: Gateadresser og stedsadresser | P144: 59.9180600 | Q144: 10.6950700 | R144: =DimPostnummer[[#This Row],[Postnummer]]*1 -> 273
A145: 0274 | B145: OSLO | C145: 03 | D145: OSLO | E145: 0301 | F145: OSLO | G145: =DimPostnummer[[#This Row],[Postnummer]]*1 -> 274 | H145: 100 | I145: 100 | J145: - Stor-Oslo | K145: =DimPostnummer[[#This Row],[Poststed]] -> OSLO | L145: =VLOOKUP(DimPostnummer[[#This Row],[SK input]],'Styr treff'!$A:$J,7,FALSE) -> 141 | M145: =DimPostnummer[[#This Row],[Fylke]] -> OSLO | N145: G | O145: Gateadresser og stedsadresser | P145: 59.9241500 | Q145: 10.6926800 | R145: =DimPostnummer[[#This Row],[Postnummer]]*1 -> 274
A146: 0275 | B146: OSLO | C146: 03 | D146: OSLO | E146: 0301 | F146: OSLO | G146: =DimPostnummer[[#This Row],[Postnummer]]*1 -> 275 | H146: 100 | I146: 100 | J146: - Stor-Oslo | K146: =DimPostnummer[[#This Row],[Poststed]] -> OSLO | L146: =VLOOKUP(DimPostnummer[[#This Row],[SK input]],'Styr treff'!$A:$J,7,FALSE) -> 141 | M146: =DimPostnummer[[#This Row],[Fylke]] -> OSLO | N146: G | O146: Gateadresser og stedsadresser | P146: 59.9262900 | Q146: 10.6760000 | R146: =DimPostnummer[[#This Row],[Postnummer]]*1 -> 275
A147: 0276 | B147: OSLO | C147: 03 | D147: OSLO | E147: 0301 | F147: OSLO | G147: =DimPostnummer[[#This Row],[Postnummer]]*1 -> 276 | H147: 100 | I147: 100 | J147: - Stor-Oslo | K147: =DimPostnummer[[#This Row],[Poststed]] -> OSLO | L147: =VLOOKUP(DimPostnummer[[#This Row],[SK input]],'Styr treff'!$A:$J,7,FALSE) -> 141 | M147: =DimPostnummer[[#This Row],[Fylke]] -> OSLO | N147: G | O147: Gateadresser og stedsadresser | P147: 59.9251300 | Q147: 10.6833700 | R147: =DimPostnummer[[#This Row],[Postnummer]]*1 -> 276
A148: 0277 | B148: OSLO | C148: 03 | D148: OSLO | E148: 0301 | F148: OSLO | G148: =DimPostnummer[[#This Row],[Postnummer]]*1 -> 277 | H148: 100 | I148: 100 | J148: - Stor-Oslo | K148: =DimPostnummer[[#This Row],[Poststed]] -> OSLO | L148: =VLOOKUP(DimPostnummer[[#This Row],[SK input]],'Styr treff'!$A:$J,7,FALSE) -> 141 | M148: =DimPostnummer[[#This Row],[Fylke]] -> OSLO | N148: G | O148: Gateadresser og stedsadresser | P148: 59.9208500 | Q148: 10.6777600 | R148: =DimPostnummer[[#This Row],[Postnummer]]*1 -> 277
A149: 0278 | B149: OSLO | C149: 03 | D149: OSLO | E149: 0301 | F149: OSLO | G149: =DimPostnummer[[#This Row],[Postnummer]]*1 -> 278 | H149: 100 | I149: 100 | J149: - Stor-Oslo | K149: =DimPostnummer[[#This Row],[Poststed]] -> OSLO | L149: =VLOOKUP(DimPostnummer[[#This Row],[SK input]],'Styr treff'!$A:$J,7,FALSE) -> 141 | M149: =DimPostnummer[[#This Row],[Fylke]] -> OSLO | N149: G | O149: Gateadresser og stedsadresser | P149: 59.9197600 | Q149: 10.6837100 | R149: =DimPostnummer[[#This Row],[Postnummer]]*1 -> 278
A150: 0279 | B150: OSLO | C150: 03 | D150: OSLO | E150: 0301 | F150: OSLO | G150: =DimPostnummer[[#This Row],[Postnummer]]*1 -> 279 | H150: 100 | I150: 100 | J150: - Stor-Oslo | K150: =DimPostnummer[[#This Row],[Poststed]] -> OSLO | L150: =VLOOKUP(DimPostnummer[[#This Row],[SK input]],'Styr treff'!$A:$J,7,FALSE) -> 141 | M150: =DimPostnummer[[#This Row],[Fylke]] -> OSLO | N150: G | O150: Gateadresser og stedsadresser | P150: 59.9208800 | Q150: 10.6803500 | R150: =DimPostnummer[[#This Row],[Postnummer]]*1 -> 279
A151: 0280 | B151: OSLO | C151: 03 | D151: OSLO | E151: 0301 | F151: OSLO | G151: =DimPostnummer[[#This Row],[Postnummer]]*1 -> 280 | H151: 100 | I151: 100 | J151: - Stor-Oslo | K151: =DimPostnummer[[#This Row],[Poststed]] -> OSLO | L151: =VLOOKUP(DimPostnummer[[#This Row],[SK input]],'Styr treff'!$A:$J,7,FALSE) -> 141 | M151: =DimPostnummer[[#This Row],[Fylke]] -> OSLO | N151: G | O151: Gateadresser og stedsadresser | P151: 59.9240760 | Q151: 10.6548500 | R151: =DimPostnummer[[#This Row],[Postnummer]]*1 -> 280
A152: 0281 | B152: OSLO | C152: 03 | D152: OSLO | E152: 0301 | F152: OSLO | G152: =DimPostnummer[[#This Row],[Postnummer]]*1 -> 281 | H152: 100 | I152: 100 | J152: - Stor-Oslo | K152: =DimPostnummer[[#This Row],[Poststed]] -> OSLO | L152: =VLOOKUP(DimPostnummer[[#This Row],[SK input]],'Styr treff'!$A:$J,7,FALSE) -> 141 | M152: =DimPostnummer[[#This Row],[Fylke]] -> OSLO | N152: G | O152: Gateadresser og stedsadresser | P152: 59.9207200 | Q152: 10.6619800 | R152: =DimPostnummer[[#This Row],[Postnummer]]*1 -> 281
A153: 0282 | B153: OSLO | C153: 03 | D153: OSLO | E153: 0301 | F153: OSLO | G153: =DimPostnummer[[#This Row],[Postnummer]]*1 -> 282 | H153: 100 | I153: 100 | J153: - Stor-Oslo | K153: =DimPostnummer[[#This Row],[Poststed]] -> OSLO | L153: =VLOOKUP(DimPostnummer[[#This Row],[SK input]],'Styr treff'!$A:$J,7,FALSE) -> 141 | M153: =DimPostnummer[[#This Row],[Fylke]] -> OSLO | N153: G | O153: Gateadresser og stedsadresser | P153: 59.9206400 | Q153: 10.6498300 | R153: =DimPostnummer[[#This Row],[Postnummer]]*1 -> 282
A154: 0283 | B154: OSLO | C154: 03 | D154: OSLO | E154: 0301 | F154: OSLO | G154: =DimPostnummer[[#This Row],[Postnummer]]*1 -> 283 | H154: 100 | I154: 100 | J154: - Stor-Oslo | K154: =DimPostnummer[[#This Row],[Poststed]] -> OSLO | L154: =VLOOKUP(DimPostnummer[[#This Row],[SK input]],'Styr treff'!$A:$J,7,FALSE) -> 141 | M154: =DimPostnummer[[#This Row],[Fylke]] -> OSLO | N154: G | O154: Gateadresser og stedsadresser | P154: 59.9179300 | Q154: 10.6441700 | R154: =DimPostnummer[[#This Row],[Postnummer]]*1 -> 283
A155: 0284 | B155: OSLO | C155: 03 | D155: OSLO | E155: 0301 | F155: OSLO | G155: =DimPostnummer[[#This Row],[Postnummer]]*1 -> 284 | H155: 100 | I155: 100 | J155: - Stor-Oslo | K155: =DimPostnummer[[#This Row],[Poststed]] -> OSLO | L155: =VLOOKUP(DimPostnummer[[#This Row],[SK input]],'Styr treff'!$A:$J,7,FALSE) -> 141 | M155: =DimPostnummer[[#This Row],[Fylke]] -> OSLO | N155: G | O155: Gateadresser og stedsadresser | P155: 59.9238300 | Q155: 10.6352100 | R155: =DimPostnummer[[#This Row],[Postnummer]]*1 -> 284
A156: 0286 | B156: OSLO | C156: 03 | D156: OSLO | E156: 0301 | F156: OSLO | G156: =DimPostnummer[[#This Row],[Postnummer]]*1 -> 286 | H156: 100 | I156: 100 | J156: - Stor-Oslo | K156: =DimPostnummer[[#This Row],[Poststed]] -> OSLO | L156: =VLOOKUP(DimPostnummer[[#This Row],[SK input]],'Styr treff'!$A:$J,7,FALSE) -> 141 | M156: =DimPostnummer[[#This Row],[Fylke]] -> OSLO | N156: G | O156: Gateadresser og stedsadresser | P156: 59.9006600 | Q156: 10.6855800 | R156: =DimPostnummer[[#This Row],[Postnummer]]*1 -> 286
A157: 0287 | B157: OSLO | C157: 03 | D157: OSLO | E157: 0301 | F157: OSLO | G157: =DimPostnummer[[#This Row],[Postnummer]]*1 -> 287 | H157: 100 | I157: 100 | J157: - Stor-Oslo | K157: =DimPostnummer[[#This Row],[Poststed]] -> OSLO | L157: =VLOOKUP(DimPostnummer[[#This Row],[SK input]],'Styr treff'!$A:$J,7,FALSE) -> 141 | M157: =DimPostnummer[[#This Row],[Fylke]] -> OSLO | N157: G | O157: Gateadresser og stedsadresser | P157: 59.9042700 | Q157: 10.6804200 | R157: =DimPostnummer[[#This Row],[Postnummer]]*1 -> 287
A158: 0301 | B158: OSLO | C158: 03 | D158: OSLO | E158: 0301 | F158: OSLO | G158: =DimPostnummer[[#This Row],[Postnummer]]*1 -> 301 | H158: 100 | I158: 100 | J158: - Stor-Oslo | K158: =DimPostnummer[[#This Row],[Poststed]] -> OSLO | L158: =VLOOKUP(DimPostnummer[[#This Row],[SK input]],'Styr treff'!$A:$J,7,FALSE) -> 141 | M158: =DimPostnummer[[#This Row],[Fylke]] -> OSLO | N158: P | O158: Postbokser | P158: 59.9295000 | Q158: 10.7174000 | R158: =DimPostnummer[[#This Row],[Postnummer]]*1 -> 301
A159: 0302 | B159: OSLO | C159: 03 | D159: OSLO | E159: 0301 | F159: OSLO | G159: =DimPostnummer[[#This Row],[Postnummer]]*1 -> 302 | H159: 100 | I159: 100 | J159: - Stor-Oslo | K159: =DimPostnummer[[#This Row],[Poststed]] -> OSLO | L159: =VLOOKUP(DimPostnummer[[#This Row],[SK input]],'Styr treff'!$A:$J,7,FALSE) -> 141 | M159: =DimPostnummer[[#This Row],[Fylke]] -> OSLO | N159: P | O159: Postbokser | P159: 59.9295000 | Q159: 10.7174000 | R159: =DimPostnummer[[#This Row],[Postnummer]]*1 -> 302
A160: 0303 | B160: OSLO | C160: 03 | D160: OSLO | E160: 0301 | F160: OSLO | G160: =DimPostnummer[[#This Row],[Postnummer]]*1 -> 303 | H160: 100 | I160: 100 | J160: - Stor-Oslo | K160: =DimPostnummer[[#This Row],[Poststed]] -> OSLO | L160: =VLOOKUP(DimPostnummer[[#This Row],[SK input]],'Styr treff'!$A:$J,7,FALSE) -> 141 | M160: =DimPostnummer[[#This Row],[Fylke]] -> OSLO | N160: P | O160: Postbokser | P160: 59.9295000 | Q160: 10.7174000 | R160: =DimPostnummer[[#This Row],[Postnummer]]*1 -> 303
A161: 0304 | B161: OSLO | C161: 03 | D161: OSLO | E161: 0301 | F161: OSLO | G161: =DimPostnummer[[#This Row],[Postnummer]]*1 -> 304 | H161: 100 | I161: 100 | J161: - Stor-Oslo | K161: =DimPostnummer[[#This Row],[Poststed]] -> OSLO | L161: =VLOOKUP(DimPostnummer[[#This Row],[SK input]],'Styr treff'!$A:$J,7,FALSE) -> 141 | M161: =DimPostnummer[[#This Row],[Fylke]] -> OSLO | N161: P | O161: Postbokser | P161: 59.9295000 | Q161: 10.7174000 | R161: =DimPostnummer[[#This Row],[Postnummer]]*1 -> 304
A162: 0305 | B162: OSLO | C162: 03 | D162: OSLO | E162: 0301 | F162: OSLO | G162: =DimPostnummer[[#This Row],[Postnummer]]*1 -> 305 | H162: 100 | I162: 100 | J162: - Stor-Oslo | K162: =DimPostnummer[[#This Row],[Poststed]] -> OSLO | L162: =VLOOKUP(DimPostnummer[[#This Row],[SK input]],'Styr treff'!$A:$J,7,FALSE) -> 141 | M162: =DimPostnummer[[#This Row],[Fylke]] -> OSLO | N162: P | O162: Postbokser | P162: 59.9295000 | Q162: 10.7174000 | R162: =DimPostnummer[[#This Row],[Postnummer]]*1 -> 305
A163: 0306 | B163: OSLO | C163: 03 | D163: OSLO | E163: 0301 | F163: OSLO | G163: =DimPostnummer[[#This Row],[Postnummer]]*1 -> 306 | H163: 100 | I163: 100 | J163: - Stor-Oslo | K163: =DimPostnummer[[#This Row],[Poststed]] -> OSLO | L163: =VLOOKUP(DimPostnummer[[#This Row],[SK input]],'Styr treff'!$A:$J,7,FALSE) -> 141 | M163: =DimPostnummer[[#This Row],[Fylke]] -> OSLO | N163: P | O163: Postbokser | P163: 59.9295000 | Q163: 10.7174000 | R163: =DimPostnummer[[#This Row],[Postnummer]]*1 -> 306
A164: 0307 | B164: OSLO | C164: 03 | D164: OSLO | E164: 0301 | F164: OSLO | G164: =DimPostnummer[[#This Row],[Postnummer]]*1 -> 307 | H164: 100 | I164: 100 | J164: - Stor-Oslo | K164: =DimPostnummer[[#This Row],[Poststed]] -> OSLO | L164: =VLOOKUP(DimPostnummer[[#This Row],[SK input]],'Styr treff'!$A:$J,7,FALSE) -> 141 | M164: =DimPostnummer[[#This Row],[Fylke]] -> OSLO | N164: P | O164: Postbokser | P164: 59.9295000 | Q164: 10.7174000 | R164: =DimPostnummer[[#This Row],[Postnummer]]*1 -> 307
A165: 0308 | B165: OSLO | C165: 03 | D165: OSLO | E165: 0301 | F165: OSLO | G165: =DimPostnummer[[#This Row],[Postnummer]]*1 -> 308 | H165: 100 | I165: 100 | J165: - Stor-Oslo | K165: =DimPostnummer[[#This Row],[Poststed]] -> OSLO | L165: =VLOOKUP(DimPostnummer[[#This Row],[SK input]],'Styr treff'!$A:$J,7,FALSE) -> 141 | M165: =DimPostnummer[[#This Row],[Fylke]] -> OSLO | N165: P | O165: Postbokser | P165: 59.9295000 | Q165: 10.7174000 | R165: =DimPostnummer[[#This Row],[Postnummer]]*1 -> 308
A166: 0309 | B166: OSLO | C166: 03 | D166: OSLO | E166: 0301 | F166: OSLO | G166: =DimPostnummer[[#This Row],[Postnummer]]*1 -> 309 | H166: 100 | I166: 100 | J166: - Stor-Oslo | K166: =DimPostnummer[[#This Row],[Poststed]] -> OSLO | L166: =VLOOKUP(DimPostnummer[[#This Row],[SK input]],'Styr treff'!$A:$J,7,FALSE) -> 141 | M166: =DimPostnummer[[#This Row],[Fylke]] -> OSLO | N166: P | O166: Postbokser | P166: 59.9379600 | Q166: 10.6831300 | R166: =DimPostnummer[[#This Row],[Postnummer]]*1 -> 309
A167: 0311 | B167: OSLO | C167: 03 | D167: OSLO | E167: 0301 | F167: OSLO | G167: =DimPostnummer[[#This Row],[Postnummer]]*1 -> 311 | H167: 100 | I167: 100 | J167: - Stor-Oslo | K167: =DimPostnummer[[#This Row],[Poststed]] -> OSLO | L167: =VLOOKUP(DimPostnummer[[#This Row],[SK input]],'Styr treff'!$A:$J,7,FALSE) -> 141 | M167: =DimPostnummer[[#This Row],[Fylke]] -> OSLO | N167: P | O167: Postbokser | P167: 59.9285400 | Q167: 10.6471800 | R167: =DimPostnummer[[#This Row],[Postnummer]]*1 -> 311
A168: 0313 | B168: OSLO | C168: 03 | D168: OSLO | E168: 0301 | F168: OSLO | G168: =DimPostnummer[[#This Row],[Postnummer]]*1 -> 313 | H168: 100 | I168: 100 | J168: - Stor-Oslo | K168: =DimPostnummer[[#This Row],[Poststed]] -> OSLO | L168: =VLOOKUP(DimPostnummer[[#This Row],[SK input]],'Styr treff'!$A:$J,7,FALSE) -> 141 | M168: =DimPostnummer[[#This Row],[Fylke]] -> OSLO | N168: B | O168: Både gateadresser og postbokser | P168: 59.9402800 | Q168: 10.7210000 | R168: =DimPostnummer[[#This Row],[Postnummer]]*1 -> 313
A169: 0314 | B169: OSLO | C169: 03 | D169: OSLO | E169: 0301 | F169: OSLO | G169: =DimPostnummer[[#This Row],[Postnummer]]*1 -> 314 | H169: 100 | I169: 100 | J169: - Stor-Oslo | K169: =DimPostnummer[[#This Row],[Poststed]] -> OSLO | L169: =VLOOKUP(DimPostnummer[[#This Row],[SK input]],'Styr treff'!$A:$J,7,FALSE) -> 141 | M169: =DimPostnummer[[#This Row],[Fylke]] -> OSLO | N169: P | O169: Postbokser | P169: 59.9402800 | Q169: 10.7210000 | R169: =DimPostnummer[[#This Row],[Postnummer]]*1 -> 314
A170: 0315 | B170: OSLO | C170: 03 | D170: OSLO | E170: 0301 | F170: OSLO | G170: =DimPostnummer[[#This Row],[Postnummer]]*1 -> 315 | H170: 100 | I170: 100 | J170: - Stor-Oslo | K170: =DimPostnummer[[#This Row],[Poststed]] -> OSLO | L170: =VLOOKUP(DimPostnummer[[#This Row],[SK input]],'Styr treff'!$A:$J,7,FALSE) -> 141 | M170: =DimPostnummer[[#This Row],[Fylke]] -> OSLO | N170: P | O170: Postbokser | P170: 59.9406000 | Q170: 10.7231000 | R170: =DimPostnummer[[#This Row],[Postnummer]]*1 -> 315
A171: 0316 | B171: OSLO | C171: 03 | D171: OSLO | E171: 0301 | F171: OSLO | G171: =DimPostnummer[[#This Row],[Postnummer]]*1 -> 316 | H171: 100 | I171: 100 | J171: - Stor-Oslo | K171: =DimPostnummer[[#This Row],[Poststed]] -> OSLO | L171: =VLOOKUP(DimPostnummer[[#This Row],[SK input]],'Styr treff'!$A:$J,7,FALSE) -> 141 | M171: =DimPostnummer[[#This Row],[Fylke]] -> OSLO | N171: P | O171: Postbokser | P171: 59.9406000 | Q171: 10.7231000 | R171: =DimPostnummer[[#This Row],[Postnummer]]*1 -> 316
A172: 0317 | B172: OSLO | C172: 03 | D172: OSLO | E172: 0301 | F172: OSLO | G172: =DimPostnummer[[#This Row],[Postnummer]]*1 -> 317 | H172: 100 | I172: 100 | J172: - Stor-Oslo | K172: =DimPostnummer[[#This Row],[Poststed]] -> OSLO | L172: =VLOOKUP(DimPostnummer[[#This Row],[SK input]],'Styr treff'!$A:$J,7,FALSE) -> 141 | M172: =DimPostnummer[[#This Row],[Fylke]] -> OSLO | N172: P | O172: Postbokser | P172: 59.9406000 | Q172: 10.7231000 | R172: =DimPostnummer[[#This Row],[Postnummer]]*1 -> 317
A173: 0318 | B173: OSLO | C173: 03 | D173: OSLO | E173: 0301 | F173: OSLO | G173: =DimPostnummer[[#This Row],[Postnummer]]*1 -> 318 | H173: 100 | I173: 100 | J173: - Stor-Oslo | K173: =DimPostnummer[[#This Row],[Poststed]] -> OSLO | L173: =VLOOKUP(DimPostnummer[[#This Row],[SK input]],'Styr treff'!$A:$J,7,FALSE) -> 141 | M173: =DimPostnummer[[#This Row],[Fylke]] -> OSLO | N173: P | O173: Postbokser | P173: 59.9406000 | Q173: 10.7231000 | R173: =DimPostnummer[[#This Row],[Postnummer]]*1 -> 318
A174: 0319 | B174: OSLO | C174: 03 | D174: OSLO | E174: 0301 | F174: OSLO | G174: =DimPostnummer[[#This Row],[Postnummer]]*1 -> 319 | H174: 100 | I174: 100 | J174: - Stor-Oslo | K174: =DimPostnummer[[#This Row],[Poststed]] -> OSLO | L174: =VLOOKUP(DimPostnummer[[#This Row],[SK input]],'Styr treff'!$A:$J,7,FALSE) -> 141 | M174: =DimPostnummer[[#This Row],[Fylke]] -> OSLO | N174: P | O174: Postbokser | P174: 59.9430600 | Q174: 10.7034400 | R174: =DimPostnummer[[#This Row],[Postnummer]]*1 -> 319
A175: 0323 | B175: OSLO | C175: 03 | D175: OSLO | E175: 0301 | F175: OSLO | G175: =DimPostnummer[[#This Row],[Postnummer]]*1 -> 323 | H175: 100 | I175: 100 | J175: - Stor-Oslo | K175: =DimPostnummer[[#This Row],[Poststed]] -> OSLO | L175: =VLOOKUP(DimPostnummer[[#This Row],[SK input]],'Styr treff'!$A:$J,7,FALSE) -> 141 | M175: =DimPostnummer[[#This Row],[Fylke]] -> OSLO | N175: P | O175: Postbokser | P175: 59.9241300 | Q175: 10.7249100 | R175: =DimPostnummer[[#This Row],[Postnummer]]*1 -> 323
A176: 0330 | B176: OSLO | C176: 03 | D176: OSLO | E176: 0301 | F176: OSLO | G176: =DimPostnummer[[#This Row],[Postnummer]]*1 -> 330 | H176: 100 | I176: 100 | J176: - Stor-Oslo | K176: =DimPostnummer[[#This Row],[Poststed]] -> OSLO | L176: =VLOOKUP(DimPostnummer[[#This Row],[SK input]],'Styr treff'!$A:$J,7,FALSE) -> 141 | M176: =DimPostnummer[[#This Row],[Fylke]] -> OSLO | N176: P | O176: Postbokser | P176: 59.9294200 | Q176: 10.7175100 | R176: =DimPostnummer[[#This Row],[Postnummer]]*1 -> 330
A177: 0340 | B177: OSLO | C177: 03 | D177: OSLO | E177: 0301 | F177: OSLO | G177: =DimPostnummer[[#This Row],[Postnummer]]*1 -> 340 | H177: 100 | I177: 100 | J177: - Stor-Oslo | K177: =DimPostnummer[[#This Row],[Poststed]] -> OSLO | L177: =VLOOKUP(DimPostnummer[[#This Row],[SK input]],'Styr treff'!$A:$J,7,FALSE) -> 141 | M177: =DimPostnummer[[#This Row],[Fylke]] -> OSLO | N177: B | O177: Både gateadresser og postbokser | P177: 59.9355000 | Q177: 10.7205000 | R177: =DimPostnummer[[#This Row],[Postnummer]]*1 -> 340
A178: 0349 | B178: OSLO | C178: 03 | D178: OSLO | E178: 0301 | F178: OSLO | G178: =DimPostnummer[[#This Row],[Postnummer]]*1 -> 349 | H178: 100 | I178: 100 | J178: - Stor-Oslo | K178: =DimPostnummer[[#This Row],[Poststed]] -> OSLO | L178: =VLOOKUP(DimPostnummer[[#This Row],[SK input]],'Styr treff'!$A:$J,7,FALSE) -> 141 | M178: =DimPostnummer[[#This Row],[Fylke]] -> OSLO | N178: G | O178: Gateadresser og stedsadresser | P178: 59.9422900 | Q178: 10.7159000 | R178: =DimPostnummer[[#This Row],[Postnummer]]*1 -> 349
A179: 0350 | B179: OSLO | C179: 03 | D179: OSLO | E179: 0301 | F179: OSLO | G179: =DimPostnummer[[#This Row],[Postnummer]]*1 -> 350 | H179: 100 | I179: 100 | J179: - Stor-Oslo | K179: =DimPostnummer[[#This Row],[Poststed]] -> OSLO | L179: =VLOOKUP(DimPostnummer[[#This Row],[SK input]],'Styr treff'!$A:$J,7,FALSE) -> 141 | M179: =DimPostnummer[[#This Row],[Fylke]] -> OSLO | N179: G | O179: Gateadresser og stedsadresser | P179: 59.9217500 | Q179: 10.7307000 | R179: =DimPostnummer[[#This Row],[Postnummer]]*1 -> 350
A180: 0351 | B180: OSLO | C180: 03 | D180: OSLO | E180: 0301 | F180: OSLO | G180: =DimPostnummer[[#This Row],[Postnummer]]*1 -> 351 | H180: 100 | I180: 100 | J180: - Stor-Oslo | K180: =DimPostnummer[[#This Row],[Poststed]] -> OSLO | L180: =VLOOKUP(DimPostnummer[[#This Row],[SK input]],'Styr treff'!$A:$J,7,FALSE) -> 141 | M180: =DimPostnummer[[#This Row],[Fylke]] -> OSLO | N180: G | O180: Gateadresser og stedsadresser | P180: 59.9234100 | Q180: 10.7251600 | R180: =DimPostnummer[[#This Row],[Postnummer]]*1 -> 351
A181: 0352 | B181: OSLO | C181: 03 | D181: OSLO | E181: 0301 | F181: OSLO | G181: =DimPostnummer[[#This Row],[Postnummer]]*1 -> 352 | H181: 100 | I181: 100 | J181: - Stor-Oslo | K181: =DimPostnummer[[#This Row],[Poststed]] -> OSLO | L181: =VLOOKUP(DimPostnummer[[#This Row],[SK input]],'Styr treff'!$A:$J,7,FALSE) -> 141 | M181: =DimPostnummer[[#This Row],[Fylke]] -> OSLO | N181: G | O181: Gateadresser og stedsadresser | P181: 59.9220700 | Q181: 10.7283300 | R181: =DimPostnummer[[#This Row],[Postnummer]]*1 -> 352
A182: 0353 | B182: OSLO | C182: 03 | D182: OSLO | E182: 0301 | F182: OSLO | G182: =DimPostnummer[[#This Row],[Postnummer]]*1 -> 353 | H182: 100 | I182: 100 | J182: - Stor-Oslo | K182: =DimPostnummer[[#This Row],[Poststed]] -> OSLO | L182: =VLOOKUP(DimPostnummer[[#This Row],[SK input]],'Styr treff'!$A:$J,7,FALSE) -> 141 | M182: =DimPostnummer[[#This Row],[Fylke]] -> OSLO | N182: G | O182: Gateadresser og stedsadresser | P182: 59.9245800 | Q182: 10.7172200 | R182: =DimPostnummer[[#This Row],[Postnummer]]*1 -> 353
A183: 0354 | B183: OSLO | C183: 03 | D183: OSLO | E183: 0301 | F183: OSLO | G183: =DimPostnummer[[#This Row],[Postnummer]]*1 -> 354 | H183: 100 | I183: 100 | J183: - Stor-Oslo | K183: =DimPostnummer[[#This Row],[Poststed]] -> OSLO | L183: =VLOOKUP(DimPostnummer[[#This Row],[SK input]],'Styr treff'!$A:$J,7,FALSE) -> 141 | M183: =DimPostnummer[[#This Row],[Fylke]] -> OSLO | N183: G | O183: Gateadresser og stedsadresser | P183: 59.9277320 | Q183: 10.7317970 | R183: =DimPostnummer[[#This Row],[Postnummer]]*1 -> 354
A184: 0355 | B184: OSLO | C184: 03 | D184: OSLO | E184: 0301 | F184: OSLO | G184: =DimPostnummer[[#This Row],[Postnummer]]*1 -> 355 | H184: 100 | I184: 100 | J184: - Stor-Oslo | K184: =DimPostnummer[[#This Row],[Poststed]] -> OSLO | L184: =VLOOKUP(DimPostnummer[[#This Row],[SK input]],'Styr treff'!$A:$J,7,FALSE) -> 141 | M184: =DimPostnummer[[#This Row],[Fylke]] -> OSLO | N184: G | O184: Gateadresser og stedsadresser | P184: 59.9244800 | Q184: 10.7226800 | R184: =DimPostnummer[[#This Row],[Postnummer]]*1 -> 355
A185: 0356 | B185: OSLO | C185: 03 | D185: OSLO | E185: 0301 | F185: OSLO | G185: =DimPostnummer[[#This Row],[Postnummer]]*1 -> 356 | H185: 100 | I185: 100 | J185: - Stor-Oslo | K185: =DimPostnummer[[#This Row],[Poststed]] -> OSLO | L185: =VLOOKUP(DimPostnummer[[#This Row],[SK input]],'Styr treff'!$A:$J,7,FALSE) -> 141 | M185: =DimPostnummer[[#This Row],[Fylke]] -> OSLO | N185: G | O185: Gateadresser og stedsadresser | P185: 59.9266500 | Q185: 10.7249200 | R185: =DimPostnummer[[#This Row],[Postnummer]]*1 -> 356
A186: 0357 | B186: OSLO | C186: 03 | D186: OSLO | E186: 0301 | F186: OSLO | G186: =DimPostnummer[[#This Row],[Postnummer]]*1 -> 357 | H186: 100 | I186: 100 | J186: - Stor-Oslo | K186: =DimPostnummer[[#This Row],[Poststed]] -> OSLO | L186: =VLOOKUP(DimPostnummer[[#This Row],[SK input]],'Styr treff'!$A:$J,7,FALSE) -> 141 | M186: =DimPostnummer[[#This Row],[Fylke]] -> OSLO | N186: G | O186: Gateadresser og stedsadresser | P186: 59.9258290 | Q186: 10.7207680 | R186: =DimPostnummer[[#This Row],[Postnummer]]*1 -> 357
A187: 0358 | B187: OSLO | C187: 03 | D187: OSLO | E187: 0301 | F187: OSLO | G187: =DimPostnummer[[#This Row],[Postnummer]]*1 -> 358 | H187: 100 | I187: 100 | J187: - Stor-Oslo | K187: =DimPostnummer[[#This Row],[Poststed]] -> OSLO | L187: =VLOOKUP(DimPostnummer[[#This Row],[SK input]],'Styr treff'!$A:$J,7,FALSE) -> 141 | M187: =DimPostnummer[[#This Row],[Fylke]] -> OSLO | N187: G | O187: Gateadresser og stedsadresser | P187: 59.9311300 | Q187: 10.7311200 | R187: =DimPostnummer[[#This Row],[Postnummer]]*1 -> 358
A188: 0359 | B188: OSLO | C188: 03 | D188: OSLO | E188: 0301 | F188: OSLO | G188: =DimPostnummer[[#This Row],[Postnummer]]*1 -> 359 | H188: 100 | I188: 100 | J188: - Stor-Oslo | K188: =DimPostnummer[[#This Row],[Poststed]] -> OSLO | L188: =VLOOKUP(DimPostnummer[[#This Row],[SK input]],'Styr treff'!$A:$J,7,FALSE) -> 141 | M188: =DimPostnummer[[#This Row],[Fylke]] -> OSLO | N188: G | O188: Gateadresser og stedsadresser | P188: 59.9338800 | Q188: 10.7315900 | R188: =DimPostnummer[[#This Row],[Postnummer]]*1 -> 359
A189: 0360 | B189: OSLO | C189: 03 | D189: OSLO | E189: 0301 | F189: OSLO | G189: =DimPostnummer[[#This Row],[Postnummer]]*1 -> 360 | H189: 100 | I189: 100 | J189: - Stor-Oslo | K189: =DimPostnummer[[#This Row],[Poststed]] -> OSLO | L189: =VLOOKUP(DimPostnummer[[#This Row],[SK input]],'Styr treff'!$A:$J,7,FALSE) -> 141 | M189: =DimPostnummer[[#This Row],[Fylke]] -> OSLO | N189: G | O189: Gateadresser og stedsadresser | P189: 59.9319300 | Q189: 10.7272000 | R189: =DimPostnummer[[#This Row],[Postnummer]]*1 -> 360
A190: 0361 | B190: OSLO | C190: 03 | D190: OSLO | E190: 0301 | F190: OSLO | G190: =DimPostnummer[[#This Row],[Postnummer]]*1 -> 361 | H190: 100 | I190: 100 | J190: - Stor-Oslo | K190: =DimPostnummer[[#This Row],[Poststed]] -> OSLO | L190: =VLOOKUP(DimPostnummer[[#This Row],[SK input]],'Styr treff'!$A:$J,7,FALSE) -> 141 | M190: =DimPostnummer[[#This Row],[Fylke]] -> OSLO | N190: G | O190: Gateadresser og stedsadresser | P190: 59.9337000 | Q190: 10.7258600 | R190: =DimPostnummer[[#This Row],[Postnummer]]*1 -> 361
A191: 0362 | B191: OSLO | C191: 03 | D191: OSLO | E191: 0301 | F191: OSLO | G191: =DimPostnummer[[#This Row],[Postnummer]]*1 -> 362 | H191: 100 | I191: 100 | J191: - Stor-Oslo | K191: =DimPostnummer[[#This Row],[Poststed]] -> OSLO | L191: =VLOOKUP(DimPostnummer[[#This Row],[SK input]],'Styr treff'!$A:$J,7,FALSE) -> 141 | M191: =DimPostnummer[[#This Row],[Fylke]] -> OSLO | N191: G | O191: Gateadresser og stedsadresser | P191: 59.9305900 | Q191: 10.7226600 | R191: =DimPostnummer[[#This Row],[Postnummer]]*1 -> 362
A192: 0363 | B192: OSLO | C192: 03 | D192: OSLO | E192: 0301 | F192: OSLO | G192: =DimPostnummer[[#This Row],[Postnummer]]*1 -> 363 | H192: 100 | I192: 100 | J192: - Stor-Oslo | K192: =DimPostnummer[[#This Row],[Poststed]] -> OSLO | L192: =VLOOKUP(DimPostnummer[[#This Row],[SK input]],'Styr treff'!$A:$J,7,FALSE) -> 141 | M192: =DimPostnummer[[#This Row],[Fylke]] -> OSLO | N192: G | O192: Gateadresser og stedsadresser | P192: 59.9322050 | Q192: 10.7179970 | R192: =DimPostnummer[[#This Row],[Postnummer]]*1 -> 363
A193: 0364 | B193: OSLO | C193: 03 | D193: OSLO | E193: 0301 | F193: OSLO | G193: =DimPostnummer[[#This Row],[Postnummer]]*1 -> 364 | H193: 100 | I193: 100 | J193: - Stor-Oslo | K193: =DimPostnummer[[#This Row],[Poststed]] -> OSLO | L193: =VLOOKUP(DimPostnummer[[#This Row],[SK input]],'Styr treff'!$A:$J,7,FALSE) -> 141 | M193: =DimPostnummer[[#This Row],[Fylke]] -> OSLO | N193: G | O193: Gateadresser og stedsadresser | P193: 59.9304400 | Q193: 10.7212100 | R193: =DimPostnummer[[#This Row],[Postnummer]]*1 -> 364
A194: 0365 | B194: OSLO | C194: 03 | D194: OSLO | E194: 0301 | F194: OSLO | G194: =DimPostnummer[[#This Row],[Postnummer]]*1 -> 365 | H194: 100 | I194: 100 | J194: - Stor-Oslo | K194: =DimPostnummer[[#This Row],[Poststed]] -> OSLO | L194: =VLOOKUP(DimPostnummer[[#This Row],[SK input]],'Styr treff'!$A:$J,7,FALSE) -> 141 | M194: =DimPostnummer[[#This Row],[Fylke]] -> OSLO | N194: G | O194: Gateadresser og stedsadresser | P194: 59.9283500 | Q194: 10.7221400 | R194: =DimPostnummer[[#This Row],[Postnummer]]*1 -> 365
A195: 0366 | B195: OSLO | C195: 03 | D195: OSLO | E195: 0301 | F195: OSLO | G195: =DimPostnummer[[#This Row],[Postnummer]]*1 -> 366 | H195: 100 | I195: 100 | J195: - Stor-Oslo | K195: =DimPostnummer[[#This Row],[Poststed]] -> OSLO | L195: =VLOOKUP(DimPostnummer[[#This Row],[SK input]],'Styr treff'!$A:$J,7,FALSE) -> 141 | M195: =DimPostnummer[[#This Row],[Fylke]] -> OSLO | N195: G | O195: Gateadresser og stedsadresser | P195: 59.9283400 | Q195: 10.7180800 | R195: =DimPostnummer[[#This Row],[Postnummer]]*1 -> 366
A196: 0367 | B196: OSLO | C196: 03 | D196: OSLO | E196: 0301 | F196: OSLO | G196: =DimPostnummer[[#This Row],[Postnummer]]*1 -> 367 | H196: 100 | I196: 100 | J196: - Stor-Oslo | K196: =DimPostnummer[[#This Row],[Poststed]] -> OSLO | L196: =VLOOKUP(DimPostnummer[[#This Row],[SK input]],'Styr treff'!$A:$J,7,FALSE) -> 141 | M196: =DimPostnummer[[#This Row],[Fylke]] -> OSLO | N196: G | O196: Gateadresser og stedsadresser | P196: 59.9264900 | Q196: 10.7160400 | R196: =DimPostnummer[[#This Row],[Postnummer]]*1 -> 367
A197: 0368 | B197: OSLO | C197: 03 | D197: OSLO | E197: 0301 | F197: OSLO | G197: =DimPostnummer[[#This Row],[Postnummer]]*1 -> 368 | H197: 100 | I197: 100 | J197: - Stor-Oslo | K197: =DimPostnummer[[#This Row],[Poststed]] -> OSLO | L197: =VLOOKUP(DimPostnummer[[#This Row],[SK input]],'Styr treff'!$A:$J,7,FALSE) -> 141 | M197: =DimPostnummer[[#This Row],[Fylke]] -> OSLO | N197: G | O197: Gateadresser og stedsadresser | P197: 59.9274900 | Q197: 10.7126700 | R197: =DimPostnummer[[#This Row],[Postnummer]]*1 -> 368
A198: 0369 | B198: OSLO | C198: 03 | D198: OSLO | E198: 0301 | F198: OSLO | G198: =DimPostnummer[[#This Row],[Postnummer]]*1 -> 369 | H198: 100 | I198: 100 | J198: - Stor-Oslo | K198: =DimPostnummer[[#This Row],[Poststed]] -> OSLO | L198: =VLOOKUP(DimPostnummer[[#This Row],[SK input]],'Styr treff'!$A:$J,7,FALSE) -> 141 | M198: =DimPostnummer[[#This Row],[Fylke]] -> OSLO | N198: G | O198: Gateadresser og stedsadresser | P198: 59.9320800 | Q198: 10.7065200 | R198: =DimPostnummer[[#This Row],[Postnummer]]*1 -> 369
A199: 0370 | B199: OSLO | C199: 03 | D199: OSLO | E199: 0301 | F199: OSLO | G199: =DimPostnummer[[#This Row],[Postnummer]]*1 -> 370 | H199: 100 | I199: 100 | J199: - Stor-Oslo | K199: =DimPostnummer[[#This Row],[Poststed]] -> OSLO | L199: =VLOOKUP(DimPostnummer[[#This Row],[SK input]],'Styr treff'!$A:$J,7,FALSE) -> 141 | M199: =DimPostnummer[[#This Row],[Fylke]] -> OSLO | N199: G | O199: Gateadresser og stedsadresser | P199: 59.9373400 | Q199: 10.7016700 | R199: =DimPostnummer[[#This Row],[Postnummer]]*1 -> 370
A200: 0371 | B200: OSLO | C200: 03 | D200: OSLO | E200: 0301 | F200: OSLO | G200: =DimPostnummer[[#This Row],[Postnummer]]*1 -> 371 | H200: 100 | I200: 100 | J200: - Stor-Oslo | K200: =DimPostnummer[[#This Row],[Poststed]] -> OSLO | L200: =VLOOKUP(DimPostnummer[[#This Row],[SK input]],'Styr treff'!$A:$J,7,FALSE) -> 141 | M200: =DimPostnummer[[#This Row],[Fylke]] -> OSLO | N200: G | O200: Gateadresser og stedsadresser | P200: 59.9356130 | Q200: 10.7141590 | R200: =DimPostnummer[[#This Row],[Postnummer]]*1 -> 371
... 4520 more rows

Sheet Finn aktør
A1: Finn godkjent mottaker for deklareringspliktig avfall (farlig avfall) og gi deklarasjonsfullmakt
A3: Klikk for nytt søk | H3: ID:
C4: Skriv inn ditt postnummer eller kommune: | G4: Poststed:
A5: Skriv inn postnummer eller kommune | G5: =IFERROR(IFERROR((IF(C5="","",VLOOKUP($C$5,PostNr!$G:$K,5,FALSE))),VLOOKUP(C5,PostNr!$F:$R,13,FALSE)),"Finner ikke postnummer") ->  | H5: =IFERROR(IFERROR(VLOOKUP(C5,PostNr!$G:$L,6,FALSE),VLOOKUP('Finn aktør'!G5,PostNr!$G:$L,6,FALSE)),"") -> 
C7: Velg tjeneste fra liste: | G7: Velg avfallstype fra liste:
A8: Hva skal utføres? Finn mottaker | F8: =IFERROR(VLOOKUP(C8,Tjenester!$B$7:$AJ$18,34,FALSE),"") ->  | H8: =IFERROR(VLOOKUP($C$8,Tjenester!$B$7:$AH$18,HLOOKUP($H$5,Tjenester!C5:AH6,2,FALSE),FALSE),"") -> 
H9: =IFERROR(VLOOKUP($C$8,'Tjenester FULLMAKT'!$B$7:$AH$18,HLOOKUP($H$5,'Tjenester FULLMAKT'!C5:AH6,2,FALSE),FALSE),"") -> 
E10: Deklarasjonsfullmakt gis til enhet: | G10: Org. nr./ Virksomhets nr.:
A11: Ønsker du at vi skal deklarere for deg? | E11: =IF(OR(C11="",C11="NEI"),"",IFERROR(IF(AND($H$9="?",$H$11=0),"Vennligst følg kobling under for kundesenter",IF(AND($H$9=0,$H$11=0),"Vennligst følg kobling under for kundesenter",VLOOKUP($H$11,Tillatelser!$B:$H,4,FALSE))),"")) ->  | G11: =IFERROR(IF(E11="","",VLOOKUP($H$11,Tillatelser!$B:$H,5,FALSE)),"") ->  | H11: =IFERROR(IF($H$9="?",VLOOKUP(G8,'Flere valg FULLMAKT'!$B$7:$AG$14,HLOOKUP('Finn aktør'!$H$5,'Flere valg FULLMAKT'!$A$5:$AG$14,2,FALSE),FALSE),$H$9),"") -> 
C13: Første godkjente mottaker E-deklarering: | G13: Org. nr./ Virksomhets nr.:
A14: Første godkjente mottaker | C14: =IFERROR(IF(AND($H$8="?",$H$14=0),"Vennligst følg kobling under for kundesenter",IF(AND($H$8=0,$H$14=0),"Vennligst følg kobling under for kundesenter",IF(H5="IA","Vennligst følg kobling under for kundesenter",IF(C11="","",VLOOKUP($H$14,Tillatelser!$B:$H,3,FALSE))))),"") ->  | G14: =IFERROR(VLOOKUP($H$14,Tillatelser!$B:$H,5,FALSE),"") ->  | H14: =IFERROR(IF($H$8="?",VLOOKUP(G8,'Flere valg'!$B$7:$AG$14,HLOOKUP('Finn aktør'!$H$5,'Flere valg'!$A$5:$AG$14,2,FALSE),FALSE),$H$8),"") -> 
C16: Følg kobling til våre hjemmesider: | G16: Veiledning avfallsdeklarering:
A17: Følg koblinger for mer informasjon | C17: http://norskgjenvinning.no/edeklarering/ | G17: https://www.avfallsdeklarering.no/Veiledere
C19: Kontaktinformasjon NG Kundesenter (telefon): | G19: Hjelp til E-deklarering:
A20: Kontakt Norsk Gjenvinning Kundesenter | C20: 9700 | G20: edeklarering@ngn.no

Sheet Tillatelser (hidden)
A1: Tillatelse navn internt | B1: ID (SK) | C1: Navn | D1: Tillatelse navn Forurensning | E1: Tillatelse navn Brønnøysund | F1: Org.nr. | G1: Begrensning | H1: Kommentar | I1: Treff mot Tillatelse? | J1: Direkte treff fra PostNr?
A2: NG ARENDAL | B2: 130 | C2: ARENDAL | D2: Norsk Gjenvinning Stoa Arendal avfallssortering | E2: NG ARENDAL | F2: 915718825 | I2: =IF(ISERROR(VLOOKUP(B2,'Styr treff'!$G:$G,1,FALSE)),"NEI","") ->  | J2: =IF(ISERROR(VLOOKUP(B2,PostNr!I:I,1,FALSE)),"NEI","") -> 
A3: NG AUSENFJELLET | B3: 552 | C3: AUSENFJELLET | D3: Norsk Gjenvinning AS - Ausenfjellet | E3: NG AUSENFJELLET | F3: 972319201 | I3: =IF(ISERROR(VLOOKUP(B3,'Styr treff'!$G:$G,1,FALSE)),"NEI","") ->  | J3: =IF(ISERROR(VLOOKUP(B3,PostNr!I:I,1,FALSE)),"NEI","") -> NEI
A4: NG DRAMMEN | B4: 107 | C4: DRAMMEN | D4: Norsk Gjenvinning, Drammen avfallsmottak | E4: NG DRAMMEN | F4: 871717672 | H4: Tillatelsen ligger ikke på riktig org.nr. i Forurensning | I4: =IF(ISERROR(VLOOKUP(B4,'Styr treff'!$G:$G,1,FALSE)),"NEI","") ->  | J4: =IF(ISERROR(VLOOKUP(B4,PostNr!I:I,1,FALSE)),"NEI","") -> 
A5: NGM DRAMMEN | B5: 202 | C5: DRAMMEN | D5: Norsk Gjenvinning Metall AS avd. Drammen | E5: NGM DRAMMEN | F5: 973133616 | G5: Kun mottak blybatterier | I5: =IF(ISERROR(VLOOKUP(B5,'Styr treff'!$G:$G,1,FALSE)),"NEI","") -> NEI | J5: =IF(ISERROR(VLOOKUP(B5,PostNr!I:I,1,FALSE)),"NEI","") -> NEI
A6: NG FAGERSTRAND | B6: 501 | C6: FAGERSTRAND | D6: Norsk Gjenvinning Industri, Fagerstrand - behandling farlig avfall | E6: NG FAGERSTRAND | F6: 916518552 | G6: Kun bulk | H6: Feil navn i Forurensning! | I6: =IF(ISERROR(VLOOKUP(B6,'Styr treff'!$G:$G,1,FALSE)),"NEI","") ->  | J6: =IF(ISERROR(VLOOKUP(B6,PostNr!I:I,1,FALSE)),"NEI","") -> NEI
A7: NG FØRDE | B7: 135 | C7: FØRDE | D7: Norsk Gjenvinning, Førde - farleg avfall | E7: NG FØRDE | F7: 988551880 | I7: =IF(ISERROR(VLOOKUP(B7,'Styr treff'!$G:$G,1,FALSE)),"NEI","") ->  | J7: =IF(ISERROR(VLOOKUP(B7,PostNr!I:I,1,FALSE)),"NEI","") -> 
A8: NG HOLMESTRAND | B8: 119 | C8: HOLMESTRAND | D8: Norsk Gjenvinning AS, Avd. Holmestrand | E8: NG HOLMESTRAND | F8: 974631938 | I8: =IF(ISERROR(VLOOKUP(B8,'Styr treff'!$G:$G,1,FALSE)),"NEI","") ->  | J8: =IF(ISERROR(VLOOKUP(B8,PostNr!I:I,1,FALSE)),"NEI","") -> 
A9: NG KNARREVIK | B9: 504 | C9: KNARREVIK | D9: Norsk Gjenvinning Knarrevik - Mottak farlig avfall | E9: NG KNARREVIK | F9: 888550852 | I9: =IF(ISERROR(VLOOKUP(B9,'Styr treff'!$G:$G,1,FALSE)),"NEI","") ->  | J9: =IF(ISERROR(VLOOKUP(B9,PostNr!I:I,1,FALSE)),"NEI","") -> NEI
A10: NG KONGSBERG | B10: 108 | C10: KONGSBERG | D10: Gomsrud avfallsmottak - Norsk Gjenvinning | E10: NG KONGSBERG | F10: 990006970 | I10: =IF(ISERROR(VLOOKUP(B10,'Styr treff'!$G:$G,1,FALSE)),"NEI","") ->  | J10: =IF(ISERROR(VLOOKUP(B10,PostNr!I:I,1,FALSE)),"NEI","") -> 
A11: NG KONGSVINGER | B11: 102 | C11: KONGSVINGER | D11: Norsk Gjenvinning Kongsvinger | E11: NG KONGSVINGER | F11: 992627387 | I11: =IF(ISERROR(VLOOKUP(B11,'Styr treff'!$G:$G,1,FALSE)),"NEI","") ->  | J11: =IF(ISERROR(VLOOKUP(B11,PostNr!I:I,1,FALSE)),"NEI","") -> 
A12: NG KRAGERØ | B12: 138 | C12: KRAGERØ | D12: Norsk Gjenvinning, Nilsbukjerr avfallsanlegg | E12: NG KRAGERØ | F12: 971896892 | I12: =IF(ISERROR(VLOOKUP(B12,'Styr treff'!$G:$G,1,FALSE)),"NEI","") ->  | J12: =IF(ISERROR(VLOOKUP(B12,PostNr!I:I,1,FALSE)),"NEI","") -> 
A13: NG KRISTIANSAND | B13: 131 | C13: KRISTIANSAND | D13: Norsk Gjenvinning, Avd Kristiansand | E13: NG KRISTIANSAND | F13: 988550809 | I13: =IF(ISERROR(VLOOKUP(B13,'Styr treff'!$G:$G,1,FALSE)),"NEI","") ->  | J13: =IF(ISERROR(VLOOKUP(B13,PostNr!I:I,1,FALSE)),"NEI","") -> 
A14: NGI KRISTIANSUND | B14: 308 | C14: KRISTIANSUND | D14: Norsk Gjenvinning Industri, Vestbase | E14: NGI KRISTIANSUND | F14: 985286035 | H14: Har samme treff som 113! | I14: =IF(ISERROR(VLOOKUP(B14,'Styr treff'!$G:$G,1,FALSE)),"NEI","") ->  | J14: =IF(ISERROR(VLOOKUP(B14,PostNr!I:I,1,FALSE)),"NEI","") -> NEI
A15: NG KRISTIANSUND | B15: 113 | C15: KRISTIANSUND | D15: Norsk Gjenvinning, Kristiansund | E15: NG KRISTIANSUND | F15: 983022316 | I15: =IF(ISERROR(VLOOKUP(B15,'Styr treff'!$G:$G,1,FALSE)),"NEI","") ->  | J15: =IF(ISERROR(VLOOKUP(B15,PostNr!I:I,1,FALSE)),"NEI","") -> 
A16: NG LARVIK | B16: 105 | C16: LARVIK | D16: Norsk Gjenvinning, Grinda, Larvik | E16: NG LARVIK | F16: 988550744 | G16: FA fra rivning/FA-bygningsavfall | I16: =IF(ISERROR(VLOOKUP(B16,'Styr treff'!$G:$G,1,FALSE)),"NEI","") ->  | J16: =IF(ISERROR(VLOOKUP(B16,PostNr!I:I,1,FALSE)),"NEI","") -> 
A17: NG MOLDE | B17: 110 | C17: MOLDE | D17: Norsk Gjenvinning Molde - farlig avf., næringsavf | E17: NG MOLDE | F17: 990673055 | I17: =IF(ISERROR(VLOOKUP(B17,'Styr treff'!$G:$G,1,FALSE)),"NEI","") ->  | J17: =IF(ISERROR(VLOOKUP(B17,PostNr!I:I,1,FALSE)),"NEI","") -> 
A18: NG NAMSOS | B18: 114 | C18: NAMSOS | D18: Norsk Gjenvinning, Namsos | E18: NG NAMSOS | F18: 990007098 | I18: =IF(ISERROR(VLOOKUP(B18,'Styr treff'!$G:$G,1,FALSE)),"NEI","") ->  | J18: =IF(ISERROR(VLOOKUP(B18,PostNr!I:I,1,FALSE)),"NEI","") -> 
A19: NG OSLO H31-35 | B19: 141 | C19: OSLO H31-35 | D19: Norsk Gjenvinning Groruddalen miljøpark - farlig avfall mottak | E19: NG OSLO H31-35 | F19: 988551554 | G19: Dette er GMP! | H19: Også AKERSHUS, OPPLAND | I19: =IF(ISERROR(VLOOKUP(B19,'Styr treff'!$G:$G,1,FALSE)),"NEI","") ->  | J19: =IF(ISERROR(VLOOKUP(B19,PostNr!I:I,1,FALSE)),"NEI","") -> NEI
A20: NG OSLO H-40 | B20: C | C20: OSLO H-40 | D20: Norsk Gjenvinning, Haraldrudveien 40 - Oslo | E20: NG OSLO H-40 | F20: 985452113 | G20: Omfatter 7092, 7250, 7211, 7158, 7098, 7152 (tjærepapp) | I20: =IF(ISERROR(VLOOKUP(B20,'Styr treff'!$G:$G,1,FALSE)),"NEI","") -> NEI | J20: =IF(ISERROR(VLOOKUP(B20,PostNr!I:I,1,FALSE)),"NEI","") -> NEI
A21: NG PORSGRUNN | B21: 550 | C21: PORSGRUNN | D21: Norsk Gjenvinning, Porsgrunn | E21: NG PORSGRUNN | F21: 988551775 | I21: =IF(ISERROR(VLOOKUP(B21,'Styr treff'!$G:$G,1,FALSE)),"NEI","") ->  | J21: =IF(ISERROR(VLOOKUP(B21,PostNr!I:I,1,FALSE)),"NEI","") -> NEI
A22: NG RYFYLKE | B22: 144 | C22: RYFYLKE | D22: Norsk Gjenvinning Tau - Mottak farlig avfall | E22: NG RYFYLKE | F22: 972261696 | I22: =IF(ISERROR(VLOOKUP(B22,'Styr treff'!$G:$G,1,FALSE)),"NEI","") ->  | J22: =IF(ISERROR(VLOOKUP(B22,PostNr!I:I,1,FALSE)),"NEI","") -> 
A23: NG SANDNES | B23: 132b | C23: SANDNES | D23: Norsk Gjenvinning AS, avd Sandnes | E23: NG SANDNES | F23: 992388617 | I23: =IF(ISERROR(VLOOKUP(B23,'Styr treff'!$G:$G,1,FALSE)),"NEI","") ->  | J23: =IF(ISERROR(VLOOKUP(B23,PostNr!I:I,1,FALSE)),"NEI","") -> NEI
A24: NG SARPSBORG | B24: 127 | C24: SARPSBORG | D24: Norsk Gjenvinning Sarpsborg Opphaugveien | E24: NG SARPSBORG | F24: 988551449 | G24: Kun impr.trevirke og vinduer | I24: =IF(ISERROR(VLOOKUP(B24,'Styr treff'!$G:$G,1,FALSE)),"NEI","") ->  | J24: =IF(ISERROR(VLOOKUP(B24,PostNr!I:I,1,FALSE)),"NEI","") -> 
A25: NGM SARPSBORG | B25: 207 | C25: SARPSBORG | D25: Norsk Gjenvinning Metall, Greåkerveien | E25: NGM SARPSBORG | F25: 983847188 | G25: Kun mottak blybatterier | I25: =IF(ISERROR(VLOOKUP(B25,'Styr treff'!$G:$G,1,FALSE)),"NEI","") -> NEI | J25: =IF(ISERROR(VLOOKUP(B25,PostNr!I:I,1,FALSE)),"NEI","") -> NEI
A26: NG STAVANGER | B26: 132 | C26: STAVANGER | D26: Norsk Gjenvinning, Stavanger | E26: NG STAVANGER | F26: 976551672 | G26: Kun vinduer | I26: =IF(ISERROR(VLOOKUP(B26,'Styr treff'!$G:$G,1,FALSE)),"NEI","") -> NEI | J26: =IF(ISERROR(VLOOKUP(B26,PostNr!I:I,1,FALSE)),"NEI","") -> 
A27: NG TRONDHEIM | B27: 115 | C27: TRONDHEIM | D27: Norsk Gjenvinning sorteringsanlegg, Trondheim | E27: NG TRONDHEIM | F27: 988550566 | H27: 2. valg; Hauka deponi - ordinært avfall - Norsk Gjenvinning AS (har fått eget org.nr., men dette er enda ikke ført inn i Forurensning) | I27: =IF(ISERROR(VLOOKUP(B27,'Styr treff'!$G:$G,1,FALSE)),"NEI","") ->  | J27: =IF(ISERROR(VLOOKUP(B27,PostNr!I:I,1,FALSE)),"NEI","") -> 
A28: NG TØNSBERG | B28: 106 | C28: TØNSBERG | D28: Norsk Gjenvinning, Rygg næringsområde | E28: NG TØNSBERG | F28: 988550671 | I28: =IF(ISERROR(VLOOKUP(B28,'Styr treff'!$G:$G,1,FALSE)),"NEI","") ->  | J28: =IF(ISERROR(VLOOKUP(B28,PostNr!I:I,1,FALSE)),"NEI","") -> 
A29: NGR VADSØ | B29: 716 | C29: VADSØ | D29: Norsk Gjenvinning Renovasjon, Vadsø miljøstasjon | E29: NGR VADSØ | F29: 998289416 | G29: Drift av miljøstasjon/husholdningsavfall | H29: Også NORDLAND, TROMS, JAN MAYEN, SVALBARD | I29: =IF(ISERROR(VLOOKUP(B29,'Styr treff'!$G:$G,1,FALSE)),"NEI","") ->  | J29: =IF(ISERROR(VLOOKUP(B29,PostNr!I:I,1,FALSE)),"NEI","") -> 
A30: NG VERDAL | B30: 117 | C30: VERDAL | D30: Norsk Gjenvinning, Verdal | E30: NG VERDAL | F30: 890493092 | I30: =IF(ISERROR(VLOOKUP(B30,'Styr treff'!$G:$G,1,FALSE)),"NEI","") ->  | J30: =IF(ISERROR(VLOOKUP(B30,PostNr!I:I,1,FALSE)),"NEI","") -> 
A31: NG ØRA | B31: D | C31: ØRA | D31: Norsk Gjenvinning Øra | E31: NG ØRA | F31: 914843677 | G31: Kun vinduer | I31: =IF(ISERROR(VLOOKUP(B31,'Styr treff'!$G:$G,1,FALSE)),"NEI","") -> NEI | J31: =IF(ISERROR(VLOOKUP(B31,PostNr!I:I,1,FALSE)),"NEI","") -> NEI
A32: NG ÅLESUND | B32: 112 | C32: ÅLESUND | D32: Norsk Gjenvinning Ålesund | E32: NG ÅLESUND | F32: 972389781 | I32: =IF(ISERROR(VLOOKUP(B32,'Styr treff'!$G:$G,1,FALSE)),"NEI","") ->  | J32: =IF(ISERROR(VLOOKUP(B32,PostNr!I:I,1,FALSE)),"NEI","") -> 

Sheet Styr treff (hidden)
A1: 1 | B1: Alle salgskontor med georouting i kolonne A ledes mot tillatelser i kolonne G. Man styrer mot tillatelser ved å klikke i kolonne F, tomme celler styrer mot definert tillatelse pr fylke (kolonne E)
A2: Alle SK | B2: Info | C2: Salgskontor tekst | D2: Fylke pr SK | E2: Overstyring tillatelse pr fylke | F2: Velg tillatelse pr SK | G2: Kode tillatelse | H2: Fylke2 | I2: Detaljer tillatelse | J2: Kommentarer
A3: 100 | B3: 100 | C3: - Stor-Oslo | D3: =IFERROR(VLOOKUP(A3,PostNr!$I:$M,5,FALSE),"mangler postnummer") -> OSLO | E3: OSLO | F3: NG OSLO H31-35 | G3: =IFERROR(IF(AND(E3<>"",F3=""),"IA",IFERROR(VLOOKUP(F3,Tillatelser!$A:$B,2,FALSE),VLOOKUP('Styr treff'!D3,$E:$G,3,FALSE))),"mangler") -> 141 | H3: =IF(E3="","",E3) -> OSLO | I3: =IFERROR(IF(VLOOKUP(F3,Tillatelser!$D:$G,3,FALSE)=0,"",VLOOKUP(F3,Tillatelser!$D:$G,3,FALSE)),"") -> 
A4: 101 | B4: 101 | C4: - Asker/Bærum | D4: =IFERROR(VLOOKUP(A4,PostNr!$I:$M,5,FALSE),"mangler postnummer") -> AKERSHUS | E4: AKERSHUS | F4: NG OSLO H31-35 | G4: =IFERROR(IF(AND(E4<>"",F4=""),"IA",IFERROR(VLOOKUP(F4,Tillatelser!$A:$B,2,FALSE),VLOOKUP('Styr treff'!D4,$E:$G,3,FALSE))),"mangler") -> 141 | H4: AKERSHUS | I4: =IFERROR(IF(VLOOKUP(F4,Tillatelser!$D:$G,3,FALSE)=0,"",VLOOKUP(F4,Tillatelser!$D:$G,3,FALSE)),"") -> 
A5: 102 | B5: 102 | C5: - Glåmdalsregionen | D5: =IFERROR(VLOOKUP(A5,PostNr!$I:$M,5,FALSE),"mangler postnummer") -> HEDMARK | E5: HEDMARK | F5: NG KONGSVINGER | G5: =IFERROR(IF(AND(E5<>"",F5=""),"IA",IFERROR(VLOOKUP(F5,Tillatelser!$A:$B,2,FALSE),VLOOKUP('Styr treff'!D5,$E:$G,3,FALSE))),"mangler") -> 102 | H5: HEDMARK | I5: =IFERROR(IF(VLOOKUP(F5,Tillatelser!$D:$G,3,FALSE)=0,"",VLOOKUP(F5,Tillatelser!$D:$G,3,FALSE)),"") ->  | J5: 102 er SK for NG Kongsvinger
A6: 103 | B6: 103 | C6: - Follo/Moss | D6: =IFERROR(VLOOKUP(A6,PostNr!$I:$M,5,FALSE),"mangler postnummer") -> ØSTFOLD | F6: NG SARPSBORG | G6: =IFERROR(IF(AND(E6<>"",F6=""),"IA",IFERROR(VLOOKUP(F6,Tillatelser!$A:$B,2,FALSE),VLOOKUP('Styr treff'!D6,$E:$G,3,FALSE))),"mangler") -> 127 | I6: =IFERROR(IF(VLOOKUP(F6,Tillatelser!$D:$G,3,FALSE)=0,"",VLOOKUP(F6,Tillatelser!$D:$G,3,FALSE)),"") -> 
A7: 104 | B7: 104 | C7: - Skien | D7: =IFERROR(VLOOKUP(A7,PostNr!$I:$M,5,FALSE),"mangler postnummer") -> TELEMARK | E7: TELEMARK | F7: NG PORSGRUNN | G7: =IFERROR(IF(AND(E7<>"",F7=""),"IA",IFERROR(VLOOKUP(F7,Tillatelser!$A:$B,2,FALSE),VLOOKUP('Styr treff'!D7,$E:$G,3,FALSE))),"mangler") -> 550 | H7: TELEMARK | I7: =IFERROR(IF(VLOOKUP(F7,Tillatelser!$D:$G,3,FALSE)=0,"",VLOOKUP(F7,Tillatelser!$D:$G,3,FALSE)),"") -> 
A8: 105 | B8: 105 | C8: - Larvik | D8: =IFERROR(VLOOKUP(A8,PostNr!$I:$M,5,FALSE),"mangler postnummer") -> VESTFOLD | E8: VESTFOLD | F8: NG LARVIK | G8: =IFERROR(IF(AND(E8<>"",F8=""),"IA",IFERROR(VLOOKUP(F8,Tillatelser!$A:$B,2,FALSE),VLOOKUP('Styr treff'!D8,$E:$G,3,FALSE))),"mangler") -> 105 | H8: VESTFOLD | I8: =IFERROR(IF(VLOOKUP(F8,Tillatelser!$D:$G,3,FALSE)=0,"",VLOOKUP(F8,Tillatelser!$D:$G,3,FALSE)),"") -> 
A9: 106 | B9: 106 | C9: - Tønsberg | D9: =IFERROR(VLOOKUP(A9,PostNr!$I:$M,5,FALSE),"mangler postnummer") -> VESTFOLD | F9: NG TØNSBERG | G9: =IFERROR(IF(AND(E9<>"",F9=""),"IA",IFERROR(VLOOKUP(F9,Tillatelser!$A:$B,2,FALSE),VLOOKUP('Styr treff'!D9,$E:$G,3,FALSE))),"mangler") -> 106 | I9: =IFERROR(IF(VLOOKUP(F9,Tillatelser!$D:$G,3,FALSE)=0,"",VLOOKUP(F9,Tillatelser!$D:$G,3,FALSE)),"") -> 
A10: 107 | B10: 107 | C10: - Drammen | D10: =IFERROR(VLOOKUP(A10,PostNr!$I:$M,5,FALSE),"mangler postnummer") -> BUSKERUD | F10: NG DRAMMEN | G10: =IFERROR(IF(AND(E10<>"",F10=""),"IA",IFERROR(VLOOKUP(F10,Tillatelser!$A:$B,2,FALSE),VLOOKUP('Styr treff'!D10,$E:$G,3,FALSE))),"mangler") -> 107 | I10: =IFERROR(IF(VLOOKUP(F10,Tillatelser!$D:$G,3,FALSE)=0,"",VLOOKUP(F10,Tillatelser!$D:$G,3,FALSE)),"") -> 
A11: 108 | B11: 108 | C11: - Kongsberg | D11: =IFERROR(VLOOKUP(A11,PostNr!$I:$M,5,FALSE),"mangler postnummer") -> BUSKERUD | E11: BUSKERUD | F11: NG KONGSBERG | G11: =IFERROR(IF(AND(E11<>"",F11=""),"IA",IFERROR(VLOOKUP(F11,Tillatelser!$A:$B,2,FALSE),VLOOKUP('Styr treff'!D11,$E:$G,3,FALSE))),"mangler") -> 108 | H11: BUSKERUD | I11: =IFERROR(IF(VLOOKUP(F11,Tillatelser!$D:$G,3,FALSE)=0,"",VLOOKUP(F11,Tillatelser!$D:$G,3,FALSE)),"") -> 
A12: 109 | B12: 109 | C12: - Hønefoss | D12: =IFERROR(VLOOKUP(A12,PostNr!$I:$M,5,FALSE),"mangler postnummer") -> BUSKERUD | F12: NG KONGSBERG | G12: =IFERROR(IF(AND(E12<>"",F12=""),"IA",IFERROR(VLOOKUP(F12,Tillatelser!$A:$B,2,FALSE),VLOOKUP('Styr treff'!D12,$E:$G,3,FALSE))),"mangler") -> 108 | I12: =IFERROR(IF(VLOOKUP(F12,Tillatelser!$D:$G,3,FALSE)=0,"",VLOOKUP(F12,Tillatelser!$D:$G,3,FALSE)),"") -> 
A13: 110 | B13: 110 | C13: - Molde | D13: =IFERROR(VLOOKUP(A13,PostNr!$I:$M,5,FALSE),"mangler postnummer") -> MØRE OG ROMSDAL | F13: NG MOLDE | G13: =IFERROR(IF(AND(E13<>"",F13=""),"IA",IFERROR(VLOOKUP(F13,Tillatelser!$A:$B,2,FALSE),VLOOKUP('Styr treff'!D13,$E:$G,3,FALSE))),"mangler") -> 110 | I13: =IFERROR(IF(VLOOKUP(F13,Tillatelser!$D:$G,3,FALSE)=0,"",VLOOKUP(F13,Tillatelser!$D:$G,3,FALSE)),"") -> 
A14: 112 | B14: 112 | C14: - Ålesund | D14: =IFERROR(VLOOKUP(A14,PostNr!$I:$M,5,FALSE),"mangler postnummer") -> MØRE OG ROMSDAL | F14: NG ÅLESUND | G14: =IFERROR(IF(AND(E14<>"",F14=""),"IA",IFERROR(VLOOKUP(F14,Tillatelser!$A:$B,2,FALSE),VLOOKUP('Styr treff'!D14,$E:$G,3,FALSE))),"mangler") -> 112 | I14: =IFERROR(IF(VLOOKUP(F14,Tillatelser!$D:$G,3,FALSE)=0,"",VLOOKUP(F14,Tillatelser!$D:$G,3,FALSE)),"") -> 
A15: 113 | B15: 113 | C15: - Kristiansund | D15: =IFERROR(VLOOKUP(A15,PostNr!$I:$M,5,FALSE),"mangler postnummer") -> MØRE OG ROMSDAL | E15: MØRE OG ROMSDAL | F15: NG KRISTIANSUND | G15: =IFERROR(IF(AND(E15<>"",F15=""),"IA",IFERROR(VLOOKUP(F15,Tillatelser!$A:$B,2,FALSE),VLOOKUP('Styr treff'!D15,$E:$G,3,FALSE))),"mangler") -> 113 | H15: MØRE OG ROMSDAL | I15: =IFERROR(IF(VLOOKUP(F15,Tillatelser!$D:$G,3,FALSE)=0,"",VLOOKUP(F15,Tillatelser!$D:$G,3,FALSE)),"") -> 
A16: 114 | B16: 114 | C16: - Namsos | D16: =IFERROR(VLOOKUP(A16,PostNr!$I:$M,5,FALSE),"mangler postnummer") -> SØR-TRØNDELAG | F16: NG NAMSOS | G16: =IFERROR(IF(AND(E16<>"",F16=""),"IA",IFERROR(VLOOKUP(F16,Tillatelser!$A:$B,2,FALSE),VLOOKUP('Styr treff'!D16,$E:$G,3,FALSE))),"mangler") -> 114 | I16: =IFERROR(IF(VLOOKUP(F16,Tillatelser!$D:$G,3,FALSE)=0,"",VLOOKUP(F16,Tillatelser!$D:$G,3,FALSE)),"") -> 
A17: 115 | B17: 115 | C17: - Trondheim | D17: =IFERROR(VLOOKUP(A17,PostNr!$I:$M,5,FALSE),"mangler postnummer") -> SØR-TRØNDELAG | E17: SØR-TRØNDELAG | F17: NG TRONDHEIM | G17: =IFERROR(IF(AND(E17<>"",F17=""),"IA",IFERROR(VLOOKUP(F17,Tillatelser!$A:$B,2,FALSE),VLOOKUP('Styr treff'!D17,$E:$G,3,FALSE))),"mangler") -> 115 | H17: SØR-TRØNDELAG | I17: =IFERROR(IF(VLOOKUP(F17,Tillatelser!$D:$G,3,FALSE)=0,"",VLOOKUP(F17,Tillatelser!$D:$G,3,FALSE)),"") -> 
A18: 117 | B18: 117 | C18: - Verdal | D18: =IFERROR(VLOOKUP(A18,PostNr!$I:$M,5,FALSE),"mangler postnummer") -> NORD-TRØNDELAG | E18: NORD-TRØNDELAG | F18: NG VERDAL | G18: =IFERROR(IF(AND(E18<>"",F18=""),"IA",IFERROR(VLOOKUP(F18,Tillatelser!$A:$B,2,FALSE),VLOOKUP('Styr treff'!D18,$E:$G,3,FALSE))),"mangler") -> 117 | H18: NORD-TRØNDELAG | I18: =IFERROR(IF(VLOOKUP(F18,Tillatelser!$D:$G,3,FALSE)=0,"",VLOOKUP(F18,Tillatelser!$D:$G,3,FALSE)),"") -> 
A19: 118 | B19: 118 | C19: - Nord Norge | D19: =IFERROR(VLOOKUP(A19,PostNr!$I:$M,5,FALSE),"mangler postnummer") -> NORD-TRØNDELAG | E19: NORDLAND | F19: NG TRONDHEIM | G19: =IFERROR(IF(AND(E19<>"",F19=""),"IA",IFERROR(VLOOKUP(F19,Tillatelser!$A:$B,2,FALSE),VLOOKUP('Styr treff'!D19,$E:$G,3,FALSE))),"mangler") -> 115 | H19: NORDLAND | I19: =IFERROR(IF(VLOOKUP(F19,Tillatelser!$D:$G,3,FALSE)=0,"",VLOOKUP(F19,Tillatelser!$D:$G,3,FALSE)),"") -> 
A20: 119 | B20: 119 | C20: - Holmestrand | D20: =IFERROR(VLOOKUP(A20,PostNr!$I:$M,5,FALSE),"mangler postnummer") -> VESTFOLD | F20: NG HOLMESTRAND | G20: =IFERROR(IF(AND(E20<>"",F20=""),"IA",IFERROR(VLOOKUP(F20,Tillatelser!$A:$B,2,FALSE),VLOOKUP('Styr treff'!D20,$E:$G,3,FALSE))),"mangler") -> 119 | I20: =IFERROR(IF(VLOOKUP(F20,Tillatelser!$D:$G,3,FALSE)=0,"",VLOOKUP(F20,Tillatelser!$D:$G,3,FALSE)),"") -> 
A21: 120 | B21: 120 | C21: - Hamarregionen | D21: =IFERROR(VLOOKUP(A21,PostNr!$I:$M,5,FALSE),"mangler postnummer") -> HEDMARK | F21: NG OSLO H31-35 | G21: =IFERROR(IF(AND(E21<>"",F21=""),"IA",IFERROR(VLOOKUP(F21,Tillatelser!$A:$B,2,FALSE),VLOOKUP('Styr treff'!D21,$E:$G,3,FALSE))),"mangler") -> 141 | I21: =IFERROR(IF(VLOOKUP(F21,Tillatelser!$D:$G,3,FALSE)=0,"",VLOOKUP(F21,Tillatelser!$D:$G,3,FALSE)),"") ->  | J21: I SAP er ØG salgskontor 120-126 Postnummer 2301-2985
A22: 121 | B22: 121 | C22: - Østerdalen | D22: =IFERROR(VLOOKUP(A22,PostNr!$I:$M,5,FALSE),"mangler postnummer") -> HEDMARK | F22: NG KONGSVINGER | G22: =IFERROR(IF(AND(E22<>"",F22=""),"IA",IFERROR(VLOOKUP(F22,Tillatelser!$A:$B,2,FALSE),VLOOKUP('Styr treff'!D22,$E:$G,3,FALSE))),"mangler") -> 102 | I22: =IFERROR(IF(VLOOKUP(F22,Tillatelser!$D:$G,3,FALSE)=0,"",VLOOKUP(F22,Tillatelser!$D:$G,3,FALSE)),"") ->  | J22: I SAP er ØG salgskontor 120-126 Postnummer 2301-2985
A23: 122 | B23: 122 | C23: - GLT regionen | D23: =IFERROR(VLOOKUP(A23,PostNr!$I:$M,5,FALSE),"mangler postnummer") -> OPPLAND | E23: OPPLAND | F23: NG AUSENFJELLET | G23: =IFERROR(IF(AND(E23<>"",F23=""),"IA",IFERROR(VLOOKUP(F23,Tillatelser!$A:$B,2,FALSE),VLOOKUP('Styr treff'!D23,$E:$G,3,FALSE))),"mangler") -> 552 | H23: OPPLAND | I23: =IFERROR(IF(VLOOKUP(F23,Tillatelser!$D:$G,3,FALSE)=0,"",VLOOKUP(F23,Tillatelser!$D:$G,3,FALSE)),"") ->  | J23: I SAP er ØG salgskontor 120-126 Postnummer 2301-2985
A24: 123 | B24: 123 | C24: - HRA regionen | D24: =IFERROR(VLOOKUP(A24,PostNr!$I:$M,5,FALSE),"mangler postnummer") -> OPPLAND | F24: NG KONGSVINGER | G24: =IFERROR(IF(AND(E24<>"",F24=""),"IA",IFERROR(VLOOKUP(F24,Tillatelser!$A:$B,2,FALSE),VLOOKUP('Styr treff'!D24,$E:$G,3,FALSE))),"mangler") -> 102 | I24: =IFERROR(IF(VLOOKUP(F24,Tillatelser!$D:$G,3,FALSE)=0,"",VLOOKUP(F24,Tillatelser!$D:$G,3,FALSE)),"") ->  | J24: I SAP er ØG salgskontor 120-126 Postnummer 2301-2985
A25: 124 | B25: 124 | C25: - Lillehammerregionen | D25: =IFERROR(VLOOKUP(A25,PostNr!$I:$M,5,FALSE),"mangler postnummer") -> OPPLAND | F25: NG KONGSVINGER | G25: =IFERROR(IF(AND(E25<>"",F25=""),"IA",IFERROR(VLOOKUP(F25,Tillatelser!$A:$B,2,FALSE),VLOOKUP('Styr treff'!D25,$E:$G,3,FALSE))),"mangler") -> 102 | I25: =IFERROR(IF(VLOOKUP(F25,Tillatelser!$D:$G,3,FALSE)=0,"",VLOOKUP(F25,Tillatelser!$D:$G,3,FALSE)),"") ->  | J25: I SAP er ØG salgskontor 120-126 Postnummer 2301-2985
A26: 125 | B26: 125 | C26: - Gudbrandsdalen | D26: =IFERROR(VLOOKUP(A26,PostNr!$I:$M,5,FALSE),"mangler postnummer") -> OPPLAND | F26: NG KONGSVINGER | G26: =IFERROR(IF(AND(E26<>"",F26=""),"IA",IFERROR(VLOOKUP(F26,Tillatelser!$A:$B,2,FALSE),VLOOKUP('Styr treff'!D26,$E:$G,3,FALSE))),"mangler") -> 102 | I26: =IFERROR(IF(VLOOKUP(F26,Tillatelser!$D:$G,3,FALSE)=0,"",VLOOKUP(F26,Tillatelser!$D:$G,3,FALSE)),"") ->  | J26: I SAP er ØG salgskontor 120-126 Postnummer 2301-2985
A27: 126 | B27: 126 | C27: - Valdres | D27: =IFERROR(VLOOKUP(A27,PostNr!$I:$M,5,FALSE),"mangler postnummer") -> OPPLAND | F27: NG KONGSVINGER | G27: =IFERROR(IF(AND(E27<>"",F27=""),"IA",IFERROR(VLOOKUP(F27,Tillatelser!$A:$B,2,FALSE),VLOOKUP('Styr treff'!D27,$E:$G,3,FALSE))),"mangler") -> 102 | I27: =IFERROR(IF(VLOOKUP(F27,Tillatelser!$D:$G,3,FALSE)=0,"",VLOOKUP(F27,Tillatelser!$D:$G,3,FALSE)),"") ->  | J27: I SAP er ØG salgskontor 120-126 Postnummer 2301-2985
A28: 127 | B28: 127 | C28: - Sarpsborg/Fredriksta | D28: =IFERROR(VLOOKUP(A28,PostNr!$I:$M,5,FALSE),"mangler postnummer") -> ØSTFOLD | E28: ØSTFOLD | F28: NG SARPSBORG | G28: =IFERROR(IF(AND(E28<>"",F28=""),"IA",IFERROR(VLOOKUP(F28,Tillatelser!$A:$B,2,FALSE),VLOOKUP('Styr treff'!D28,$E:$G,3,FALSE))),"mangler") -> 127 | H28: ØSTFOLD | I28: =IFERROR(IF(VLOOKUP(F28,Tillatelser!$D:$G,3,FALSE)=0,"",VLOOKUP(F28,Tillatelser!$D:$G,3,FALSE)),"") -> 
A29: 128 | B29: 128 | C29: - Indre Østfold/Halden | D29: =IFERROR(VLOOKUP(A29,PostNr!$I:$M,5,FALSE),"mangler postnummer") -> ØSTFOLD | F29: NG SARPSBORG | G29: =IFERROR(IF(AND(E29<>"",F29=""),"IA",IFERROR(VLOOKUP(F29,Tillatelser!$A:$B,2,FALSE),VLOOKUP('Styr treff'!D29,$E:$G,3,FALSE))),"mangler") -> 127 | I29: =IFERROR(IF(VLOOKUP(F29,Tillatelser!$D:$G,3,FALSE)=0,"",VLOOKUP(F29,Tillatelser!$D:$G,3,FALSE)),"") -> 
A30: 129 | B30: 129 | C30: - Romerike | D30: =IFERROR(VLOOKUP(A30,PostNr!$I:$M,5,FALSE),"mangler postnummer") -> AKERSHUS | F30: NG AUSENFJELLET | G30: =IFERROR(IF(AND(E30<>"",F30=""),"IA",IFERROR(VLOOKUP(F30,Tillatelser!$A:$B,2,FALSE),VLOOKUP('Styr treff'!D30,$E:$G,3,FALSE))),"mangler") -> 552 | I30: =IFERROR(IF(VLOOKUP(F30,Tillatelser!$D:$G,3,FALSE)=0,"",VLOOKUP(F30,Tillatelser!$D:$G,3,FALSE)),"") -> 
A31: 130 | B31: 130 | C31: - Arendal | D31: =IFERROR(VLOOKUP(A31,PostNr!$I:$M,5,FALSE),"mangler postnummer") -> AUST-AGDER | E31: AUST-AGDER | F31: NG ARENDAL | G31: =IFERROR(IF(AND(E31<>"",F31=""),"IA",IFERROR(VLOOKUP(F31,Tillatelser!$A:$B,2,FALSE),VLOOKUP('Styr treff'!D31,$E:$G,3,FALSE))),"mangler") -> 130 | H31: AUST-AGDER | I31: =IFERROR(IF(VLOOKUP(F31,Tillatelser!$D:$G,3,FALSE)=0,"",VLOOKUP(F31,Tillatelser!$D:$G,3,FALSE)),"") -> 
A32: 131 | B32: 131 | C32: - Kristiansand | D32: =IFERROR(VLOOKUP(A32,PostNr!$I:$M,5,FALSE),"mangler postnummer") -> VEST-AGDER | E32: VEST-AGDER | F32: NG KRISTIANSAND | G32: =IFERROR(IF(AND(E32<>"",F32=""),"IA",IFERROR(VLOOKUP(F32,Tillatelser!$A:$B,2,FALSE),VLOOKUP('Styr treff'!D32,$E:$G,3,FALSE))),"mangler") -> 131 | H32: VEST-AGDER | I32: =IFERROR(IF(VLOOKUP(F32,Tillatelser!$D:$G,3,FALSE)=0,"",VLOOKUP(F32,Tillatelser!$D:$G,3,FALSE)),"") -> 
A33: 132 | B33: 132 | C33: - Stavanger | D33: =IFERROR(VLOOKUP(A33,PostNr!$I:$M,5,FALSE),"mangler postnummer") -> ROGALAND | E33: ROGALAND | F33: NG SANDNES | G33: =IFERROR(IF(AND(E33<>"",F33=""),"IA",IFERROR(VLOOKUP(F33,Tillatelser!$A:$B,2,FALSE),VLOOKUP('Styr treff'!D33,$E:$G,3,FALSE))),"mangler") -> 132b | H33: ROGALAND | I33: =IFERROR(IF(VLOOKUP(F33,Tillatelser!$D:$G,3,FALSE)=0,"",VLOOKUP(F33,Tillatelser!$D:$G,3,FALSE)),"") -> 
A34: 133 | B34: 133 | C34: - Haugesund | D34: =IFERROR(VLOOKUP(A34,PostNr!$I:$M,5,FALSE),"mangler postnummer") -> ROGALAND | F34: NG SANDNES | G34: =IFERROR(IF(AND(E34<>"",F34=""),"IA",IFERROR(VLOOKUP(F34,Tillatelser!$A:$B,2,FALSE),VLOOKUP('Styr treff'!D34,$E:$G,3,FALSE))),"mangler") -> 132b | I34: =IFERROR(IF(VLOOKUP(F34,Tillatelser!$D:$G,3,FALSE)=0,"",VLOOKUP(F34,Tillatelser!$D:$G,3,FALSE)),"") -> 
A35: 134 | B35: 134 | C35: - Bergen | D35: =IFERROR(VLOOKUP(A35,PostNr!$I:$M,5,FALSE),"mangler postnummer") -> HORDALAND | E35: HORDALAND | F35: NG KNARREVIK | G35: =IFERROR(IF(AND(E35<>"",F35=""),"IA",IFERROR(VLOOKUP(F35,Tillatelser!$A:$B,2,FALSE),VLOOKUP('Styr treff'!D35,$E:$G,3,FALSE))),"mangler") -> 504 | H35: HORDALAND | I35: =IFERROR(IF(VLOOKUP(F35,Tillatelser!$D:$G,3,FALSE)=0,"",VLOOKUP(F35,Tillatelser!$D:$G,3,FALSE)),"") -> 
A36: 135 | B36: 135 | C36: - Førde | D36: =IFERROR(VLOOKUP(A36,PostNr!$I:$M,5,FALSE),"mangler postnummer") -> SOGN OG FJORDANE | E36: SOGN OG FJORDANE | F36: NG FØRDE | G36: =IFERROR(IF(AND(E36<>"",F36=""),"IA",IFERROR(VLOOKUP(F36,Tillatelser!$A:$B,2,FALSE),VLOOKUP('Styr treff'!D36,$E:$G,3,FALSE))),"mangler") -> 135 | H36: SOGN OG FJORDANE | I36: =IFERROR(IF(VLOOKUP(F36,Tillatelser!$D:$G,3,FALSE)=0,"",VLOOKUP(F36,Tillatelser!$D:$G,3,FALSE)),"") -> 
A37: 136 | B37: 136 | C37: - Florø | D37: =IFERROR(VLOOKUP(A37,PostNr!$I:$M,5,FALSE),"mangler postnummer") -> SOGN OG FJORDANE | F37: NG FØRDE | G37: =IFERROR(IF(AND(E37<>"",F37=""),"IA",IFERROR(VLOOKUP(F37,Tillatelser!$A:$B,2,FALSE),VLOOKUP('Styr treff'!D37,$E:$G,3,FALSE))),"mangler") -> 135 | I37: =IFERROR(IF(VLOOKUP(F37,Tillatelser!$D:$G,3,FALSE)=0,"",VLOOKUP(F37,Tillatelser!$D:$G,3,FALSE)),"") -> 
A38: 138 | B38: 138 | C38: - Kragerø | D38: =IFERROR(VLOOKUP(A38,PostNr!$I:$M,5,FALSE),"mangler postnummer") -> TELEMARK | F38: NG KRAGERØ | G38: =IFERROR(IF(AND(E38<>"",F38=""),"IA",IFERROR(VLOOKUP(F38,Tillatelser!$A:$B,2,FALSE),VLOOKUP('Styr treff'!D38,$E:$G,3,FALSE))),"mangler") -> 138 | I38: =IFERROR(IF(VLOOKUP(F38,Tillatelser!$D:$G,3,FALSE)=0,"",VLOOKUP(F38,Tillatelser!$D:$G,3,FALSE)),"") -> 
A39: 139 | B39: 139 | C39: - Ørsta | D39: =IFERROR(VLOOKUP(A39,PostNr!$I:$M,5,FALSE),"mangler postnummer") -> MØRE OG ROMSDAL | F39: NGI KRISTIANSUND | G39: =IFERROR(IF(AND(E39<>"",F39=""),"IA",IFERROR(VLOOKUP(F39,Tillatelser!$A:$B,2,FALSE),VLOOKUP('Styr treff'!D39,$E:$G,3,FALSE))),"mangler") -> 308 | I39: =IFERROR(IF(VLOOKUP(F39,Tillatelser!$D:$G,3,FALSE)=0,"",VLOOKUP(F39,Tillatelser!$D:$G,3,FALSE)),"") -> 
A40: 142 | B40: 142 | C40: - Follo | D40: =IFERROR(VLOOKUP(A40,PostNr!$I:$M,5,FALSE),"mangler postnummer") -> AKERSHUS | F40: NG FAGERSTRAND | G40: =IFERROR(IF(AND(E40<>"",F40=""),"IA",IFERROR(VLOOKUP(F40,Tillatelser!$A:$B,2,FALSE),VLOOKUP('Styr treff'!D40,$E:$G,3,FALSE))),"mangler") -> 501 | I40: =IFERROR(IF(VLOOKUP(F40,Tillatelser!$D:$G,3,FALSE)=0,"",VLOOKUP(F40,Tillatelser!$D:$G,3,FALSE)),"") ->  | J40: Eneste direkte treff Fagerstrand
A41: 144 | B41: 144 | C41: - Ryfylke | D41: =IFERROR(VLOOKUP(A41,PostNr!$I:$M,5,FALSE),"mangler postnummer") -> ROGALAND | F41: NG RYFYLKE | G41: =IFERROR(IF(AND(E41<>"",F41=""),"IA",IFERROR(VLOOKUP(F41,Tillatelser!$A:$B,2,FALSE),VLOOKUP('Styr treff'!D41,$E:$G,3,FALSE))),"mangler") -> 144 | I41: =IFERROR(IF(VLOOKUP(F41,Tillatelser!$D:$G,3,FALSE)=0,"",VLOOKUP(F41,Tillatelser!$D:$G,3,FALSE)),"") -> 
A42: 146 | B42: 146 | C42: - Mandal | D42: =IFERROR(VLOOKUP(A42,PostNr!$I:$M,5,FALSE),"mangler postnummer") -> VEST-AGDER | F42: NG KRISTIANSAND | G42: =IFERROR(IF(AND(E42<>"",F42=""),"IA",IFERROR(VLOOKUP(F42,Tillatelser!$A:$B,2,FALSE),VLOOKUP('Styr treff'!D42,$E:$G,3,FALSE))),"mangler") -> 131 | I42: =IFERROR(IF(VLOOKUP(F42,Tillatelser!$D:$G,3,FALSE)=0,"",VLOOKUP(F42,Tillatelser!$D:$G,3,FALSE)),"") -> 
A43: 147 | B43: 147 | C43: - Lyngdal | D43: =IFERROR(VLOOKUP(A43,PostNr!$I:$M,5,FALSE),"mangler postnummer") -> VEST-AGDER | F43: NG KRISTIANSAND | G43: =IFERROR(IF(AND(E43<>"",F43=""),"IA",IFERROR(VLOOKUP(F43,Tillatelser!$A:$B,2,FALSE),VLOOKUP('Styr treff'!D43,$E:$G,3,FALSE))),"mangler") -> 131 | I43: =IFERROR(IF(VLOOKUP(F43,Tillatelser!$D:$G,3,FALSE)=0,"",VLOOKUP(F43,Tillatelser!$D:$G,3,FALSE)),"") -> 
A44: 149 | B44: 149 | C44: - Setesdalen | D44: =IFERROR(VLOOKUP(A44,PostNr!$I:$M,5,FALSE),"mangler postnummer") -> VEST-AGDER | F44: NG KRISTIANSAND | G44: =IFERROR(IF(AND(E44<>"",F44=""),"IA",IFERROR(VLOOKUP(F44,Tillatelser!$A:$B,2,FALSE),VLOOKUP('Styr treff'!D44,$E:$G,3,FALSE))),"mangler") -> 131 | I44: =IFERROR(IF(VLOOKUP(F44,Tillatelser!$D:$G,3,FALSE)=0,"",VLOOKUP(F44,Tillatelser!$D:$G,3,FALSE)),"") -> 
A45: 715 | B45: mangler | C45: - Troms | D45: =IFERROR(VLOOKUP(A45,PostNr!$I:$M,5,FALSE),"mangler postnummer") -> mangler postnummer | E45: TROMS | F45: NGR VADSØ | G45: =IFERROR(IF(AND(E45<>"",F45=""),"IA",IFERROR(VLOOKUP(F45,Tillatelser!$A:$B,2,FALSE),VLOOKUP('Styr treff'!D45,$E:$G,3,FALSE))),"mangler") -> 716 | H45: =IF(E45="","",E45) -> TROMS | I45: =IFERROR(IF(VLOOKUP(F45,Tillatelser!$D:$G,3,FALSE)=0,"",VLOOKUP(F45,Tillatelser!$D:$G,3,FALSE)),"") ->  | J45: Hva gjør vi i NORD?
A46: 716 | B46: 716 | C46: - Finnmark | D46: =IFERROR(VLOOKUP(A46,PostNr!$I:$M,5,FALSE),"mangler postnummer") -> NORDLAND | E46: FINNMARK | F46: NGR VADSØ | G46: =IFERROR(IF(AND(E46<>"",F46=""),"IA",IFERROR(VLOOKUP(F46,Tillatelser!$A:$B,2,FALSE),VLOOKUP('Styr treff'!D46,$E:$G,3,FALSE))),"mangler") -> 716 | H46: =IF(E46="","",E46) -> FINNMARK | I46: =IFERROR(IF(VLOOKUP(F46,Tillatelser!$D:$G,3,FALSE)=0,"",VLOOKUP(F46,Tillatelser!$D:$G,3,FALSE)),"") ->  | J46: Hva gjør vi i NORD?
A47: 716 | B47: 716 | C47: - Finnmark | D47: =IFERROR(VLOOKUP(A47,PostNr!$I:$M,5,FALSE),"mangler postnummer") -> NORDLAND | E47: JAN MAYEN | F47: NGR VADSØ | G47: =IFERROR(IF(AND(E47<>"",F47=""),"IA",IFERROR(VLOOKUP(F47,Tillatelser!$A:$B,2,FALSE),VLOOKUP('Styr treff'!D47,$E:$G,3,FALSE))),"mangler") -> 716 | H47: =IF(E47="","",E47) -> JAN MAYEN | I47: =IFERROR(IF(VLOOKUP(F47,Tillatelser!$D:$G,3,FALSE)=0,"",VLOOKUP(F47,Tillatelser!$D:$G,3,FALSE)),"") ->  | J47: Hva gjør vi i NORD?
A48: 716 | B48: 716 | C48: - Finnmark | D48: =IFERROR(VLOOKUP(A48,PostNr!$I:$M,5,FALSE),"mangler postnummer") -> NORDLAND | E48: SVALBARD | F48: NGR VADSØ | G48: =IFERROR(IF(AND(E48<>"",F48=""),"IA",IFERROR(VLOOKUP(F48,Tillatelser!$A:$B,2,FALSE),VLOOKUP('Styr treff'!D48,$E:$G,3,FALSE))),"mangler") -> 716 | H48: =IF(E48="","",E48) -> SVALBARD | I48: =IFERROR(IF(VLOOKUP(F48,Tillatelser!$D:$G,3,FALSE)=0,"",VLOOKUP(F48,Tillatelser!$D:$G,3,FALSE)),"") ->  | J48: Hva gjør vi i NORD?

Sheet Tjenester (hidden)
A1: Skriv inn treff i rosa celler. 0=ingen treff. ?=Kanskje, avhengig av flere valg | C1: Vest | D1: Vest | E1: Vest | F1: Sør-Vest | G1: Sør-Vest | H1: Sør-Vest | I1: Sør-Vest | J1: Sør | K1: Sør | L1: Sør | M1: Sør | N1: Sør | O1: Sør/ Oslo | P1: Sør/ Oslo | Q1: Oslo | R1: Oslo | S1: Oslo | T1: Oslo | U1: Oslo | V1: Oslo | W1: Øst | X1: Øst | Y1: Øst | Z1: Nord | AA1: Nord | AB1: Nord | AC1: Nord | AD1: Nord | AE1: Nord | AF1: Nord | AG1: dummy | AH1: Nord
B2: Fylke: | C2: Sogn og Fjordane | D2: Hordaland | E2: Rogaland | F2: Rogaland | G2: Rogaland | H2: Aust-Agder | I2: Vest-Agder | J2: Telemark | K2: Telemark | L2: Vestfold | M2: Vestfold | N2: Vestfold | O2: Buskerud | P2: Buskerud | Q2: Buskerud | R2: Oslo | S2: Oslo | T2: Akershus | U2: Oslo | V2: Hedmark | W2: Østfold | X2: Østfold | Y2: Østfold | Z2: Møre og Romsdal | AA2: Møre og Romsdal | AB2: Møre og Romsdal | AC2: Møre og Romsdal | AD2: Sør-Trøndelag | AE2: Sør-Trøndelag | AF2: Nord-Trøndelag | AG2: Finnmark | AH2: Finnmark
A3: 2 | B3: Salgskontor: | C3: Førde | D3: FA Knarrevik | E3: NG SANDNES | F3: Stavanger | G3: Ryfylke | H3: Arendal | I3: Kristiansand | J3: Kragerø | K3: FA Porsgrunn | L3: Larvik | M3: Tønsberg | N3: Holmestrand | O3: Kongsberg | P3: NG DRAMMEN | Q3: NGM DRAMMEN | R3: Anlegg GMP | S3: Tomwil (H-40) | T3: FA Fagerstrand/ Drammen | U3: FA Ausenfjellet | V3: KONGSVINGER | W3: NGM SARPSBORG | X3: ØRA | Y3: Sarpsborg/Fredriksta | Z3: Molde | AA3: Kristiansund | AB3: IND Kristiansund | AC3: Ålesund | AD3: Trondheim | AE3: Namsos | AF3: Verdal | AG3: Haugesund | AH3: VADSØ
B4: Tillatelser: | C4: =VLOOKUP(C5,Tillatelser!$B:$D,3,FALSE) -> Norsk Gjenvinning, Førde - farleg avfall | D4: =VLOOKUP(D5,Tillatelser!$B:$D,3,FALSE) -> Norsk Gjenvinning Knarrevik - Mottak farlig avfall | E4: =VLOOKUP(E5,Tillatelser!$B:$D,3,FALSE) -> Norsk Gjenvinning AS, avd Sandnes | F4: =VLOOKUP(F5,Tillatelser!$B:$D,3,FALSE) -> Norsk Gjenvinning, Stavanger | G4: =VLOOKUP(G5,Tillatelser!$B:$D,3,FALSE) -> Norsk Gjenvinning Tau - Mottak farlig avfall | H4: =VLOOKUP(H5,Tillatelser!$B:$D,3,FALSE) -> Norsk Gjenvinning Stoa Arendal avfallssortering | I4: =VLOOKUP(I5,Tillatelser!$B:$D,3,FALSE) -> Norsk Gjenvinning, Avd Kristiansand | J4: =VLOOKUP(J5,Tillatelser!$B:$D,3,FALSE) -> Norsk Gjenvinning, Nilsbukjerr avfallsanlegg | K4: =VLOOKUP(K5,Tillatelser!$B:$D,3,FALSE) -> Norsk Gjenvinning, Porsgrunn | L4: =VLOOKUP(L5,Tillatelser!$B:$D,3,FALSE) -> Norsk Gjenvinning, Grinda, Larvik | M4: =VLOOKUP(M5,Tillatelser!$B:$D,3,FALSE) -> Norsk Gjenvinning, Rygg næringsområde | N4: =VLOOKUP(N5,Tillatelser!$B:$D,3,FALSE) -> Norsk Gjenvinning AS, Avd. Holmestrand | O4: =VLOOKUP(O5,Tillatelser!$B:$D,3,FALSE) -> Gomsrud avfallsmottak - Norsk Gjenvinning | P4: =VLOOKUP(P5,Tillatelser!$B:$D,3,FALSE) -> Norsk Gjenvinning, Drammen avfallsmottak | Q4: =VLOOKUP(Q5,Tillatelser!$B:$D,3,FALSE) -> Norsk Gjenvinning Metall AS avd. Drammen | R4: =VLOOKUP(R5,Tillatelser!$B:$D,3,FALSE) -> Norsk Gjenvinning Groruddalen miljøpark - farlig avfall mottak | S4: =VLOOKUP(S5,Tillatelser!$B:$D,3,FALSE) -> Norsk Gjenvinning, Haraldrudveien 40 - Oslo | T4: =VLOOKUP(T5,Tillatelser!$B:$D,3,FALSE) -> Norsk Gjenvinning Industri, Fagerstrand - behandling farlig avfall | U4: =VLOOKUP(U5,Tillatelser!$B:$D,3,FALSE) -> Norsk Gjenvinning AS - Ausenfjellet | V4: =VLOOKUP(V5,Tillatelser!$B:$D,3,FALSE) -> Norsk Gjenvinning Kongsvinger | W4: =VLOOKUP(W5,Tillatelser!$B:$D,3,FALSE) -> Norsk Gjenvinning Metall, Greåkerveien | X4: =VLOOKUP(X5,Tillatelser!$B:$D,3,FALSE) -> Norsk Gjenvinning Øra | Y4: =VLOOKUP(Y5,Tillatelser!$B:$D,3,FALSE) -> Norsk Gjenvinning Sarpsborg Opphaugveien | Z4: =VLOOKUP(Z5,Tillatelser!$B:$D,3,FALSE) -> Norsk Gjenvinning Molde - farlig avf., næringsavf | AA4: =VLOOKUP(AA5,Tillatelser!$B:$D,3,FALSE) -> Norsk Gjenvinning, Kristiansund | AB4: =VLOOKUP(AB5,Tillatelser!$B:$D,3,FALSE) -> Norsk Gjenvinning Industri, Vestbase | AC4: =VLOOKUP(AC5,Tillatelser!$B:$D,3,FALSE) -> Norsk Gjenvinning Ålesund | AD4: =VLOOKUP(AD5,Tillatelser!$B:$D,3,FALSE) -> Norsk Gjenvinning sorteringsanlegg, Trondheim | AE4: =VLOOKUP(AE5,Tillatelser!$B:$D,3,FALSE) -> Norsk Gjenvinning, Namsos | AF4: =VLOOKUP(AF5,Tillatelser!$B:$D,3,FALSE) -> Norsk Gjenvinning, Verdal | AG4: Haugesund | AH4: =VLOOKUP(AH5,Tillatelser!$B:$D,3,FALSE) -> Norsk Gjenvinning Renovasjon, Vadsø miljøstasjon
B5: Alle valgbare tjenester (sett inn rader): | C5: 135 | D5: 504 | E5: 132b | F5: 132 | G5: 144 | H5: 130 | I5: 131 | J5: 138 | K5: 550 | L5: 105 | M5: 106 | N5: 119 | O5: 108 | P5: 107 | Q5: 202 | R5: 141 | S5: C | T5: 501 | U5: 552 | V5: 102 | W5: 207 | X5: D | Y5: 127 | Z5: 110 | AA5: 113 | AB5: 308 | AC5: 112 | AD5: 115 | AE5: 114 | AF5: 117 | AG5: 999 | AH5: 716
A6: Stikkord 1.mottaker: | B6: 1 | C6: 2 | D6: 3 | E6: 4 | F6: 5 | G6: 6 | H6: 7 | I6: 8 | J6: 9 | K6: 10 | L6: 11 | M6: 12 | N6: 13 | O6: 14 | P6: 15 | Q6: 16 | R6: 17 | S6: 18 | T6: 19 | U6: 20 | V6: 21 | W6: 22 | X6: 23 | Y6: 24 | Z6: 25 | AA6: 26 | AB6: 27 | AC6: 28 | AD6: 29 | AE6: 30 | AF6: 31 | AG6: 32 | AH6: 33 | AJ6: NR tjeneste
A7: Mottak og lagring av FA | B7: Henting av farlig avfall i container >2m3 | C7: ? | D7: 504 | E7: 132b | F7: 132b | G7: 144 | H7: ? | I7: ? | J7: ? | K7: 550 | L7: 105 | M7: 106 | N7: 106 | O7: 0 | P7: ? | Q7: 0 | R7: ? | S7: ? | T7: ? | U7: ? | V7: ? | W7: 0 | X7: ? | Y7: ? | Z7: ? | AA7: ? | AB7: ? | AC7: ? | AD7: ? | AE7: ? | AF7: ? | AG7: 0 | AH7: 0 | AJ7: 1
A8: Mottak og lagring av FA | B8: Levere farlig avfall i container til mottak | C8: ? | D8: 504 | E8: 132b | F8: 132b | G8: 144 | H8: ? | I8: ? | J8: ? | K8: 550 | L8: 105 | M8: 106 | N8: 106 | O8: 0 | P8: ? | Q8: 0 | R8: ? | S8: ? | T8: ? | U8: ? | V8: ? | W8: 0 | X8: ? | Y8: ? | Z8: ? | AA8: ? | AB8: ? | AC8: ? | AD8: ? | AE8: ? | AF8: ? | AG8: 0 | AH8: 0 | AJ8: 2
A9: Mottak og lagring av PCB-ruter | B9: Levere isolerglassruter med PCB til mottak | C9: 135 | D9: 504 | E9: 132 | F9: 132 | G9: 144 | H9: 131 | I9: 131 | J9: 138 | K9: 550 | L9: 105 | M9: 106 | N9: 106 | O9: 0 | P9: 107 | Q9: 0 | R9: 141 | S9: 141 | T9: ? | U9: 141 | V9: 102 | W9: 0 | X9: D | Y9: D | Z9: 110 | AA9: 113 | AB9: 113 | AC9: 112 | AD9: 115 | AE9: 114 | AF9: 117 | AG9: 0 | AH9: 0 | AJ9: 3
A10: Mottak og lagring av FA | B10: Levere emballert farlig avfall (fat/ IBC/ kanner mm.) | C10: 135 | D10: 504 | E10: 132b | F10: 132b | G10: 144 | H10: 131 | I10: 131 | J10: 550 | K10: 550 | L10: 550 | M10: 106 | N10: ? | O10: 0 | P10: 550 | Q10: 0 | R10: ? | S10: 552 | T10: 552 | U10: ? | V10: 102 | W10: 0 | X10: 0 | Y10: 0 | Z10: 308 | AA10: 308 | AB10: 308 | AC10: 112 | AD10: 115 | AE10: 114 | AF10: 117 | AG10: 0 | AH10: 0 | AJ10: 4
A11: Mottak og lagring av FA/ ADR | B11: Henting av emballert farlig avfall (fat/ IBC/ kanner mm.) | C11: 135 | D11: 504 | E11: 132b | F11: 132b | G11: 144 | H11: 131 | I11: 131 | J11: 550 | K11: 550 | L11: 550 | M11: 550 | N11: 550 | O11: 550 | P11: 550 | Q11: 0 | R11: 552 | S11: 552 | T11: 552 | U11: 552 | V11: 552 | W11: 0 | X11: 0 | Y11: 0 | Z11: 308 | AA11: 308 | AB11: 308 | AC11: 112 | AD11: 115 | AE11: 115 | AF11: 115 | AG11: 0 | AH11: 0 | AJ11: 5
A12: Gjerne tankfarm/ renseanlegg | B12: Levere flytende farlig avfall til mottak (tank-/ sugebil) | C12: 135 | D12: 504 | E12: 132b | F12: 132b | G12: 132b | H12: 0 | I12: 0 | J12: 550 | K12: 550 | L12: 550 | M12: 550 | N12: 550 | O12: 501 | P12: 501 | Q12: 0 | R12: 501 | S12: 501 | T12: 501 | U12: 501 | V12: 501 | W12: 0 | X12: 501 | Y12: 501 | Z12: 308 | AA12: 308 | AB12: 308 | AC12: 112 | AD12: 115 | AE12: 114 | AF12: 114 | AG12: 0 | AH12: 0 | AJ12: 6
A13: Gjerne tankfarm/ renseanlegg/ ADR | B13: Tømming av flytende farlig avfall (tank-/ sugebil) | C13: 135 | D13: 504 | E13: 132b | F13: 132b | G13: 132b | H13: 0 | I13: 0 | J13: 550 | K13: 550 | L13: 550 | M13: 550 | N13: 550 | O13: 501 | P13: 501 | Q13: 0 | R13: 501 | S13: 501 | T13: 501 | U13: 501 | V13: 501 | W13: 0 | X13: 501 | Y13: 501 | Z13: 308 | AA13: 308 | AB13: 308 | AC13: 112 | AD13: 115 | AE13: 114 | AF13: 114 | AG13: 0 | AH13: 0 | AJ13: 7
A14: Gjerne tankfarm/ renseanlegg/ ADR | B14: Tømming av spillolje fra tank | C14: 135 | D14: 504 | E14: 132b | F14: 132b | G14: 132b | H14: 0 | I14: 0 | J14: 550 | K14: 550 | L14: 550 | M14: 550 | N14: 550 | O14: 501 | P14: 501 | Q14: 0 | R14: 501 | S14: 501 | T14: 501 | U14: 501 | V14: 501 | W14: 0 | X14: 501 | Y14: 501 | Z14: 308 | AA14: 308 | AB14: 308 | AC14: 112 | AD14: 115 | AE14: 114 | AF14: 114 | AG14: 0 | AH14: 0 | AJ14: 8
A15: Lagune/ deponi /renseanlegg/ ADR | B15: Tømming av oljeutskiller | C15: 135 | D15: 504 | E15: 132b | F15: 132b | G15: 132b | H15: 0 | I15: 0 | J15: 550 | K15: 550 | L15: 550 | M15: 550 | N15: 550 | O15: 501 | P15: 501 | Q15: 0 | R15: 501 | S15: 501 | T15: 501 | U15: 501 | V15: 501 | W15: 0 | X15: 501 | Y15: 501 | Z15: 308 | AA15: 308 | AB15: 308 | AC15: 112 | AD15: 115 | AE15: 114 | AF15: 114 | AG15: 0 | AH15: 0 | AJ15: 9
A16: Lagune/ deponi / renseanlegg | B16: Slamtømming | C16: 135 | D16: 504 | E16: 132b | F16: 132b | G16: 132b | H16: 0 | I16: 0 | J16: 550 | K16: 550 | L16: 550 | M16: 550 | N16: 550 | O16: 501 | P16: 501 | Q16: 0 | R16: 501 | S16: 501 | T16: 501 | U16: 501 | V16: 501 | W16: 0 | X16: 501 | Y16: 501 | Z16: 308 | AA16: 308 | AB16: 308 | AC16: 112 | AD16: 115 | AE16: 114 | AF16: 114 | AG16: 0 | AH16: 0 | AJ16: 10
A17: Lagune/ deponi / renseanlegg | B17: Tømming av sandfang | C17: 135 | D17: 504 | E17: 132b | F17: 132b | G17: 132b | H17: 0 | I17: 0 | J17: 550 | K17: 550 | L17: 550 | M17: 550 | N17: 550 | O17: 501 | P17: 501 | Q17: 0 | R17: 501 | S17: 501 | T17: 501 | U17: 501 | V17: 501 | W17: 0 | X17: 501 | Y17: 501 | Z17: 308 | AA17: 308 | AB17: 308 | AC17: 112 | AD17: 115 | AE17: 114 | AF17: 114 | AG17: 0 | AH17: 0 | AJ17: 11
A18: Lagune/ deponi / renseanlegg | B18: Vacuumtjenester farlig avfall | C18: 135 | D18: 504 | E18: 132b | F18: 132b | G18: 132b | H18: 0 | I18: 0 | J18: 550 | K18: 550 | L18: 550 | M18: 550 | N18: 550 | O18: 501 | P18: 501 | Q18: 0 | R18: 501 | S18: 501 | T18: 501 | U18: 501 | V18: 501 | W18: 0 | X18: 501 | Y18: 501 | Z18: 308 | AA18: 308 | AB18: 308 | AC18: 112 | AD18: 115 | AE18: 114 | AF18: 114 | AG18: 0 | AH18: 0 | AJ18: 12
Q19: 141 | R19: 141 | S19: 141 | T19: 141 | U19: 141 | V19: 141
A21: Stig Aamelfot
A22: Tore Sørbø
A23: Terje Olsen | B23: Alle treff leder mot tillatelse NG Knarrevik
A24: Tor Harald Eriksen
A25: Finn Egil Humlekjær | B25: De fleste søk leder mot kundesenter og ekterne tillatelser.
A26: Per Kristian Slåen | B26: Kristiansand er også fullmaktshaver for Arendal (i formel)
A27: Nina Thorsen | B27: Bør spørringer mot forurenset masse gå mot kundesenter?
A28: Frode Karlsen | B28: Alle fullmakter til GMP
A29: Knut Stensvåg | B29: OBS: test Holmestrand/ Tønsberg!
A30: Både Frode K og Knut S | B30: Faller inn under to regioner, avhengig av tjenestetype

Sheet Flere valg (hidden)
A1: Skriv inn treff i rosa celler. 0=ingen treff. | C1: Vest | D1: Vest | E1: Vest | F1: Sør-Vest | G1: Sør-Vest | H1: Sør-Vest | I1: Sør-Vest | J1: Sør | K1: Sør | L1: Sør | M1: Sør | N1: Sør | O1: Oslo | P1: Oslo | Q1: Oslo | R1: Oslo | S1: Oslo | T1: Oslo | U1: Oslo | V1: Oslo | W1: Øst | X1: Øst | Y1: Øst | Z1: Nord | AA1: Nord | AB1: Nord | AC1: Nord | AD1: Nord | AE1: Nord | AF1: Nord | AG1: Nord
B2: Fylke: | C2: Sogn og Fjordane | D2: Hordaland | E2: Rogaland | F2: Rogaland | G2: Rogaland | H2: Aust-Agder | I2: Vest-Agder | J2: Telemark | K2: Telemark | L2: Vestfold | M2: Vestfold | N2: Vestfold | O2: Buskerud | P2: Buskerud | Q2: Buskerud | R2: Oslo | S2: Oslo | T2: Akershus | U2: Oslo | V2: Hedmark | W2: Østfold | X2: Østfold | Y2: Østfold | Z2: Møre og Romsdal | AA2: Møre og Romsdal | AB2: Møre og Romsdal | AC2: Møre og Romsdal | AD2: Sør-Trøndelag | AE2: Sør-Trøndelag | AF2: Nord-Trøndelag | AG2: Finnmark
A3: 3 | B3: Salgskontor: | C3: Førde | D3: FA Knarrevik | E3: NG SANDNES | F3: Stavanger | G3: Ryfylke | H3: Arendal | I3: Kristiansand | J3: Kragerø | K3: FA Porsgrunn | L3: Larvik | M3: Tønsberg | N3: Holmestrand | O3: Kongsberg | P3: NG DRAMMEN | Q3: NGM DRAMMEN | R3: Anlegg GMP | S3: Tomwil (H-40) | T3: FA Fagerstrand/ Drammen | U3: FA Ausenfjellet | V3: KONGSVINGER | W3: NGM SARPSBORG | X3: ØRA | Y3: Sarpsborg/Fredriksta | Z3: Molde | AA3: Kristiansund | AB3: IND Kristiansund | AC3: Ålesund | AD3: Trondheim | AE3: Namsos | AF3: Verdal | AG3: VADSØ
B4: Tillatelser: | C4: =VLOOKUP(C5,Tillatelser!$B:$D,3,FALSE) -> Norsk Gjenvinning, Førde - farleg avfall | D4: =VLOOKUP(D5,Tillatelser!$B:$D,3,FALSE) -> Norsk Gjenvinning Knarrevik - Mottak farlig avfall | E4: =VLOOKUP(E5,Tillatelser!$B:$D,3,FALSE) -> Norsk Gjenvinning AS, avd Sandnes | F4: =VLOOKUP(F5,Tillatelser!$B:$D,3,FALSE) -> Norsk Gjenvinning, Stavanger | G4: =VLOOKUP(G5,Tillatelser!$B:$D,3,FALSE) -> Norsk Gjenvinning Tau - Mottak farlig avfall | H4: =VLOOKUP(H5,Tillatelser!$B:$D,3,FALSE) -> Norsk Gjenvinning Stoa Arendal avfallssortering | I4: =VLOOKUP(I5,Tillatelser!$B:$D,3,FALSE) -> Norsk Gjenvinning, Avd Kristiansand | J4: =VLOOKUP(J5,Tillatelser!$B:$D,3,FALSE) -> Norsk Gjenvinning, Nilsbukjerr avfallsanlegg | K4: =VLOOKUP(K5,Tillatelser!$B:$D,3,FALSE) -> Norsk Gjenvinning, Porsgrunn | L4: =VLOOKUP(L5,Tillatelser!$B:$D,3,FALSE) -> Norsk Gjenvinning, Grinda, Larvik | M4: =VLOOKUP(M5,Tillatelser!$B:$D,3,FALSE) -> Norsk Gjenvinning, Rygg næringsområde | N4: =VLOOKUP(N5,Tillatelser!$B:$D,3,FALSE) -> Norsk Gjenvinning AS, Avd. Holmestrand | O4: =VLOOKUP(O5,Tillatelser!$B:$D,3,FALSE) -> Gomsrud avfallsmottak - Norsk Gjenvinning | P4: =VLOOKUP(P5,Tillatelser!$B:$D,3,FALSE) -> Norsk Gjenvinning, Drammen avfallsmottak | Q4: =VLOOKUP(Q5,Tillatelser!$B:$D,3,FALSE) -> Norsk Gjenvinning Metall AS avd. Drammen | R4: =VLOOKUP(R5,Tillatelser!$B:$D,3,FALSE) -> Norsk Gjenvinning Groruddalen miljøpark - farlig avfall mottak | S4: =VLOOKUP(S5,Tillatelser!$B:$D,3,FALSE) -> Norsk Gjenvinning, Haraldrudveien 40 - Oslo | T4: =VLOOKUP(T5,Tillatelser!$B:$D,3,FALSE) -> Norsk Gjenvinning Industri, Fagerstrand - behandling farlig avfall | U4: =VLOOKUP(U5,Tillatelser!$B:$D,3,FALSE) -> Norsk Gjenvinning AS - Ausenfjellet | V4: =VLOOKUP(V5,Tillatelser!$B:$D,3,FALSE) -> Norsk Gjenvinning Kongsvinger | W4: =VLOOKUP(W5,Tillatelser!$B:$D,3,FALSE) -> Norsk Gjenvinning Metall, Greåkerveien | X4: =VLOOKUP(X5,Tillatelser!$B:$D,3,FALSE) -> Norsk Gjenvinning Øra | Y4: =VLOOKUP(Y5,Tillatelser!$B:$D,3,FALSE) -> Norsk Gjenvinning Sarpsborg Opphaugveien | Z4: =VLOOKUP(Z5,Tillatelser!$B:$D,3,FALSE) -> Norsk Gjenvinning Molde - farlig avf., næringsavf | AA4: =VLOOKUP(AA5,Tillatelser!$B:$D,3,FALSE) -> Norsk Gjenvinning, Kristiansund | AB4: =VLOOKUP(AB5,Tillatelser!$B:$D,3,FALSE) -> Norsk Gjenvinning Industri, Vestbase | AC4: =VLOOKUP(AC5,Tillatelser!$B:$D,3,FALSE) -> Norsk Gjenvinning Ålesund | AD4: =VLOOKUP(AD5,Tillatelser!$B:$D,3,FALSE) -> Norsk Gjenvinning sorteringsanlegg, Trondheim | AE4: =VLOOKUP(AE5,Tillatelser!$B:$D,3,FALSE) -> Norsk Gjenvinning, Namsos | AF4: =VLOOKUP(AF5,Tillatelser!$B:$D,3,FALSE) -> Norsk Gjenvinning, Verdal | AG4: =VLOOKUP(AG5,Tillatelser!$B:$D,3,FALSE) -> Norsk Gjenvinning Renovasjon, Vadsø miljøstasjon
B5: Alle valgbare tjenester (legg til rader): | C5: 135 | D5: 504 | E5: 132b | F5: 132 | G5: 144 | H5: 130 | I5: 131 | J5: 138 | K5: 550 | L5: 105 | M5: 106 | N5: 119 | O5: 108 | P5: 107 | Q5: 202 | R5: 141 | S5: C | T5: 501 | U5: 552 | V5: 102 | W5: 207 | X5: D | Y5: 127 | Z5: 110 | AA5: 113 | AB5: 308 | AC5: 112 | AD5: 115 | AE5: 114 | AF5: 117 | AG5: 716
A6: Farlig avfall: | B6: 1 | C6: 2 | D6: 3 | E6: 4 | F6: 5 | G6: 6 | H6: 7 | I6: 8 | J6: 9 | K6: 10 | L6: 11 | M6: 12 | N6: 13 | O6: 14 | P6: 15 | Q6: 16 | R6: 17 | S6: 18 | T6: 19 | U6: 20 | V6: 21 | W6: 22 | X6: 23 | Y6: 24 | Z6: 25 | AA6: 26 | AB6: 27 | AC6: 28 | AD6: 29 | AE6: 30 | AF6: 31 | AG6: 32
A7: 7098, 7156-59, | B7: Bygningsavfall | C7: 135 | D7: 504 | E7: 132b | F7: 132b | G7: 144 | H7: 130 | I7: 131 | J7: 138 | K7: 550 | L7: 105 | M7: 106 | N7: 106 | O7: 0 | P7: 107 | R7: 141 | S7: 141 | T7: 141 | U7: 141 | V7: 102 | X7: 0 | Y7: 0 | Z7: 110 | AA7: 113 | AB7: 113 | AC7: 112 | AD7: 115 | AE7: 114 | AF7: 117 | AG7: 0
A8: 7022, 7152 osv | B8: Forurenset masse | C8: 0 | D8: 0 | E8: 0 | F8: 0 | G8: 0 | H8: 0 | I8: 0 | J8: 0 | K8: 0 | L8: 0 | M8: 0 | N8: 0 | O8: 0 | P8: 0 | R8: 0 | S8: 0 | T8: 0 | U8: 0 | V8: 0 | X8: 0 | Y8: 0 | Z8: 0 | AA8: 0 | AB8: 0 | AC8: 0 | AD8: 0 | AE8: 0 | AF8: 0 | AG8: 0
A9: 7096 | B9: Blåsesand | C9: 135 | D9: 504 | E9: 132b | F9: 132b | G9: 144 | H9: 0 | I9: 0 | J9: 0 | K9: 550 | L9: 105 | M9: 106 | N9: 106 | O9: 0 | P9: 107 | R9: 0 | S9: 0 | T9: 0 | U9: 0 | V9: 0 | X9: 0 | Y9: 0 | Z9: 0 | AA9: 0 | AB9: 0 | AC9: 0 | AD9: 0 | AE9: 0 | AF9: 0 | AG9: 0
A10: 715204 | B10: Takpapp/ tjærepapp | C10: 135 | D10: 504 | E10: 132b | F10: 132b | G10: 144 | H10: 130 | I10: 131 | J10: 138 | K10: 550 | L10: 105 | M10: 106 | N10: 106 | O10: 0 | P10: 107 | R10: 141 | S10: 141 | T10: 141 | U10: 141 | V10: 102 | X10: 0 | Y10: 0 | Z10: 110 | AA10: 113 | AB10: 113 | AC10: 112 | AD10: 115 | AE10: 114 | AF10: 117 | AG10: 0
A11: 7098 | B11: CCA-Impregnert Trevirke | C11: 135 | D11: 504 | E11: 132b | F11: 132b | G11: 144 | H11: 130 | I11: 131 | J11: 138 | K11: 550 | L11: 105 | M11: 106 | N11: 106 | O11: 0 | P11: 107 | R11: 141 | S11: 141 | T11: 141 | U11: 141 | V11: 102 | X11: 0 | Y11: 0 | Z11: 110 | AA11: 113 | AB11: 113 | AC11: 112 | AD11: 115 | AE11: 114 | AF11: 117 | AG11: 0
A12: 715220 | B12: Pipestein med PAH | C12: 135 | D12: 504 | E12: 132b | F12: 132b | G12: 144 | H12: 0 | I12: 0 | J12: 138 | K12: 550 | L12: 105 | M12: 106 | N12: 106 | O12: 0 | P12: 0 | R12: 552 | S12: 552 | T12: 552 | U12: 552 | V12: 0 | X12: 0 | Y12: 0 | Z12: 0 | AA12: 0 | AB12: 0 | AC12: 0 | AD12: 0 | AE12: 0 | AF12: 0 | AG12: 0
A13: 7211 | B13: Isolerglassruter med PCB | C13: 135 | D13: 504 | E13: 132 | F13: 132 | G13: 144 | H13: 131 | I13: 131 | J13: 138 | K13: 550 | L13: 105 | M13: 106 | N13: 119 | O13: 0 | P13: 107 | R13: 141 | S13: 141 | T13: 141 | U13: 141 | V13: 102 | X13: D | Y13: D | Z13: 110 | AA13: 113 | AB13: 113 | AC13: 112 | AD13: 115 | AE13: 114 | AF13: 117 | AG13: 0
A14: 7092 | B14: Blybatterier | C14: 135 | D14: 504 | E14: 132b | F14: 132b | G14: 144 | H14: 130 | I14: 131 | J14: 138 | K14: 550 | L14: 105 | M14: 106 | N14: 106 | O14: 0 | P14: 550 | R14: 141 | S14: 141 | T14: 141 | U14: 141 | V14: 102 | X14: 0 | Y14: 0 | Z14: 110 | AA14: 113 | AB14: 113 | AC14: 112 | AD14: 115 | AE14: 114 | AF14: 117 | AG14: 0
E15: 132b | F15: 132b | G15: 144

Sheet Tjenester FULLMAKT (hidden)
A1: Skriv inn treff i rosa celler. 0=ingen treff. ?=Kanskje, avhengig av flere valg | C1: Vest | D1: Vest | E1: Vest | F1: Sør-Vest | G1: Sør-Vest | H1: Sør-Vest | I1: Sør-Vest | J1: Sør | K1: Sør | L1: Sør | M1: Sør | N1: Sør | O1: Sør/ Oslo | P1: Sør/ Oslo | Q1: Oslo | R1: Oslo | S1: Oslo | T1: Oslo | U1: Oslo | V1: Oslo | W1: Øst | X1: Øst | Y1: Øst | Z1: Nord | AA1: Nord | AB1: Nord | AC1: Nord | AD1: Nord | AE1: Nord | AF1: Nord | AG1: dummy | AH1: Nord
B2: Fylke: | C2: Sogn og Fjordane | D2: Hordaland | E2: Rogaland | F2: Rogaland | G2: Rogaland | H2: Aust-Agder | I2: Vest-Agder | J2: Telemark | K2: Telemark | L2: Vestfold | M2: Vestfold | N2: Vestfold | O2: Buskerud | P2: Buskerud | Q2: Buskerud | R2: Oslo | S2: Oslo | T2: Akershus | U2: Oslo | V2: Hedmark | W2: Østfold | X2: Østfold | Y2: Østfold | Z2: Møre og Romsdal | AA2: Møre og Romsdal | AB2: Møre og Romsdal | AC2: Møre og Romsdal | AD2: Sør-Trøndelag | AE2: Sør-Trøndelag | AF2: Nord-Trøndelag | AG2: Finnmark | AH2: Finnmark
A3: 2 | B3: Salgskontor: | C3: Førde | D3: FA Knarrevik | E3: NG SANDNES | F3: Stavanger | G3: Ryfylke | H3: Arendal | I3: Kristiansand | J3: Kragerø | K3: FA Porsgrunn | L3: Larvik | M3: Tønsberg | N3: Holmestrand | O3: Kongsberg | P3: NG DRAMMEN | Q3: NGM DRAMMEN | R3: Anlegg GMP | S3: Tomwil (H-40) | T3: FA Fagerstrand/ Drammen | U3: FA Ausenfjellet | V3: KONGSVINGER | W3: NGM SARPSBORG | X3: ØRA | Y3: Sarpsborg/Fredriksta | Z3: Molde | AA3: Kristiansund | AB3: IND Kristiansund | AC3: Ålesund | AD3: Trondheim | AE3: Namsos | AF3: Verdal | AG3: Haugesund | AH3: VADSØ
B4: Tillatelser: | C4: =VLOOKUP(C5,Tillatelser!$B:$D,3,FALSE) -> Norsk Gjenvinning, Førde - farleg avfall | D4: =VLOOKUP(D5,Tillatelser!$B:$D,3,FALSE) -> Norsk Gjenvinning Knarrevik - Mottak farlig avfall | E4: =VLOOKUP(E5,Tillatelser!$B:$D,3,FALSE) -> Norsk Gjenvinning AS, avd Sandnes | F4: =VLOOKUP(F5,Tillatelser!$B:$D,3,FALSE) -> Norsk Gjenvinning, Stavanger | G4: =VLOOKUP(G5,Tillatelser!$B:$D,3,FALSE) -> Norsk Gjenvinning Tau - Mottak farlig avfall | H4: =VLOOKUP(H5,Tillatelser!$B:$D,3,FALSE) -> Norsk Gjenvinning Stoa Arendal avfallssortering | I4: =VLOOKUP(I5,Tillatelser!$B:$D,3,FALSE) -> Norsk Gjenvinning, Avd Kristiansand | J4: =VLOOKUP(J5,Tillatelser!$B:$D,3,FALSE) -> Norsk Gjenvinning, Nilsbukjerr avfallsanlegg | K4: =VLOOKUP(K5,Tillatelser!$B:$D,3,FALSE) -> Norsk Gjenvinning, Porsgrunn | L4: =VLOOKUP(L5,Tillatelser!$B:$D,3,FALSE) -> Norsk Gjenvinning, Grinda, Larvik | M4: =VLOOKUP(M5,Tillatelser!$B:$D,3,FALSE) -> Norsk Gjenvinning, Rygg næringsområde | N4: =VLOOKUP(N5,Tillatelser!$B:$D,3,FALSE) -> Norsk Gjenvinning AS, Avd. Holmestrand | O4: =VLOOKUP(O5,Tillatelser!$B:$D,3,FALSE) -> Gomsrud avfallsmottak - Norsk Gjenvinning | P4: =VLOOKUP(P5,Tillatelser!$B:$D,3,FALSE) -> Norsk Gjenvinning, Drammen avfallsmottak | Q4: =VLOOKUP(Q5,Tillatelser!$B:$D,3,FALSE) -> Norsk Gjenvinning Metall AS avd. Drammen | R4: =VLOOKUP(R5,Tillatelser!$B:$D,3,FALSE) -> Norsk Gjenvinning Groruddalen miljøpark - farlig avfall mottak | S4: =VLOOKUP(S5,Tillatelser!$B:$D,3,FALSE) -> Norsk Gjenvinning, Haraldrudveien 40 - Oslo | T4: =VLOOKUP(T5,Tillatelser!$B:$D,3,FALSE) -> Norsk Gjenvinning Industri, Fagerstrand - behandling farlig avfall | U4: =VLOOKUP(U5,Tillatelser!$B:$D,3,FALSE) -> Norsk Gjenvinning AS - Ausenfjellet | V4: =VLOOKUP(V5,Tillatelser!$B:$D,3,FALSE) -> Norsk Gjenvinning Kongsvinger | W4: =VLOOKUP(W5,Tillatelser!$B:$D,3,FALSE) -> Norsk Gjenvinning Metall, Greåkerveien | X4: =VLOOKUP(X5,Tillatelser!$B:$D,3,FALSE) -> Norsk Gjenvinning Øra | Y4: =VLOOKUP(Y5,Tillatelser!$B:$D,3,FALSE) -> Norsk Gjenvinning Sarpsborg Opphaugveien | Z4: =VLOOKUP(Z5,Tillatelser!$B:$D,3,FALSE) -> Norsk Gjenvinning Molde - farlig avf., næringsavf | AA4: =VLOOKUP(AA5,Tillatelser!$B:$D,3,FALSE) -> Norsk Gjenvinning, Kristiansund | AB4: =VLOOKUP(AB5,Tillatelser!$B:$D,3,FALSE) -> Norsk Gjenvinning Industri, Vestbase | AC4: =VLOOKUP(AC5,Tillatelser!$B:$D,3,FALSE) -> Norsk Gjenvinning Ålesund | AD4: =VLOOKUP(AD5,Tillatelser!$B:$D,3,FALSE) -> Norsk Gjenvinning sorteringsanlegg, Trondheim | AE4: =VLOOKUP(AE5,Tillatelser!$B:$D,3,FALSE) -> Norsk Gjenvinning, Namsos | AF4: =VLOOKUP(AF5,Tillatelser!$B:$D,3,FALSE) -> Norsk Gjenvinning, Verdal | AG4: Haugesund | AH4: =VLOOKUP(AH5,Tillatelser!$B:$D,3,FALSE) -> Norsk Gjenvinning Renovasjon, Vadsø miljøstasjon
B5: Alle valgbare tjenester (sett inn rader): | C5: 135 | D5: 504 | E5: 132b | F5: 132 | G5: 144 | H5: 130 | I5: 131 | J5: 138 | K5: 550 | L5: 105 | M5: 106 | N5: 119 | O5: 108 | P5: 107 | Q5: 202 | R5: 141 | S5: C | T5: 501 | U5: 552 | V5: 102 | W5: 207 | X5: D | Y5: 127 | Z5: 110 | AA5: 113 | AB5: 308 | AC5: 112 | AD5: 115 | AE5: 114 | AF5: 117 | AG5: 999 | AH5: 716
A6: Stikkord 1.mottaker: | B6: 1 | C6: 2 | D6: 3 | E6: 4 | F6: 5 | G6: 6 | H6: 7 | I6: 8 | J6: 9 | K6: 10 | L6: 11 | M6: 12 | N6: 13 | O6: 14 | P6: 15 | Q6: 16 | R6: 17 | S6: 18 | T6: 19 | U6: 20 | V6: 21 | W6: 22 | X6: 23 | Y6: 24 | Z6: 25 | AA6: 26 | AB6: 27 | AC6: 28 | AD6: 29 | AE6: 30 | AF6: 31 | AG6: 32 | AH6: 33
A7: Mottak og lagring av FA | B7: Henting av farlig avfall i container >2m3 | C7: ? | D7: 504 | E7: 132b | F7: 132b | G7: 144 | H7: ? | I7: ? | J7: ? | K7: 550 | L7: 105 | M7: 106 | N7: 106 | O7: 0 | P7: ? | Q7: 0 | R7: 141 | S7: 141 | T7: 141 | U7: 141 | V7: 141 | W7: 0 | X7: ? | Y7: ? | Z7: ? | AA7: ? | AB7: ? | AC7: ? | AD7: ? | AE7: ? | AF7: ? | AG7: 132b | AH7: 115
A8: Mottak og lagring av FA | B8: Levere farlig avfall i container til mottak | C8: ? | D8: 504 | E8: 132b | F8: 132b | G8: 144 | H8: ? | I8: ? | J8: ? | K8: 550 | L8: 105 | M8: 106 | N8: 106 | O8: 0 | P8: ? | Q8: 0 | R8: 141 | S8: 141 | T8: 141 | U8: 141 | V8: 141 | W8: 0 | X8: ? | Y8: ? | Z8: ? | AA8: ? | AB8: ? | AC8: ? | AD8: ? | AE8: ? | AF8: ? | AG8: 132b | AH8: 115
A9: Mottak og lagring av PCB-ruter | B9: Levere isolerglassruter med PCB til mottak | C9: 135 | D9: 504 | E9: 132 | F9: 132 | G9: 144 | H9: 131 | I9: 131 | J9: 138 | K9: 550 | L9: 105 | M9: 106 | N9: 106 | O9: 0 | P9: 107 | Q9: 0 | R9: 141 | S9: 141 | T9: 141 | U9: 141 | V9: 141 | W9: 0 | X9: D | Y9: D | Z9: 110 | AA9: 113 | AB9: 113 | AC9: 112 | AD9: 115 | AE9: 114 | AF9: 117 | AG9: 132b | AH9: 115
A10: Mottak og lagring av FA | B10: Levere emballert farlig avfall (fat/ IBC/ kanner mm.) | C10: 135 | D10: 504 | E10: 132b | F10: 132b | G10: 144 | H10: 131 | I10: 131 | J10: 550 | K10: 550 | L10: 550 | M10: 106 | N10: ? | O10: 0 | P10: 550 | Q10: 0 | R10: 141 | S10: 141 | T10: 141 | U10: 141 | V10: 141 | W10: 0 | X10: 0 | Y10: 0 | Z10: 308 | AA10: 308 | AB10: 308 | AC10: 112 | AD10: 115 | AE10: 114 | AF10: 117 | AG10: 132b | AH10: 115
A11: Mottak og lagring av FA/ ADR | B11: Henting av emballert farlig avfall (fat/ IBC/ kanner mm.) | C11: 135 | D11: 504 | E11: 132b | F11: 132b | G11: 144 | H11: 131 | I11: 131 | J11: 550 | K11: 550 | L11: 550 | M11: 550 | N11: 550 | O11: 550 | P11: 550 | Q11: 0 | R11: 141 | S11: 141 | T11: 141 | U11: 141 | V11: 141 | W11: 0 | X11: 0 | Y11: 0 | Z11: 308 | AA11: 308 | AB11: 308 | AC11: 112 | AD11: 115 | AE11: 115 | AF11: 115 | AG11: 132b | AH11: 115
A12: Gjerne tankfarm/ renseanlegg | B12: Levere flytende farlig avfall til mottak (tank-/ sugebil) | C12: 135 | D12: 504 | E12: 132b | F12: 132b | G12: 132b | H12: 0 | I12: 0 | J12: 550 | K12: 550 | L12: 550 | M12: 550 | N12: 550 | O12: 141 | P12: 141 | Q12: 0 | R12: 141 | S12: 141 | T12: 141 | U12: 141 | V12: 141 | W12: 0 | X12: 141 | Y12: 141 | Z12: 308 | AA12: 308 | AB12: 308 | AC12: 112 | AD12: 115 | AE12: 114 | AF12: 114 | AG12: 132b | AH12: 115
A13: Gjerne tankfarm/ renseanlegg/ ADR | B13: Tømming av flytende farlig avfall (tank-/ sugebil) | C13: 135 | D13: 504 | E13: 132b | F13: 132b | G13: 132b | H13: 0 | I13: 0 | J13: 550 | K13: 550 | L13: 550 | M13: 550 | N13: 550 | O13: 141 | P13: 141 | Q13: 0 | R13: 141 | S13: 141 | T13: 141 | U13: 141 | V13: 141 | W13: 0 | X13: 141 | Y13: 141 | Z13: 308 | AA13: 308 | AB13: 308 | AC13: 112 | AD13: 115 | AE13: 114 | AF13: 114 | AG13: 132b | AH13: 115
A14: Gjerne tankfarm/ renseanlegg/ ADR | B14: Tømming av spillolje fra tank | C14: 135 | D14: 504 | E14: 132b | F14: 132b | G14: 132b | H14: 0 | I14: 0 | J14: 550 | K14: 550 | L14: 550 | M14: 550 | N14: 550 | O14: 141 | P14: 141 | Q14: 0 | R14: 141 | S14: 141 | T14: 141 | U14: 141 | V14: 141 | W14: 0 | X14: 141 | Y14: 141 | Z14: 308 | AA14: 308 | AB14: 308 | AC14: 112 | AD14: 115 | AE14: 114 | AF14: 114 | AG14: 132b | AH14: 115
A15: Lagune/ deponi /renseanlegg/ ADR | B15: Tømming av oljeutskiller | C15: 135 | D15: 504 | E15: 132b | F15: 132b | G15: 132b | H15: 0 | I15: 0 | J15: 550 | K15: 550 | L15: 550 | M15: 550 | N15: 550 | O15: 141 | P15: 141 | Q15: 0 | R15: 141 | S15: 141 | T15: 141 | U15: 141 | V15: 141 | W15: 0 | X15: 141 | Y15: 141 | Z15: 308 | AA15: 308 | AB15: 308 | AC15: 112 | AD15: 115 | AE15: 114 | AF15: 114 | AG15: 132b | AH15: 115
A16: Lagune/ deponi / renseanlegg | B16: Slamtømming | C16: 135 | D16: 504 | E16: 132b | F16: 132b | G16: 132b | H16: 0 | I16: 0 | J16: 550 | K16: 550 | L16: 550 | M16: 550 | N16: 550 | O16: 141 | P16: 141 | Q16: 0 | R16: 141 | S16: 141 | T16: 141 | U16: 141 | V16: 141 | W16: 0 | X16: 141 | Y16: 141 | Z16: 308 | AA16: 308 | AB16: 308 | AC16: 112 | AD16: 115 | AE16: 114 | AF16: 114 | AG16: 132b | AH16: 115
A17: Lagune/ deponi / renseanlegg | B17: Tømming av sandfang | C17: 135 | D17: 504 | E17: 132b | F17: 132b | G17: 132b | H17: 0 | I17: 0 | J17: 550 | K17: 550 | L17: 550 | M17: 550 | N17: 550 | O17: 141 | P17: 141 | Q17: 0 | R17: 141 | S17: 141 | T17: 141 | U17: 141 | V17: 141 | W17: 0 | X17: 141 | Y17: 141 | Z17: 308 | AA17: 308 | AB17: 308 | AC17: 112 | AD17: 115 | AE17: 114 | AF17: 114 | AG17: 132b | AH17: 115
A18: Lagune/ deponi / renseanlegg | B18: Vacuumtjenester farlig avfall | C18: 135 | D18: 504 | E18: 132b | F18: 132b | G18: 132b | H18: 0 | I18: 0 | J18: 550 | K18: 550 | L18: 550 | M18: 550 | N18: 550 | O18: 141 | P18: 141 | Q18: 0 | R18: 141 | S18: 141 | T18: 141 | U18: 141 | V18: 141 | W18: 0 | X18: 141 | Y18: 141 | Z18: 308 | AA18: 308 | AB18: 308 | AC18: 112 | AD18: 115 | AE18: 114 | AF18: 114 | AG18: 132b | AH18: 115
Q19: 141 | R19: 141 | S19: 141 | T19: 141 | U19: 141 | V19: 141
A21: Stig Aamelfot
A22: Tore Sørbø
A23: Terje Olsen | B23: Alle treff leder mot tillatelse NG Knarrevik
A24: Tor Harald Eriksen
A25: Finn Egil Humlekjær | B25: De fleste søk leder mot kundesenter og ekterne tillatelser.
A26: Per Kristian Slåen | B26: Kristiansand er også fullmaktshaver for Arendal (i formel)
A27: Nina Thorsen | B27: Bør spørringer mot forurenset masse gå mot kundesenter?
A28: Frode Karlsen | B28: Noe uavklart. Fullmakt? ØG? Flere tillatelser i samme område.
A29: Knut Stensvåg
A30: Både Frode K og Knut S

Sheet Flere valg FULLMAKT (hidden)
A1: Skriv inn treff i rosa celler. 0=ingen treff. | C1: Vest | D1: Vest | E1: Vest | F1: Sør-Vest | G1: Sør-Vest | H1: Sør-Vest | I1: Sør-Vest | J1: Sør | K1: Sør | L1: Sør | M1: Sør | N1: Sør | O1: Oslo | P1: Oslo | Q1: Oslo | R1: Oslo | S1: Oslo | T1: Oslo | U1: Oslo | V1: Oslo | W1: Øst | X1: Øst | Y1: Øst | Z1: Nord | AA1: Nord | AB1: Nord | AC1: Nord | AD1: Nord | AE1: Nord | AF1: Nord | AG1: Nord
B2: Fylke: | C2: Sogn og Fjordane | D2: Hordaland | E2: Rogaland | F2: Rogaland | G2: Rogaland | H2: Aust-Agder | I2: Vest-Agder | J2: Telemark | K2: Telemark | L2: Vestfold | M2: Vestfold | N2: Vestfold | O2: Buskerud | P2: Buskerud | Q2: Buskerud | R2: Oslo | S2: Oslo | T2: Akershus | U2: Oslo | V2: Hedmark | W2: Østfold | X2: Østfold | Y2: Østfold | Z2: Møre og Romsdal | AA2: Møre og Romsdal | AB2: Møre og Romsdal | AC2: Møre og Romsdal | AD2: Sør-Trøndelag | AE2: Sør-Trøndelag | AF2: Nord-Trøndelag | AG2: Finnmark
A3: 3 | B3: Salgskontor: | C3: Førde | D3: FA Knarrevik | E3: NG SANDNES | F3: Stavanger | G3: Ryfylke | H3: Arendal | I3: Kristiansand | J3: Kragerø | K3: FA Porsgrunn | L3: Larvik | M3: Tønsberg | N3: Holmestrand | O3: Kongsberg | P3: NG DRAMMEN | Q3: NGM DRAMMEN | R3: Anlegg GMP | S3: Tomwil (H-40) | T3: FA Fagerstrand/ Drammen | U3: FA Ausenfjellet | V3: KONGSVINGER | W3: NGM SARPSBORG | X3: ØRA | Y3: Sarpsborg/Fredriksta | Z3: Molde | AA3: Kristiansund | AB3: IND Kristiansund | AC3: Ålesund | AD3: Trondheim | AE3: Namsos | AF3: Verdal | AG3: VADSØ
B4: Tillatelser: | C4: =VLOOKUP(C5,Tillatelser!$B:$D,3,FALSE) -> Norsk Gjenvinning, Førde - farleg avfall | D4: =VLOOKUP(D5,Tillatelser!$B:$D,3,FALSE) -> Norsk Gjenvinning Knarrevik - Mottak farlig avfall | E4: =VLOOKUP(E5,Tillatelser!$B:$D,3,FALSE) -> Norsk Gjenvinning AS, avd Sandnes | F4: =VLOOKUP(F5,Tillatelser!$B:$D,3,FALSE) -> Norsk Gjenvinning, Stavanger | G4: =VLOOKUP(G5,Tillatelser!$B:$D,3,FALSE) -> Norsk Gjenvinning Tau - Mottak farlig avfall | H4: =VLOOKUP(H5,Tillatelser!$B:$D,3,FALSE) -> Norsk Gjenvinning Stoa Arendal avfallssortering | I4: =VLOOKUP(I5,Tillatelser!$B:$D,3,FALSE) -> Norsk Gjenvinning, Avd Kristiansand | J4: =VLOOKUP(J5,Tillatelser!$B:$D,3,FALSE) -> Norsk Gjenvinning, Nilsbukjerr avfallsanlegg | K4: =VLOOKUP(K5,Tillatelser!$B:$D,3,FALSE) -> Norsk Gjenvinning, Porsgrunn | L4: =VLOOKUP(L5,Tillatelser!$B:$D,3,FALSE) -> Norsk Gjenvinning, Grinda, Larvik | M4: =VLOOKUP(M5,Tillatelser!$B:$D,3,FALSE) -> Norsk Gjenvinning, Rygg næringsområde | N4: =VLOOKUP(N5,Tillatelser!$B:$D,3,FALSE) -> Norsk Gjenvinning AS, Avd. Holmestrand | O4: =VLOOKUP(O5,Tillatelser!$B:$D,3,FALSE) -> Gomsrud avfallsmottak - Norsk Gjenvinning | P4: =VLOOKUP(P5,Tillatelser!$B:$D,3,FALSE) -> Norsk Gjenvinning, Drammen avfallsmottak | Q4: =VLOOKUP(Q5,Tillatelser!$B:$D,3,FALSE) -> Norsk Gjenvinning Metall AS avd. Drammen | R4: =VLOOKUP(R5,Tillatelser!$B:$D,3,FALSE) -> Norsk Gjenvinning Groruddalen miljøpark - farlig avfall mottak | S4: =VLOOKUP(S5,Tillatelser!$B:$D,3,FALSE) -> Norsk Gjenvinning, Haraldrudveien 40 - Oslo | T4: =VLOOKUP(T5,Tillatelser!$B:$D,3,FALSE) -> Norsk Gjenvinning Industri, Fagerstrand - behandling farlig avfall | U4: =VLOOKUP(U5,Tillatelser!$B:$D,3,FALSE) -> Norsk Gjenvinning AS - Ausenfjellet | V4: =VLOOKUP(V5,Tillatelser!$B:$D,3,FALSE) -> Norsk Gjenvinning Kongsvinger | W4: =VLOOKUP(W5,Tillatelser!$B:$D,3,FALSE) -> Norsk Gjenvinning Metall, Greåkerveien | X4: =VLOOKUP(X5,Tillatelser!$B:$D,3,FALSE) -> Norsk Gjenvinning Øra | Y4: =VLOOKUP(Y5,Tillatelser!$B:$D,3,FALSE) -> Norsk Gjenvinning Sarpsborg Opphaugveien | Z4: =VLOOKUP(Z5,Tillatelser!$B:$D,3,FALSE) -> Norsk Gjenvinning Molde - farlig avf., næringsavf | AA4: =VLOOKUP(AA5,Tillatelser!$B:$D,3,FALSE) -> Norsk Gjenvinning, Kristiansund | AB4: =VLOOKUP(AB5,Tillatelser!$B:$D,3,FALSE) -> Norsk Gjenvinning Industri, Vestbase | AC4: =VLOOKUP(AC5,Tillatelser!$B:$D,3,FALSE) -> Norsk Gjenvinning Ålesund | AD4: =VLOOKUP(AD5,Tillatelser!$B:$D,3,FALSE) -> Norsk Gjenvinning sorteringsanlegg, Trondheim | AE4: =VLOOKUP(AE5,Tillatelser!$B:$D,3,FALSE) -> Norsk Gjenvinning, Namsos | AF4: =VLOOKUP(AF5,Tillatelser!$B:$D,3,FALSE) -> Norsk Gjenvinning, Verdal | AG4: =VLOOKUP(AG5,Tillatelser!$B:$D,3,FALSE) -> Norsk Gjenvinning Renovasjon, Vadsø miljøstasjon
B5: Alle valgbare tjenester (legg til rader): | C5: 135 | D5: 504 | E5: 132b | F5: 132 | G5: 144 | H5: 130 | I5: 131 | J5: 138 | K5: 550 | L5: 105 | M5: 106 | N5: 119 | O5: 108 | P5: 107 | Q5: 202 | R5: 141 | S5: C | T5: 501 | U5: 552 | V5: 102 | W5: 207 | X5: D | Y5: 127 | Z5: 110 | AA5: 113 | AB5: 308 | AC5: 112 | AD5: 115 | AE5: 114 | AF5: 117 | AG5: 716
A6: Farlig avfall: | B6: 1 | C6: 2 | D6: 3 | E6: 4 | F6: 5 | G6: 6 | H6: 7 | I6: 8 | J6: 9 | K6: 10 | L6: 11 | M6: 12 | N6: 13 | O6: 14 | P6: 15 | Q6: 16 | R6: 17 | S6: 18 | T6: 19 | U6: 20 | V6: 21 | W6: 22 | X6: 23 | Y6: 24 | Z6: 25 | AA6: 26 | AB6: 27 | AC6: 28 | AD6: 29 | AE6: 30 | AF6: 31 | AG6: 32
A7: 7098, 7156-59, | B7: Bygningsavfall | C7: 135 | D7: 504 | E7: 132b | F7: 132b | G7: 144 | H7: 131 | I7: 131 | J7: 138 | K7: 550 | L7: 105 | M7: 106 | N7: 106 | O7: 0 | P7: 107 | R7: 141 | S7: 141 | T7: 141 | U7: 141 | V7: 102 | W7: 0 | X7: 0 | Y7: 0 | Z7: 110 | AA7: 113 | AB7: 113 | AC7: 112 | AD7: 115 | AE7: 114 | AF7: 117 | AG7: 0
A8: 7022, 7152 osv | B8: Forurenset masse | C8: 0 | D8: 0 | E8: 0 | F8: 0 | G8: 0 | H8: 0 | I8: 0 | J8: 0 | K8: 0 | L8: 0 | M8: 0 | N8: 0 | O8: 0 | P8: 0 | R8: 0 | S8: 0 | T8: 0 | U8: 0 | V8: 0 | W8: 0 | X8: 0 | Y8: 0 | Z8: 0 | AA8: 0 | AB8: 0 | AC8: 0 | AD8: 0 | AE8: 0 | AF8: 0 | AG8: 0
A9: 7096 | B9: Blåsesand | C9: 135 | D9: 504 | E9: 132b | F9: 132b | G9: 144 | H9: 0 | I9: 0 | J9: 0 | K9: 550 | L9: 105 | M9: 106 | N9: 106 | O9: 0 | P9: 107 | R9: 0 | S9: 0 | T9: 0 | U9: 0 | V9: 0 | W9: 0 | X9: 0 | Y9: 0 | Z9: 0 | AA9: 0 | AB9: 0 | AC9: 0 | AD9: 0 | AE9: 0 | AF9: 0 | AG9: 0
A10: 715204 | B10: Takpapp/ tjærepapp | C10: 135 | D10: 504 | E10: 132b | F10: 132b | G10: 144 | H10: 131 | I10: 131 | J10: 138 | K10: 550 | L10: 105 | M10: 106 | N10: 106 | O10: 0 | P10: 107 | R10: 141 | S10: 141 | T10: 141 | U10: 141 | V10: 102 | W10: 0 | X10: 0 | Y10: 0 | Z10: 110 | AA10: 113 | AB10: 113 | AC10: 112 | AD10: 115 | AE10: 114 | AF10: 117 | AG10: 0
A11: 7098 | B11: CCA-Impregnert Trevirke | C11: 135 | D11: 504 | E11: 132b | F11: 132b | G11: 144 | H11: 131 | I11: 131 | J11: 138 | K11: 550 | L11: 105 | M11: 106 | N11: 106 | O11: 0 | P11: 107 | R11: 141 | S11: 141 | T11: 141 | U11: 141 | V11: 102 | W11: 0 | X11: 0 | Y11: 0 | Z11: 110 | AA11: 113 | AB11: 113 | AC11: 112 | AD11: 115 | AE11: 114 | AF11: 117 | AG11: 0
A12: 715220 | B12: Pipestein med PAH | C12: 135 | D12: 504 | E12: 132b | F12: 132b | G12: 144 | H12: 0 | I12: 0 | J12: 138 | K12: 550 | L12: 105 | M12: 106 | N12: 106 | O12: 0 | P12: 0 | R12: 141 | S12: 141 | T12: 141 | U12: 141 | V12: 0 | W12: 0 | X12: 0 | Y12: 0 | Z12: 0 | AA12: 0 | AB12: 0 | AC12: 0 | AD12: 0 | AE12: 0 | AF12: 0 | AG12: 0
A13: 7211 | B13: Isolerglassruter med PCB | C13: 135 | D13: 504 | E13: 132 | F13: 132 | G13: 144 | H13: 131 | I13: 131 | J13: 138 | K13: 550 | L13: 105 | M13: 106 | N13: 119 | O13: 0 | P13: 107 | R13: 141 | S13: 141 | T13: 141 | U13: 141 | V13: 102 | W13: 0 | X13: D | Y13: D | Z13: 110 | AA13: 113 | AB13: 113 | AC13: 112 | AD13: 115 | AE13: 114 | AF13: 117 | AG13: 0
A14: 7092 | B14: Blybatterier | C14: 135 | D14: 504 | E14: 132b | F14: 132b | G14: 144 | H14: 131 | I14: 131 | J14: 138 | K14: 550 | L14: 105 | M14: 106 | N14: 106 | O14: 0 | P14: 550 | R14: 141 | S14: 141 | T14: 141 | U14: 141 | V14: 102 | W14: 0 | X14: 0 | Y14: 0 | Z14: 110 | AA14: 113 | AB14: 113 | AC14: 112 | AD14: 115 | AE14: 114 | AF14: 117 | AG14: 0
E15: 132b | F15: 132b | G15: 144
